Workbook

Sheet Instructions
B2: InfraSave Tools
B4: We are providing these tools to help you select the best InfraSave product solution for your application.
B6: Heat Loss Calculator Tool: (2 parts) | C6: This tool helps select gas-fired radiant heaters for your customer's project.
B7: 1. Enter Project Details | C7: FIRST: Go to the Project Details sheet and enter required project information as the first step in calculating Heat Loss
B8: click here:
B9: 2. Calculate Heat Loss | C9: SECOND: Go to the Heat Loss sheet (InfraCalc©) and select the proper building material
B10: click here: | C10: THIRD: Continue on to the Heater & Model Selection Tools below
B12: Heater & Model Selection Tools
B13: To select an IR System, | C13: CONTRACTOR knows the total input of current equipment to be replaced --> the required input of radiant heaters is calculated
B14: click here: | C14: If the customer's fuel cost rate is known, the relative operating cost of each system can also be calculated
B15: To select Tube Heater Kits: | C15: Based upon the application and model selected: provides the proper Burner Kits, Tube Kits and their part numbers
B16: click here: | C16: Optional & recommended accessories are also indicated
B18: Cross References of Competitive Heater Systems
B19: Tubes - Straight: | C19: A cross reference of 'Straight' tube heater systems on the market
B20: Tubes - 'U': | C20: A cross reference of 'U'-tube style tube heater models on the market
B21: High Intensity: | C21: A cross reference of high intensity ceramic burner heater models on the market

Sheet 1. Project Details
B3: Heat Loss Calculator - Step 1: Project Details
B6: Project Country* | C6: USA
B9: PROJECT PROFILE
O11: Standard Units
P12: Metric Units
B14: Quote / Project File # / Date | C14: =NOW() -> 2015-09-08T08:45:20.630
B15: Main Project Name*
B16: Project Sub-Name | O16: =IF(C57="",C22,C57) -> 68 | P16: Natural Gas | Q16: =IF(K39="-","-",IF(K39="1000 cu ft",1000000,IF(K39="Therm",100000,35310))) -> 35310
B17: City* | P17: Propane | Q17: =IF(K39="-","-",IF(K39="Gallon",91523,IF(K39="litre",24180,0))) -> 0
B18: =IF(C6="USA","State* ","Prov*") -> State*
B20: DESIGN PARAMETERS - Information required to calculate a heat loss
B21: Design temperatures: Outside | C21: 0 | D21: °F | O21: =IF(C53="",C25,C53) -> 0 | P21: -
B22: Inside | C22: 68 | D22: °F | O22: =IF(OR(C54="scroll to select",C54="",C54=" """),C26,C54) -> SELECT | P22: =IF(C6="CANADA",IF(O35=1,"cu m","litre"),IF(O35=1,"Therm","Gallon")) -> Gallon | Q22: Mr.
B23: =IF(C23=0,"Length of area to heat","Length") -> Length of area to heat | C23: 0 | D23: ft | P23: =IF(C6="CANADA","",IF(O35=1,"1000 cu ft","")) ->  | Q23: Mrs.
B24: =IF(C24=0,"Width of area to heat","Width") -> Width of area to heat | C24: 0 | D24: ft | O24: =IF(G51=1,"57°F","14°C (57°F)") -> 57°F | Q24: Ms.
B25: Avg. building height | C25: 0 | D25: ft | O25: =IF(G51=1,"55°F","13°C (55°F)") -> 55°F
B26: Infiltration tightness | C26: SELECT | O26: =IF($G$51=1,"65°F","18°C (65°F)") -> 65°F
B27: Air change/hr | C27: =C77 -> 0 | D27: x bldg vol. | O27: =IF($G$51=1,"60°F","15°C (60°F)") -> 60°F | P27: USA
B28: Gross building volume | C28: =C23*C24*O21 -> 0 | D28: =I36 -> ft³ | O28: =IF($G$51=1,"50°F","10°C (50°F)") -> 50°F | P28: CANADA
B29: Other heat gain? | C29: 0 | D29: Btuh | O29: =IF($G$51=1,"45°F","7°C (45°F)") -> 45°F
B31: PROCESS FANS and COLD STUFF
O33: =IF($G$51=1,"40°F","4°C (40°F)") -> 40°F
B34: Process Ventilation | C34: 0 | D34: cfm
B35: Fan duration | C35: 0 | D35: min/hr | O35: =IF(K38="Natural Gas",1,3) -> 3
B36: Mech'l Vent = | C36: =C34*C35 -> 0 | D36: cfh | I36: ft³ | J36: m³ | O36: =IF(K38="Natural Gas","NG","LP") -> LP
B37: Cold materials | C37: 0 | D37: lb/hr | I37: =IF($C$6="CANADA","0"," ") -> 
B38: Specific heat of material | C38: 0
B39: Cold vehicle losses | C39: 0 | D39: Btuh | G39: =IF($C$6="CANADA",0," ") -> 
F45: =ISNUMBER(C55) -> FALSE
G51: 1
B70: Air Change: | D70: =LEN(B71) -> 1 | E70: =IF(D71<5,5,IF(D70=4,D71,IF(D70=5,D72,IF(D70=6,D73,IF(D70>=7,D76))))) -> 5 | I70: -
B71: =ROUND(C28,0) -> 0 | C71: cu ft | D71: =ROUND($B$71/1000,0) -> 0
B72: SELECT | D72: =ROUND($B$71/10000,0)*10 -> 0 | N72: - Well exceeds 35% minimum ANSI standard and any competitors | R72: - High IR coefficient allows calculated heat loss reduction from 16 to 20%
B73: TIGHT | D73: =IF(B71>500000,D75,IF(B71>200000,D74,ROUND($B$71/2000,-1)*2)) -> 0 | N73: - Well exceeds 35% minimum ANSI standard and any competitors | R73: - Higher IR coefficient allows calculated heat loss reduction from 25 to 30%
B74: AVERAGE | D74: =ROUND($B$71/5000,-1)*5 -> 0 | N74: - Well exceeds 35% minimum ANSI standard and any competitors | R74: - Highest IR coefficient allows calculated heat loss reduction from 35 to 41.5%
B75: LOOSE | D75: =ROUND($B$71/1000,-2) -> 0
D76: =IF(B71>5000000,5000,IF(B71>2000000,D77,ROUND($B$71/2000,-2)*2)) -> 0
B77: =O22&E70 -> SELECT5 | C77: =IF(C26="SELECT",0,VLOOKUP(B77,B79:C226,2,FALSE)) -> 0 | D77: =ROUND($B$71/5000,-2)*5 -> 0 | N77: - Highest radiant heat output allows up to 27% reduction of calculated heat loss | R77: - Direct vented; 4" dia. vent; can be paired using 4" x 4" x 6" Vent Tee
N78: - Higher radiant heat output allows up to 20% reduction of calculated heat loss | R78: - Direct vented; 4" dia. vent; can be paired using 4" x 4" x 6" Vent Tee
N79: - Good radiant heat output allows up to 18% reduction of calculated heat loss | R79: - Direct vented; 4" dia. vent; can be paired using 4" x 4" x 6" Vent Tee
B80: =B$75&5 -> LOOSE5 | C80: 1.7 | N80: - Good radiant heat output allows up to 18% reduction of calculated heat loss | R80: - Direct vented; 4" dia. vent; can be paired using 4" x 4" x 6" Vent Tee
B81: =B$75&6 -> LOOSE6 | C81: 1.68 | N81: - Good radiant heat output allows up to 18% reduction of calculated heat loss | O81: - Good radiant heat output allows up to 18% reduction of calculated heat loss | R81: - Many features and same ceramic burner as Premier model
B82: =B$75&7 -> LOOSE7 | C82: 1.66 | N82: - Good radiant heat output allows up to 18% reduction of calculated heat loss | O82: - Good radiant heat output allows up to 18% reduction of calculated heat loss | R82: - Many features and same ceramic burner as Premier model
B83: =B$75&8 -> LOOSE8 | C83: 1.64 | N83: - Also available with all Stainless Steel tube & reflector system | R83: - Ceramic burner produces longest flame = most uniform heat output
B84: =B$75&9 -> LOOSE9 | C84: 1.62 | N84: - Ceramic burner produces longest flame = most uniform heat output | R84: - Direct vented; 4" dia. vent; can be paired using 4" x 4" x 6" Vent Tee
B85: =B$75&10 -> LOOSE10 | C85: 1.6
B86: =B$75&12 -> LOOSE12 | C86: 1.575
B87: =B$75&14 -> LOOSE14 | C87: 1.55
B88: =B$75&16 -> LOOSE16 | C88: 1.52
B89: =B$75&18 -> LOOSE18 | C89: 1.495
B90: =B$75&20 -> LOOSE20 | C90: 1.47
B91: =B$75&25 -> LOOSE25 | C91: 1.455
B92: =B$75&30 -> LOOSE30 | C92: 1.42
B93: =B$75&35 -> LOOSE35 | C93: 1.385
B94: =B$75&40 -> LOOSE40 | C94: 1.35
B95: =B$75&45 -> LOOSE45 | C95: 1.315
B96: =B$75&50 -> LOOSE50 | C96: 1.28
B97: =B$75&60 -> LOOSE60 | C97: 1.24
B98: =B$75&70 -> LOOSE70 | C98: 1.21
B99: =B$75&80 -> LOOSE80 | C99: 1.17
B100: =B$75&90 -> LOOSE90 | C100: 1.15
B101: =B$75&100 -> LOOSE100 | C101: 1.13
B102: =B$75&120 -> LOOSE120 | C102: 1.1
B103: =B$75&140 -> LOOSE140 | C103: 1.08
B104: =B$75&160 -> LOOSE160 | C104: 1.06
B105: =B$75&180 -> LOOSE180 | C105: 1.04
B106: =B$75&200 -> LOOSE200 | C106: 1.02
B107: =B$75&250 -> LOOSE250 | C107: 1.005
B108: =B$75&300 -> LOOSE300 | C108: 0.97
B109: =B$75&350 -> LOOSE350 | C109: 0.935
B110: =B$75&400 -> LOOSE400 | C110: 0.9
B111: =B$75&450 -> LOOSE450 | C111: 0.865
B112: =B$75&500 -> LOOSE500 | C112: 0.83
B113: =B$75&600 -> LOOSE600 | C113: 0.8
B114: =B$75&700 -> LOOSE700 | C114: 0.775
B115: =B$75&800 -> LOOSE800 | C115: 0.75
B116: =B$75&900 -> LOOSE900 | C116: 0.725
B117: =B$75&1000 -> LOOSE1000 | C117: 0.7
B118: =B$75&1200 -> LOOSE1200 | C118: 0.68
B119: =B$75&1400 -> LOOSE1400 | C119: 0.66
B120: =B$75&1600 -> LOOSE1600 | C120: 0.64
B121: =B$75&1800 -> LOOSE1800 | C121: 0.62
B122: =B$75&2000 -> LOOSE2000 | C122: 0.6
B123: =B$75&2500 -> LOOSE2500 | C123: 0.575
B124: =B$75&3000 -> LOOSE3000 | C124: 0.54
B125: =B$75&3500 -> LOOSE3500 | C125: 0.505
B126: =B$75&4000 -> LOOSE4000 | C126: 0.47
B127: =B$75&4500 -> LOOSE4500 | C127: 0.435
B128: =B$75&5000 -> LOOSE5000 | C128: 0.4
B129: =B$74&5 -> AVERAGE5 | C129: 1.25
B130: =B$74&6 -> AVERAGE6 | C130: 1.23
B131: =B$74&7 -> AVERAGE7 | C131: 1.21
B132: =B$74&8 -> AVERAGE8 | C132: 1.19
B133: =B$74&9 -> AVERAGE9 | C133: 1.17
B134: =B$74&10 -> AVERAGE10 | C134: 1.15
B135: =B$74&12 -> AVERAGE12 | C135: 1.13
B136: =B$74&14 -> AVERAGE14 | C136: 1.11
B137: =B$74&16 -> AVERAGE16 | C137: 1.09
B138: =B$74&18 -> AVERAGE18 | C138: 1.07
B139: =B$74&20 -> AVERAGE20 | C139: 1.05
B140: =B$74&25 -> AVERAGE25 | C140: 1.4
B141: =B$74&30 -> AVERAGE30 | C141: 1.3
B142: =B$74&35 -> AVERAGE35 | C142: 1.2
B143: =B$74&40 -> AVERAGE40 | C143: 1.1
B144: =B$74&45 -> AVERAGE45 | C144: 1
B145: =B$74&50 -> AVERAGE50 | C145: 0.9
B146: =B$74&60 -> AVERAGE60 | C146: 0.876
B147: =B$74&70 -> AVERAGE70 | C147: 0.852
B148: =B$74&80 -> AVERAGE80 | C148: 0.828
B149: =B$74&90 -> AVERAGE90 | C149: 0.804
B150: =B$74&100 -> AVERAGE100 | C150: 0.78
B151: =B$74&120 -> AVERAGE120 | C151: 0.76
B152: =B$74&140 -> AVERAGE140 | C152: 0.74
B153: =B$74&160 -> AVERAGE160 | C153: 0.72
B154: =B$74&180 -> AVERAGE180 | C154: 0.7
B155: =B$74&200 -> AVERAGE200 | C155: 0.68
B156: =B$74&250 -> AVERAGE250 | C156: 0.6535
B157: =B$74&300 -> AVERAGE300 | C157: 0.6268
B158: =B$74&350 -> AVERAGE350 | C158: 0.6001
B159: =B$74&400 -> AVERAGE400 | C159: 0.5734
B160: =B$74&450 -> AVERAGE450 | C160: 0.5467
B161: =B$74&500 -> AVERAGE500 | C161: 0.52
B162: =B$74&600 -> AVERAGE600 | C162: 0.5
B163: =B$74&700 -> AVERAGE700 | C163: 0.48
B164: =B$74&800 -> AVERAGE800 | C164: 0.46
B165: =B$74&900 -> AVERAGE900 | C165: 0.44
B166: =B$74&1000 -> AVERAGE1000 | C166: 0.42
B167: =B$74&1200 -> AVERAGE1200 | C167: 0.4
B168: =B$74&1400 -> AVERAGE1400 | C168: 0.38
B169: =B$74&1600 -> AVERAGE1600 | C169: 0.36
B170: =B$74&1800 -> AVERAGE1800 | C170: 0.34
B171: =B$74&2000 -> AVERAGE2000 | C171: 0.32
B172: =B$74&2500 -> AVERAGE2500 | C172: 0.295
B173: =B$74&3000 -> AVERAGE3000 | C173: 0.268
B174: =B$74&3500 -> AVERAGE3500 | C174: 0.241
B175: =B$74&4000 -> AVERAGE4000 | C175: 0.214
B176: =B$74&4500 -> AVERAGE4500 | C176: 0.187
B177: =B$74&5000 -> AVERAGE5000 | C177: 0.16
B178: =B$73&5 -> TIGHT5 | C178: 0.98
B179: =B$73&6 -> TIGHT6 | C179: 0.964
B180: =B$73&7 -> TIGHT7 | C180: 0.948
B181: =B$73&8 -> TIGHT8 | C181: 0.932
B182: =B$73&9 -> TIGHT9 | C182: 0.916
B183: =B$73&10 -> TIGHT10 | C183: 0.9
B184: =B$73&12 -> TIGHT12 | C184: 0.884
B185: =B$73&14 -> TIGHT14 | C185: 0.868
B186: =B$73&16 -> TIGHT16 | C186: 0.852
B187: =B$73&18 -> TIGHT18 | C187: 0.836
B188: =B$73&20 -> TIGHT20 | C188: 0.82
B189: =B$73&25 -> TIGHT25 | C189: 0.79665
B190: =B$73&30 -> TIGHT30 | C190: 0.77332
B191: =B$73&35 -> TIGHT35 | C191: 0.74999
B192: =B$73&40 -> TIGHT40 | C192: 0.72666
B193: =B$73&45 -> TIGHT45 | C193: 0.70333
B194: =B$73&50 -> TIGHT50 | C194: 0.68
B195: =B$73&60 -> TIGHT60 | C195: 0.662
B196: =B$73&70 -> TIGHT70 | C196: 0.644
B197: =B$73&80 -> TIGHT80 | C197: 0.626
B198: =B$73&90 -> TIGHT90 | C198: 0.608
B199: =B$73&100 -> TIGHT100 | C199: 0.59
B200: =B$73&120 -> TIGHT120 | C200: 0.576
B201: =B$73&140 -> TIGHT140 | C201: 0.562
B202: =B$73&160 -> TIGHT160 | C202: 0.548
B203: =B$73&180 -> TIGHT180 | C203: 0.534
B204: =B$73&200 -> TIGHT200 | C204: 0.52
B205: =B$73&250 -> TIGHT250 | C205: 0.496665
B206: =B$73&300 -> TIGHT300 | C206: 0.473332
B207: =B$73&350 -> TIGHT350 | C207: 0.449999
B208: =B$73&400 -> TIGHT400 | C208: 0.426666
B209: =B$73&450 -> TIGHT450 | C209: 0.403333
B210: =B$73&500 -> TIGHT500 | C210: 0.38
B211: =B$73&600 -> TIGHT600 | C211: 0.366
B212: =B$73&700 -> TIGHT700 | C212: 0.352
B213: =B$73&800 -> TIGHT800 | C213: 0.338
B214: =B$73&900 -> TIGHT900 | C214: 0.324
B215: =B$73&1000 -> TIGHT1000 | C215: 0.31
B216: =B$73&1200 -> TIGHT1200 | C216: 0.294
B217: =B$73&1400 -> TIGHT1400 | C217: 0.278
B218: =B$73&1600 -> TIGHT1600 | C218: 0.262
B219: =B$73&1800 -> TIGHT1800 | C219: 0.246
B220: =B$73&2000 -> TIGHT2000 | C220: 0.23
B221: =B$73&2500 -> TIGHT2500 | C221: 0.208333
B222: =B$73&3000 -> TIGHT3000 | C222: 0.1866664
B223: =B$73&3500 -> TIGHT3500 | C223: 0.1649998
B224: =B$73&4000 -> TIGHT4000 | C224: 0.1433332
B225: =B$73&4500 -> TIGHT4500 | C225: 0.1216666
B226: =B$73&5000 -> TIGHT5000 | C226: 0.1

Sheet 2. Heat Loss Calculator
C3: Heat Loss Calculator - Step 2: Calculations
C5: PROJECT DETAILS (summary from the Project Details sheet) | L5: =TODAY() -> 2015-09-08
C6: ='1. Project Details'!C15&", "&PROPER('1. Project Details'!C17)&", "&IF('1. Project Details'!C6="USA",UPPER('1. Project Details'!C18),UPPER('1. Project Details'!C18)) -> , ,
C7: =IF('1. Project Details'!C16="","",'1. Project Details'!C16) ->  | N7: Hide
C8: =IF('1. Project Details'!$C$14="","",'1. Project Details'!C14) -> 2015-09-08T08:45:20.630 | N8: This
C10: construction/infiltration 'tightness' | D10: =IF('1. Project Details'!O22="SCROLL to SELECT","Select a value in 'Project Details' cell B9 or K10",'1. Project Details'!O22) -> SELECT | N10: column
C11: air change/hr allowance | D11: ='1. Project Details'!C27 -> 0 | E11: x bldg volume | I11: outside temperature | J11: ='1. Project Details'!C21 -> 0 | K11: ='1. Project Details'!D21 -> °F
C12: building length | D12: ='1. Project Details'!C23 -> 0 | E12: ='1. Project Details'!D23 -> ft | I12: inside temperature | J12: ='1. Project Details'!C22 -> 68 | K12: ='1. Project Details'!D22 -> °F
C13: building width | D13: ='1. Project Details'!C24 -> 0 | E13: ='1. Project Details'!D24 -> ft | I13: design temp. diff. DT | J13: =IF(OR(J11="Not Indicated",J12=""),"",J12-J11) -> 68 | K13: F°
C14: avg. building height | D14: ='1. Project Details'!O21 -> 0 | E14: ='1. Project Details'!D25 -> ft | I14: floor area to heat | J14: =D12*D13 -> 0 | K14: =N15 -> ft² | N14: m²
C15: heated volume not in this design | D15: 0 | E15: =LEFT('1. Project Details'!$D$28,3) -> ft | I15: volume to condition | J15: =D12*D13*D14-D15 -> 0 | K15: =E15 -> ft | N15: ft²
C17: Building Component | D17: Orientation | E17: Qty | F17: =IF('1. Project Details'!$G$39=0,"U-Value","U-Value (1/R)") -> U-Value (1/R) | G17: Length | H17: Height/ Width | I17: Less adjacent heated area | J17: Area | K17: DT | L17: Transmission Loss | N17: ='1. Project Details'!$G$39 -> 
G18: ft | H18: ft | I18: =N15 -> ft² | J18: =N15 -> ft² | K18: F° | L18: Btuh | T18: Floor Edge | U18: - | V18: Floor Edge - Other | W18: -
C19: Floor Edge | F19: =VLOOKUP(C19,T18:U20,2,FALSE) -> - | G19: =2*D12+2*D13-G20 -> 0 | I19: 0 | K19: =IF(F19="-",0,J13) -> 0 | L19: =IF(F19="-",0,ROUND(F19*(G19-I19),-1)) -> 0 | T19: Uninsulated Floor Edge | U19: 0.81 | V19: Uninsulated Floor Edge | W19: 0.81
C20: Floor Edge - Other | F20: =VLOOKUP(C20,V18:W20,2,FALSE) -> - | G20: 0 | I20: 0 | K20: =IF(F20="-",0,$J$13) -> 0 | L20: =IF(F20="-","",ROUND(F20*(G20-I20),-1)) ->  | T20: Insulated Floor Edge | U20: 0.55 | V20: Insulated Floor Edge | W20: 0.55
C21: ROOF: | T21: ROOF CONSTRUCTION MATERIAL | U21: 0
C22: ROOF CONSTRUCTION MATERIAL | F22: =VLOOKUP(C22,$T$21:$U$54,2,FALSE) -> 0 | G22: =D12 -> 0 | H22: =D13 -> 0 | I22: 0 | J22: =IF(F22=0,0,(G22*H22)-I22-J24-J25) -> 0 | K22: =IF(OR(F22="-",F22=0),0,$J$13) -> 0 | L22: =IF(G22=0,0,IF(AND(G22=0,H22=0),0,IF(F22="-","U-VALUE?",IF(G22=0,"LENGTH?",IF(H22=0,"WIDTH?",ROUND(F22*J22*K22,-1)))))) -> 0 | T22: OTHER ROOF CONSTRUCTION MATERIAL | U22: 0 | Y22: ENTIRE WALL or LOWER PORTION | Z22: 0 | AA22: UPPER WALL (if applicable) | AB22: 0 | AD22: DOOR | AE22: - | AG22: WINDOW | AH22: -
C23: OTHER ROOF CONSTRUCTION MATERIAL | F23: =VLOOKUP(C23,$T$22:$U$54,2,FALSE) -> 0 | G23: 0 | H23: 0 | I23: 0 | J23: =IF(F23="","",(G23*H23)-I23) -> 0 | K23: =IF(F23=0,0,$J$13) -> 0 | L23: =IF(F23=0,0,IF(G23=0,"LENGTH?",IF(H23=0,"WIDTH?",ROUND(F23*J23*K23,-1)))) -> 0 | T23: Project specific 'U'-Value | U23: ?? | V23: SKYLIGHT | W23: - | Y23: THIS WALL IS WARM | Z23: 0 | AA23: WARM | AB23: 0 | AD23: DOOR - Project specific 'U'-Value | AE23: ?? | AG23: WINDOW - Project specific 'U'-Value | AH23: ??
C24: SKYLIGHT | E24: 0 | F24: =VLOOKUP(C24,$V$23:$W$29,2,FALSE) -> - | G24: 0 | H24: 0 | J24: =IF(E24="",0,E24*(G24*H24)) -> 0 | K24: =IF(OR(F24="-",G24=0,H24=0),0,$J$13) -> 0 | L24: =IF(C24="SKYLIGHT",0,IF(AND(E24=0,F24="-",G24=0,H24=0),0,IF(E24=0,"QUANTITY?",IF(F24="-","U-VALUE?",IF(G24=0,"LENGTH?",IF(H24=0,"HEIGHT?",ROUND(F24*J24*K24,-1))))))) -> 0 | T24: R-2 | U24: =1/2 -> 0.5 | V24: SKYLIGHT: Glass - Single pane | W24: 1.23 | Y24: Project Specific 'U'-Value | Z24: ?? | AA24: Project Specific 'U'-Value | AB24: ?? | AD24: DOOR - METAL | AE24: 1.2 | AG24: WINDOW - SINGLE | AH24: 1.06
C25: SKYLIGHT | E25: 0 | F25: =VLOOKUP(C25,$V$23:$W$29,2,FALSE) -> - | G25: 0 | H25: 0 | J25: =IF(E25="",0,E25*(G25*H25)) -> 0 | K25: =IF(OR(F25="-",G25=0,H25=0),0,$J$13) -> 0 | L25: =IF(C25="SKYLIGHT",0,IF(AND(E25=0,F25="-",G25=0,H25=0),0,IF(E25=0,"QUANTITY?",IF(F25="-","U-VALUE?",IF(G25=0,"LENGTH?",IF(H25=0,"HEIGHT?",ROUND(F25*J25*K25,-1))))))) -> 0 | T25: R-4 | U25: =1/4 -> 0.25 | V25: SKYLIGHT: Glass - Double 1/8" Air Space | W25: 0.7 | Y25: R-4 | Z25: =1/4 -> 0.25 | AA25: R-4 | AB25: =1/4 -> 0.25 | AD25: DOOR - WOOD | AE25: 0.64 | AG25: WINDOW - DOUBLE 1/8" | AH25: 0.62
C26: ="WALL 1: "&G27&" ft x "&H27+H28&" ft" -> WALL 1: 0 ft x 0 ft | T26: R-8 | U26: =1/8 -> 0.125 | V26: SKYLIGHT: Glass - Double 1/4" Air Space | W26: 0.65 | Y26: R-5 | Z26: =1/5 -> 0.2 | AA26: R-5 | AB26: =1/5 -> 0.2 | AD26: DOOR - GLASS | AE26: 1.06 | AG26: WINDOW - DOUBLE 1/4" | AH26: 0.58
C27: ENTIRE WALL or LOWER PORTION | F27: =VLOOKUP(C27,$Y$22:$Z$46,2,FALSE) -> 0 | G27: =$D$12 -> 0 | H27: =IF(OR(H28=0,H28="",H28=" "),D14,D14-H28) -> 0 | I27: 0 | J27: =IF(OR(C27="THIS WALL IS WARM",N27=0),0,N27) -> 0 | K27: =IF(OR(F27="-",F27=0),0,$J$13) -> 0 | L27: =IF(F27=0,0,IF(OR(F27="-",F27="??"),"U-VALUE?",IF(G27=0,"LENGTH?",IF(H27=0,"HEIGHT?",ROUND(F27*J27*K27,-1))))) -> 0 | N27: =IF($F27="",0,($G27*$H27)-$I27-($P27+P29)) -> 0 | P27: =IF(H29=0,0,IF(H27<H29,H27,H29)*G29*E29) -> 0 | T27: R-10 | U27: =1/10 -> 0.1 | V27: SKYLIGHT: Glass - Double 1/2" Air Space | W27: 0.59 | Y27: R-8 | Z27: =1/8 -> 0.125 | AA27: R-8 | AB27: =1/8 -> 0.125 | AD27: DOOR - INSUL-1" | AE27: 0.23 | AG27: WINDOW - DOUBLE 1/2" | AH27: 0.49
C28: UPPER WALL (if applicable) | F28: =VLOOKUP(C28,$AA$22:$AB$46,2,FALSE) -> 0 | G28: =IF(F28=0,0,G27) -> 0 | I28: 0 | J28: =IF(OR(C28="THIS WALL IS WARM",N28=0),0,N28) -> 0 | K28: =IF(OR(F28="-",F28=0),0,$J$13) -> 0 | L28: =IF(C28="THIS WALL IS WARM",0,IF(AND(F28=0,G28=0,H28=0),0,IF(F28="-","U-VALUE?",IF(G28=0,"LENGTH?",IF(H28=0,"HEIGHT?",ROUND(F28*J28*K28,-1)))))) -> 0 | N28: =IF($F28="",0,($G28*$H28)-$I28-(P28+P30)) -> 0 | P28: =IF(H29=0,0,N29-P27) -> 0 | T28: R-11 | U28: =1/11 -> 0.09090909091 | V28: SKYLIGHT: Plastic Dome - Single | W28: 1.5 | Y28: R-10 | Z28: =1/10 -> 0.1 | AA28: R-10 | AB28: =1/10 -> 0.1 | AD28: DOOR - INSUL-1.5" | AE28: 0.18
C29: DOOR | E29: 0 | F29: =VLOOKUP(C29,$AD$22:$AE$29,2,FALSE) -> - | G29: 0 | H29: 0 | J29: =IF(N29=0,0,N29) -> 0 | K29: =IF(OR(F29="-",F29=0),0,$J$13) -> 0 | L29: =IF(C29="DOOR",0,IF(AND(E29=0,F29="-",G29=0,H29=0),0,IF(E29=0,"QUANTITY?",IF(F29="-","U-VALUE?",IF(G29=0,"LENGTH?",IF(H29=0,"HEIGHT?",ROUND(F29*J29*K29,-1))))))) -> 0 | N29: =IF($E29=0,0,$E29*($G29*$H29)) -> 0 | P29: =IF(H30=0,0,IF(H27<H30,H27,H30)*G30*E30) -> 0 | T29: R-12 | U29: =1/12 -> 0.08333333333 | V29: SKYLIGHT: Plastic Dome - Double | W29: 0.7 | Y29: R-11 | Z29: =1/11 -> 0.09090909091 | AA29: R-11 | AB29: =1/11 -> 0.09090909091 | AD29: DOOR - INSUL-2" | AE29: 0.13
C30: DOOR | E30: 0 | F30: =VLOOKUP(C30,$AD$22:$AE$29,2,FALSE) -> - | J30: =IF(N30=0,0,N30) -> 0 | K30: =IF(OR(F30="-",F30=0),0,$J$13) -> 0 | L30: =IF(C30="DOOR",0,IF(AND(E30=0,F30="-",G30=0,H30=0),0,IF(E30=0,"QUANTITY?",IF(F30="-","U-VALUE?",IF(G30=0,"LENGTH?",IF(H30=0,"HEIGHT?",ROUND(F30*J30*K30,-1))))))) -> 0 | N30: =IF($E30=0,0,$E30*($G30*$H30)) -> 0 | P30: =IF(H30=0,0,N30-P29) -> 0 | T30: R-13 | U30: =1/13 -> 0.07692307692 | Y30: R-12 | Z30: =1/12 -> 0.08333333333 | AA30: R-12 | AB30: =1/12 -> 0.08333333333
C31: WINDOW | E31: 0 | F31: =VLOOKUP(C31,$AG$22:$AH$27,2,FALSE) -> - | G31: 0 | H31: 0 | J31: =IF(N31=0,0,N31) -> 0 | K31: =IF(OR(F31="-",F31=0),0,$J$13) -> 0 | L31: =IF(C31="WINDOW",0,IF(AND(E31=0,F31="-",G31=0,H31=0),0,IF(E31=0,"QUANTITY?",IF(F31="-","U-VALUE?",IF(G31=0,"LENGTH?",IF(H31=0,"HEIGHT?",ROUND(F31*J31*K31,-1))))))) -> 0 | N31: =IF($E31=0,0,$E31*($G31*$H31)) -> 0 | T31: R-14 | U31: =1/14 -> 0.07142857143 | Y31: R-13 | Z31: =1/14 -> 0.07142857143 | AA31: R-13 | AB31: =1/14 -> 0.07142857143
C32: ="WALL 2: "&G33&" ft x "&H33+H34&" ft" -> WALL 2: 0 ft x 0 ft | T32: R-16 | U32: =1/16 -> 0.0625 | Y32: R-15 | Z32: =1/16 -> 0.0625 | AA32: R-15 | AB32: =1/16 -> 0.0625
C33: =IF(C27="THIS WALL IS WARM","ENTIRE WALL or LOWER PORTION",C27) -> ENTIRE WALL or LOWER PORTION | F33: =VLOOKUP(C33,$Y$22:$Z$46,2,FALSE) -> 0 | G33: =$D$13 -> 0 | H33: =IF(OR(H34=0,H34="",H34=" "),D14,D14-H34) -> 0 | I33: 0 | J33: =IF(OR(C33="THIS WALL IS WARM",N33=0),0,N33) -> 0 | K33: =IF(OR(F33="-",F33=0),0,$J$13) -> 0 | L33: =IF(F33=0,0,IF(OR(F33="-",F33="??"),"U-VALUE?",IF(G33=0,"LENGTH?",IF(H33=0,"HEIGHT?",ROUND(F33*J33*K33,-1))))) -> 0 | N33: =IF($F33="",0,($G33*$H33)-$I33-($P33+P35)) -> 0 | P33: =IF(H35=0,0,IF(H33<H35,H33,H35)*G35*E35) -> 0 | T33: R-18 | U33: =1/18 -> 0.05555555556 | Y33: R-18 | Z33: =1/18 -> 0.05555555556 | AA33: R-18 | AB33: =1/18 -> 0.05555555556
C34: =C28 -> UPPER WALL (if applicable) | F34: =VLOOKUP(C34,$AA$22:$AB$46,2,FALSE) -> 0 | G34: =IF(F34=0,0,G33) -> 0 | H34: =H28 -> 0 | I34: 0 | J34: =IF(OR(C34="THIS WALL IS WARM",N34=0),0,N34) -> 0 | K34: =IF(OR(F34="-",F34=0),0,$J$13) -> 0 | L34: =IF(C34="THIS WALL IS WARM",0,IF(AND(F34=0,G34=0,H34=0),0,IF(F34="-","U-VALUE?",IF(G34=0,"LENGTH?",IF(H34=0,"HEIGHT?",ROUND(F34*J34*K34,-1)))))) -> 0 | N34: =IF($F34="",0,($G34*$H34)-$I34-(P34+P36)) -> 0 | P34: =IF(H35=0,0,N35-P33) -> 0 | T34: R-19 | U34: =1/19 -> 0.05263157895 | Y34: R-19 | Z34: =1/19 -> 0.05263157895 | AA34: R-19 | AB34: =1/19 -> 0.05263157895
C35: DOOR | E35: 0 | F35: =VLOOKUP(C35,$AD$22:$AE$29,2,FALSE) -> - | G35: 0 | H35: 0 | J35: =IF(N35=0,0,N35) -> 0 | K35: =IF(OR(F35="-",F35=0),0,$J$13) -> 0 | L35: =IF(C35="DOOR",0,IF(AND(E35=0,F35="-",G35=0,H35=0),0,IF(E35=0,"QUANTITY?",IF(F35="-","U-VALUE?",IF(G35=0,"LENGTH?",IF(H35=0,"HEIGHT?",ROUND(F35*J35*K35,-1))))))) -> 0 | N35: =IF($E35=0,0,$E35*($G35*$H35)) -> 0 | P35: =IF(H36=0,0,IF(H33<H36,H33,H36)*G36*E36) -> 0 | T35: R-20 | U35: =1/20 -> 0.05 | Y35: R-20 | Z35: =1/20 -> 0.05 | AA35: R-20 | AB35: =1/20 -> 0.05
C36: DOOR | E36: 0 | F36: =VLOOKUP(C36,$AD$22:$AE$29,2,FALSE) -> - | G36: 0 | H36: 0 | J36: =IF(N36=0,0,N36) -> 0 | K36: =IF(OR(F36="-",F36=0),0,$J$13) -> 0 | L36: =IF(C36="DOOR",0,IF(AND(E36=0,F36="-",G36=0,H36=0),0,IF(E36=0,"QUANTITY?",IF(F36="-","U-VALUE?",IF(G36=0,"LENGTH?",IF(H36=0,"HEIGHT?",ROUND(F36*J36*K36,-1))))))) -> 0 | N36: =IF($E36=0,0,$E36*($G36*$H36)) -> 0 | P36: =IF(H36=0,0,N36-P35) -> 0 | T36: R-28 | U36: =1/28 -> 0.03571428571 | Y36: R-28 | Z36: =1/28 -> 0.03571428571 | AA36: R-28 | AB36: =1/28 -> 0.03571428571
C37: WINDOW | E37: 0 | F37: =VLOOKUP(C37,$AG$22:$AH$27,2,FALSE) -> - | G37: 0 | H37: 0 | J37: =IF(N37=0,0,N37) -> 0 | K37: =IF(OR(F37="-",F37=0),0,$J$13) -> 0 | L37: =IF(C37="WINDOW",0,IF(AND(E37=0,F37="-",G37=0,H37=0),0,IF(E37=0,"QUANTITY?",IF(F37="-","U-VALUE?",IF(G37=0,"LENGTH?",IF(H37=0,"HEIGHT?",ROUND(F37*J37*K37,-1))))))) -> 0 | N37: =IF($E37=0,0,$E37*($G37*$H37)) -> 0 | T37: R-30 | U37: =1/30 -> 0.03333333333 | Y37: R-30 | Z37: =1/30 -> 0.03333333333 | AA37: R-30 | AB37: =1/30 -> 0.03333333333
C38: ="WALL 3: "&G39&" ft x "&H39+H40&" ft" -> WALL 3: 0 ft x 0 ft | T38: R-32 | U38: =1/32 -> 0.03125 | Y38: R-32 | Z38: =1/32 -> 0.03125 | AA38: R-32 | AB38: =1/32 -> 0.03125
C39: =IF(C27="THIS WALL IS WARM","ENTIRE WALL or LOWER PORTION",C27) -> ENTIRE WALL or LOWER PORTION | F39: =VLOOKUP(C39,$Y$22:$Z$46,2,FALSE) -> 0 | G39: =D12 -> 0 | H39: =IF(OR(H40=0,H40="",H40=" "),D14,D14-H40) -> 0 | I39: 0 | J39: =IF(OR(C39="THIS WALL IS WARM",N39=0),0,N39) -> 0 | K39: =IF(OR(F39="-",F39=0),0,$J$13) -> 0 | L39: =IF(F39=0,0,IF(OR(F39="-",F39="??"),"U-VALUE?",IF(G39=0,"LENGTH?",IF(H39=0,"HEIGHT?",ROUND(F39*J39*K39,-1))))) -> 0 | N39: =IF($F39="",0,($G39*$H39)-$I39-($P39+P41)) -> 0 | P39: =IF(H41=0,0,IF(H39<H41,H39,H41)*G41*E41) -> 0 | T39: R-40 | U39: =1/40 -> 0.025 | Y39: R-40 | Z39: =1/40 -> 0.025 | AA39: R-40 | AB39: =1/40 -> 0.025
C40: =C28 -> UPPER WALL (if applicable) | F40: =VLOOKUP(C40,$AA$22:$AB$46,2,FALSE) -> 0 | G40: =IF(G28="","",G28) -> 0 | H40: =IF(H28="",0,H28) -> 0 | I40: 0 | J40: =IF(OR(C40="THIS WALL IS WARM",N40=0),0,N40) -> 0 | K40: =IF(OR(F40="-",F40=0),0,$J$13) -> 0 | L40: =IF(C40="THIS WALL IS WARM",0,IF(AND(F40=0,G40=0,H40=0),0,IF(F40="-","U-VALUE?",IF(G40=0,"LENGTH?",IF(H40=0,"HEIGHT?",ROUND(F40*J40*K40,-1)))))) -> 0 | N40: =IF($F40=0,0,($G40*$H40)-$I40-(P40+P42)) -> 0 | P40: =IF(H41=0,0,N41-P39) -> 0 | T40: R-50 | U40: =1/50 -> 0.02 | Y40: Concrete Block - 8" | Z40: 0.51 | AA40: Concrete Block - 8" | AB40: 0.51
C41: DOOR | E41: 0 | F41: =VLOOKUP(C41,$AD$22:$AE$29,2,FALSE) -> - | G41: 0 | H41: 0 | J41: =IF(N41=0,0,N41) -> 0 | K41: =IF(OR(F41="-",F41=0),0,$J$13) -> 0 | L41: =IF(C41="DOOR",0,IF(AND(E41=0,F41="-",G41=0,H41=0),0,IF(E41=0,"QUANTITY?",IF(F41="-","U-VALUE?",IF(G41=0,"LENGTH?",IF(H41=0,"HEIGHT?",ROUND(F41*J41*K41,-1))))))) -> 0 | N41: =IF($E41=0,0,$E41*($G41*$H41)) -> 0 | P41: =IF(H42=0,0,IF(H39<H42,H39,H42)*G42*E42) -> 0 | Y41: Concrete Block - 10" | Z41: 0.49 | AA41: Concrete Block - 10" | AB41: 0.49
C42: DOOR | E42: 0 | F42: =VLOOKUP(C42,$AD$22:$AE$29,2,FALSE) -> - | G42: 0 | J42: =IF(N42=0,0,N42) -> 0 | K42: =IF(OR(F42="-",F42=0),0,$J$13) -> 0 | L42: =IF(C42="DOOR",0,IF(AND(E42=0,F42="-",G42=0,H42=0),0,IF(E42=0,"QUANTITY?",IF(F42="-","U-VALUE?",IF(G42=0,"LENGTH?",IF(H42=0,"HEIGHT?",ROUND(F42*J42*K42,-1))))))) -> 0 | N42: =IF($E42=0,0,$E42*($G42*$H42)) -> 0 | P42: =IF(H42=0,0,N42-P41) -> 0 | T42: Metal Built Up + 0" Fiber Board | U42: 0.88 | Y42: Concrete Block - 12" | Z42: 0.47 | AA42: Concrete Block - 12" | AB42: 0.47
C43: WINDOW | E43: 0 | F43: =VLOOKUP(C43,$AG$22:$AH$27,2,FALSE) -> - | G43: 0 | H43: 0 | J43: =IF(N43=0,"",N43) ->  | K43: =IF(OR(F43="-",F43=0),0,$J$13) -> 0 | L43: =IF(C43="WINDOW",0,IF(AND(E43=0,F43="-",G43=0,H43=0),0,IF(E43=0,"QUANTITY?",IF(F43="-","U-VALUE?",IF(G43=0,"LENGTH?",IF(H43=0,"HEIGHT?",ROUND(F43*J43*K43,-1))))))) -> 0 | N43: =IF($E43=0,0,$E43*($G43*$H43)) -> 0 | T43: Metal Built Up + 0.5" Fiber Board | U43: 0.37 | Y43: Poured Concrete - 6" | Z43: 0.31 | AA43: Poured Concrete - 6" | AB43: 0.31
C44: ="WALL 4: "&G45&" ft x "&H45+H46&" ft" -> WALL 4: 0 ft x 0 ft | T44: Metal Built Up + 1.0" Fiber Board | U44: 0.24 | Y44: Poured Concrete - 8" | Z44: 0.25 | AA44: Poured Concrete - 8" | AB44: 0.25
C45: =IF(C27="THIS WALL IS WARM","ENTIRE WALL or LOWER PORTION",C27) -> ENTIRE WALL or LOWER PORTION | F45: =VLOOKUP(C45,$Y$22:$Z$46,2,FALSE) -> 0 | G45: =$D$13 -> 0 | H45: =H33 -> 0 | I45: 0 | J45: =IF(OR(C45="THIS WALL IS WARM",N45=0),0,N45) -> 0 | K45: =IF(OR(F45="-",F45=0),0,$J$13) -> 0 | L45: =IF(F45=0,0,IF(OR(F45="-",F45="??"),"U-VALUE?",IF(G45=0,"LENGTH?",IF(H45=0,"HEIGHT?",ROUND(F45*J45*K45,-1))))) -> 0 | N45: =IF($F45="",0,($G45*$H45)-$I45-($P45+P47)) -> 0 | P45: =IF(H47=0,0,IF(H45<H47,H45,H47)*G47*E47) -> 0 | T45: Metal Built Up + 1.5" Fiber Board | U45: 0.18 | Y45: Poured Concrete - 10" | Z45: 0.21 | AA45: Poured Concrete - 10" | AB45: 0.21
C46: =C28 -> UPPER WALL (if applicable) | F46: =VLOOKUP(C46,$AA$22:$AB$46,2,FALSE) -> 0 | G46: =IF(G34="","",G34) -> 0 | H46: =H34 -> 0 | I46: 0 | J46: =IF(OR(C46="THIS WALL IS WARM",N46=0),0,N46) -> 0 | K46: 0 | L46: =IF(C46="THIS WALL IS WARM",0,IF(AND(F46=0,G46=0,H46=0),0,IF(F46="-","U-VALUE?",IF(G46=0,"LENGTH?",IF(H46=0,"HEIGHT?",ROUND(F46*J46*K46,-1)))))) -> 0 | N46: =IF($F46="",0,($G46*$H46)-$I46-(P46+P48)) -> 0 | P46: =IF(H47=0,0,N47-P45) -> 0 | T46: Metal Built Up + 2.0" Fiber Board | U46: 0.14 | Y46: Poured Concrete - 12" | Z46: 0.18 | AA46: Poured Concrete - 12" | AB46: 0.18
C47: DOOR | E47: 0 | F47: =VLOOKUP(C47,$AD$22:$AE$29,2,FALSE) -> - | G47: 0 | H47: 0 | J47: =IF(N47=0,0,N47) -> 0 | K47: 0 | L47: =IF(C47="DOOR",0,IF(AND(E47=0,F47="-",G47=0,H47=0),0,IF(E47=0,"QUANTITY?",IF(F47="-","U-VALUE?",IF(G47=0,"LENGTH?",IF(H47=0,"HEIGHT?",ROUND(F47*J47*K47,-1))))))) -> 0 | N47: =IF($E47=0,0,$E47*($G47*$H47)) -> 0 | P47: =IF(H48=0,0,IF(H45<H48,H45,H48)*G48*E48) -> 0 | T47: Metal Built Up + 3.0" Fiber Board | U47: 0.097
C48: DOOR | E48: 0 | F48: =VLOOKUP(C48,$AD$22:$AE$29,2,FALSE) -> - | G48: 0 | H48: 0 | J48: =IF(N48=0,0,N48) -> 0 | K48: 0 | L48: =IF(C48="DOOR",0,IF(AND(E48=0,F48="-",G48=0,H48=0),0,IF(E48=0,"QUANTITY?",IF(F48="-","U-VALUE?",IF(G48=0,"LENGTH?",IF(H48=0,"HEIGHT?",ROUND(F48*J48*K48,-1))))))) -> 0 | N48: =IF($E48=0,0,$E48*($G48*$H48)) -> 0 | P48: =IF(H48=0,0,N48-P47) -> 0 | Y48: ADDITIONAL WALL | Z48: 0 | AA48: ADDITIONAL WALL | AB48: 0
C49: WINDOW | E49: 0 | F49: =VLOOKUP(C49,$AG$22:$AH$27,2,FALSE) -> - | G49: 0 | H49: 0 | J49: =IF(N49=0,"",N49) ->  | K49: 0 | L49: =IF(C49="WINDOW",0,IF(AND(E49=0,F49="-",G49=0,H49=0),0,IF(E49=0,"QUANTITY?",IF(F49="-","U-VALUE?",IF(G49=0,"LENGTH?",IF(H49=0,"HEIGHT?",ROUND(F49*J49*K49,-1))))))) -> 0 | N49: =IF($E49=0,0,$E49*($G49*$H49)) -> 0 | T49: Wood Built Up + 0" Fiber Board | U49: 0.48 | Y49: ADDITIONAL WALL 'U'-Value | Z49: ?? | AA49: WALL - OTHER - Enter 'U'-Value | AB49: ??
C50: ADDITIONAL WALL | F50: =VLOOKUP(C50,$Y$48:$Z$71,2,FALSE) -> 0 | G50: 0 | H50: 0 | I50: 0 | K50: 0 | L50: =IF(F50=0,0,IF(OR(F50="-",F50="??"),"U-VALUE?",IF(G50=0,"LENGTH?",IF(H50=0,"HEIGHT?",ROUND(F50*J50*K50,-1))))) -> 0 | N50: =IF($F50=0,0,$G50*$H50-N51-N52) -> 0 | T50: Wood Built Up + 0.5" Fiber Board | U50: 0.29 | Y50: ADDITIONAL WALL: R-4 | Z50: =1/4 -> 0.25 | AA50: R-4 | AB50: =1/4 -> 0.25
C51: DOOR | E51: 0 | F51: =VLOOKUP(C51,$AD$22:$AE$29,2,FALSE) -> - | G51: 0 | H51: 0 | K51: 0 | L51: =IF(C51="DOOR",0,IF(AND(E51=0,F51="-",G51=0,H51=0),0,IF(E51=0,"QUANTITY?",IF(F51="-","U-VALUE?",IF(G51=0,"LENGTH?",IF(H51=0,"HEIGHT?",ROUND(F51*J51*K51,-1))))))) -> 0 | N51: =IF($E51="",0,$E51*($G51*$H51)) -> 0 | T51: Wood Built Up + 1.0" Fiber Board | U51: 0.21 | Y51: ADDITIONAL WALL: R-5 | Z51: =1/5 -> 0.2 | AA51: R-5 | AB51: =1/5 -> 0.2
C52: WINDOW | E52: 0 | F52: =VLOOKUP(C52,$AG$22:$AH$27,2,FALSE) -> - | G52: 0 | H52: 0 | K52: 0 | L52: =IF(C52="WINDOW",0,IF(AND(E52=0,F52="-",G52=0,H52=0),0,IF(E52=0,"QUANTITY?",IF(F52="-","U-VALUE?",IF(G52=0,"LENGTH?",IF(H52=0,"HEIGHT?",ROUND(F52*J52*K52,-1))))))) -> 0 | N52: =IF($E52="",0,$E52*($G52*$H52)) -> 0 | T52: Wood Built Up + 1.5" Fiber Board | U52: 0.16 | Y52: ADDITIONAL WALL: R-8 | Z52: =1/8 -> 0.125 | AA52: R-8 | AB52: =1/8 -> 0.125
C53: ADDITIONAL WALL | F53: =VLOOKUP(C53,$Y$48:$Z$71,2,FALSE) -> 0 | G53: 0 | H53: 0 | I53: 0 | K53: 0 | L53: =IF(F53=0,0,IF(OR(F53="-",F53="??"),"U-VALUE?",IF(G53=0,"LENGTH?",IF(H53=0,"HEIGHT?",ROUND(F53*J53*K53,-1))))) -> 0 | N53: =IF($F53=0,0,$G53*$H53-N54-N55) -> 0 | T53: Wood Built Up + 2.0" Fiber Board | U53: 0.14 | Y53: ADDITIONAL WALL: R-10 | Z53: =1/10 -> 0.1 | AA53: R-10 | AB53: =1/10 -> 0.1
C54: DOOR | E54: 0 | F54: =VLOOKUP(C54,$AD$22:$AE$29,2,FALSE) -> - | G54: 0 | H54: 0 | K54: 0 | L54: =IF(C54="DOOR",0,IF(AND(E54=0,F54="-",G54=0,H54=0),0,IF(E54=0,"QUANTITY?",IF(F54="-","U-VALUE?",IF(G54=0,"LENGTH?",IF(H54=0,"HEIGHT?",ROUND(F54*J54*K54,-1))))))) -> 0 | N54: =IF($E54="",0,$E54*($G54*$H54)) -> 0 | T54: Wood Built Up + 3.0" Fiber Board | U54: 0.1 | Y54: ADDITIONAL WALL: R-11 | Z54: =1/11 -> 0.09090909091 | AA54: R-11 | AB54: =1/11 -> 0.09090909091
C55: WINDOW | E55: 0 | F55: =VLOOKUP(C55,$AG$22:$AH$27,2,FALSE) -> - | G55: 0 | H55: 0 | K55: 0 | L55: =IF(C55="WINDOW",0,IF(AND(E55=0,F55="-",G55=0,H55=0),0,IF(E55=0,"QUANTITY?",IF(F55="-","U-VALUE?",IF(G55=0,"LENGTH?",IF(H55=0,"HEIGHT?",ROUND(F55*J55*K55,-1))))))) -> 0 | N55: =IF($E55="",0,$E55*($G55*$H55)) -> 0 | Y55: ADDITIONAL WALL: R-12 | Z55: =1/12 -> 0.08333333333 | AA55: R-12 | AB55: =1/12 -> 0.08333333333
C56: ADDITIONAL WALL | F56: =VLOOKUP(C56,$Y$48:$Z$71,2,FALSE) -> 0 | G56: 0 | H56: 0 | I56: 0 | K56: 0 | L56: =IF(F56=0,0,IF(OR(F56="-",F56="??"),"U-VALUE?",IF(G56=0,"LENGTH?",IF(H56=0,"HEIGHT?",ROUND(F56*J56*K56,-1))))) -> 0 | N56: =IF($F56=0,0,$G56*$H56-N57-N58) -> 0 | Y56: ADDITIONAL WALL: R-13 | Z56: =1/14 -> 0.07142857143 | AA56: R-13 | AB56: =1/14 -> 0.07142857143
C57: DOOR | E57: 0 | F57: =VLOOKUP(C57,$AD$22:$AE$29,2,FALSE) -> - | G57: 0 | H57: 0 | K57: 0 | L57: =IF(C57="DOOR",0,IF(AND(E57=0,F57="-",G57=0,H57=0),0,IF(E57=0,"QUANTITY?",IF(F57="-","U-VALUE?",IF(G57=0,"LENGTH?",IF(H57=0,"HEIGHT?",ROUND(F57*J57*K57,-1))))))) -> 0 | N57: =IF($E57="",0,$E57*($G57*$H57)) -> 0 | Y57: ADDITIONAL WALL: R-15 | Z57: =1/16 -> 0.0625 | AA57: R-15 | AB57: =1/16 -> 0.0625
C58: WINDOW | E58: 0 | F58: =VLOOKUP(C58,$AG$22:$AH$27,2,FALSE) -> - | G58: 0 | H58: 0 | K58: 0 | L58: =IF(C58="WINDOW",0,IF(AND(E58=0,F58="-",G58=0,H58=0),0,IF(E58=0,"QUANTITY?",IF(F58="-","U-VALUE?",IF(G58=0,"LENGTH?",IF(H58=0,"HEIGHT?",ROUND(F58*J58*K58,-1))))))) -> 0 | N58: =IF($E58="",0,$E58*($G58*$H58)) -> 0 | Y58: ADDITIONAL WALL: R-18 | Z58: =1/18 -> 0.05555555556 | AA58: R-18 | AB58: =1/18 -> 0.05555555556
G59: Infiltration Loss, QA= | H59: 0.018 | I59: x VAC x DT | J59: =IF(N59>J60,N59,0) -> 0 | K59: Btuh | N59: =IF(OR(D11=0,D11=" ",D11=""),0,D11*H59*$J$13*C65) -> 0 | Y59: ADDITIONAL WALL: R-19 | Z59: =1/19 -> 0.05263157895 | AA59: R-19 | AB59: =1/19 -> 0.05263157895
I60: ="Mechanical Ventilation = "&TEXT('1. Project Details'!C36,"0,000")&" cfh " -> Mechanical Ventilation = 0,000 cfh | J60: =IF('1. Project Details'!$C$34="",0,IF('1. Project Details'!$G$39=0,$C$66*$J$13*$H$59/1000,'1. Project Details'!C36*$J$13*$H$59)) -> 0 | K60: Btuh | Y60: ADDITIONAL WALL: R-20 | Z60: =1/20 -> 0.05 | AA60: R-20 | AB60: =1/20 -> 0.05
I61: Transmission Loss, QT = S(U x A x DT) | J61: =IF(SUM(L19:L58)=0,0,SUM(L19:L58)) -> 0 | K61: Btuh | N61: ='1. Project Details'!C27 -> 0 | Y61: ADDITIONAL WALL: R-28 | Z61: =1/28 -> 0.03571428571 | AA61: R-28 | AB61: =1/28 -> 0.03571428571
I62: Cold Material + Vehicle Loss, QM | J62: =N61*N62*J13+N63 -> 0 | K62: Btuh | N62: ='1. Project Details'!C37 -> 0 | Y62: ADDITIONAL WALL: R-30 | Z62: =1/30 -> 0.03333333333 | AA62: R-30 | AB62: =1/30 -> 0.03333333333
D63: Building Summary | I63: Sources of Heat Gain | J63: ='1. Project Details'!$C$29*-1 -> 0 | K63: Btuh deducted | N63: ='1. Project Details'!C38 -> 0 | Y63: ADDITIONAL WALL: R-32 | Z63: =1/32 -> 0.03125 | AA63: R-32 | AB63: =1/32 -> 0.03125
C64: =J14 -> 0 | D64: =$N$15&" floor area" -> ft² floor area | I64: Total Heat Loss, QN = QA + QT + QM | J64: =IF('1. Project Details'!$C$45="",J61+J59+J60+J62+J63,'1. Project Details'!$C$45) -> 0 | K64: Btuh | N64: ='1. Project Details'!C39 -> 0 | Y64: ADDITIONAL WALL: R-40 | Z64: =1/40 -> 0.025 | AA64: R-40 | AB64: =1/40 -> 0.025
C65: =IF(J14=0,0,J14*D14-D15) -> 0 | D65: =LEFT('1. Project Details'!$D$28,3)&" building volume" -> ft building volume | Y65: WALL - Concrete Block - 8" | Z65: 0.51 | AA65: WALL - Concrete Block - 8" | AB65: 0.51
C66: =IF(J14=0,0,C65*D11) -> 0 | D66: =LEFT('1. Project Details'!$I$36,4)&"/hr air change" -> ft³/hr air change | I66: floor area specific loss | J66: =J64/C64 ->  | K66: =" Btuh/"&$N$15 -> Btuh/ ft² | Y66: WALL - Concrete Block - 10" | Z66: 0.49 | AA66: WALL - Concrete Block - 10" | AB66: 0.49
C67: =SUM(J22:J58) -> 0 | D67: =$N$15&" total building surface" -> ft² total building surface | I67: volume specific loss | J67: =J64/C65 ->  | K67: =" Btuh/"&LEFT('1. Project Details'!$D$28,4) -> Btuh/ ft³ | Y67: WALL - Concrete Block - 12" | Z67: 0.47 | AA67: WALL - Concrete Block - 12" | AB67: 0.47
Y68: WALL - Poured Concrete - 6" | Z68: 0.31 | AA68: WALL - Poured Concrete - 6" | AB68: 0.31
Y69: WALL - Poured Concrete - 8" | Z69: 0.25 | AA69: WALL - Poured Concrete - 8" | AB69: 0.25
B70: Instructions | Y70: WALL - Poured Concrete - 10" | Z70: 0.21 | AA70: WALL - Poured Concrete - 10" | AB70: 0.21
Y71: WALL - Poured Concrete - 12" | Z71: 0.18 | AA71: WALL - Poured Concrete - 12" | AB71: 0.18
B72: Project Details - Enter data on the 1. Project Details sheet
B74: Information needed for input into this section of the tool:
B75: 1. Enter the heated volume not in this design to complete the project information needed for the calculations
B77: Calculations Section
B78: 1. Use the dropdowns to select material or insulation value of each building component in the Building Component column.
B79: 2. Enter or revise project specific 'U'-Values, Length, Width, etc. for each building component

Sheet IR System Selection
B2: IR System Selection
D4: Project Country* | E4: ='1. Project Details'!C6 -> USA | O4: USA
O5: CANADA
B6: CURRENT CONVENTIONAL HEATING SYSTEM INPUT | I6: =TODAY() -> 2015-09-08
D8: Calculated Heat Loss | E8: =IF('2. Heat Loss Calculator'!$J$64>0,'2. Heat Loss Calculator'!$J$64,"None") -> None | F8: Btuh
D9: (Results from the compuSchwank II© heat loss calculator)
C10: =IF(E8="None","TOTAL INPUT OF HEATERS TO BE REPLACED","TOTAL INPUT REQUIRED TO SATISFY HEAT LOSS") -> TOTAL INPUT OF HEATERS TO BE REPLACED
D11: Current System | E11: Input (Btuh) | F11: Efficiency | G11: =IF(E24="?","","Cost / Hour Operation") -> Cost / Hour Operation
D12: Unit Heaters | E12: 80000 | F12: 0.8 | G12: =IF(OR($E$24="?",E12=0),"",E12/$F$23*$E$24) -> 1.043478261
D13: Roof Top | F13: 0.8 | G13: =IF(OR($E$24="?",E13=0),"",E13/$F$23*$E$24) -> 
D14: Boiler | F14: 0.8 | G14: =IF(OR($E$24="?",E14=0),"",E14/$F$23*$E$24) -> 
D15: Other Infrared | G15: =IF(OR($E$24="?",E15=0),"",E15/$F$23*$E$24) -> 
D17: Total current heat input to be replaced is | E17: =SUM(E12:E15) -> 80000 | F17: =IF(OR($E$24="?",E17=0),"Btuh","Btuh: Operation fuel costs "&TEXT(R17,"$0.00")&" / Hour ") -> Btuh: Operation fuel costs $1.04 / Hour | R17: =SUM(G12:H15) -> 1.043478261
D18: The current input satisfies a Heat Loss1of | E18: =(E12*F12)+(E13*F13)+(E14*F14)+(E15/0.85) -> 64000 | F18: ="Btuh "&"(input x system efficiency)" -> Btuh (input x system efficiency)
B20: FUEL COST INFORMATION (if available)
D22: Fuel Type | E22: Natural Gas | O22: Canada | P22: Natural Gas | R22: =IF(AND(E4="USA",E22="Natural Gas"),"Therm",IF(AND(E4="Canada",E22="Natural Gas"),"cu. meter",IF(E4="USA","gallon","liter"))) -> Therm | T22: =IF(E23="Therm",100000,IF(E23="1000 cu ft",1000000,IF(E23="cu. Meter",34500,IF(AND(E22="Propane",E4="USA"),91523,IF(AND(E22="Propane",E4="Canada"),24180,IF(AND(E22="Oil",E4="USA"),138800,IF(AND(E22="Oil",E4="Canada"),36500,""))))))) -> 34500
D23: Fuel Units | E23: cu. meter | F23: =IF(OR(E23="",E23=" ",E23=0,E23="?"),"",T22) -> 34500 | G23: ="Btuh / "&E23 -> Btuh / cu. meter | P23: Propane | R23: =IF(AND(E4="USA",E22="Natural Gas"),"1000 cu ft","") -> 1000 cu ft | T23: =IF(E23="Therm",100000,IF(E23="1000 cu ft",1000000,IF(E23="cu. Meter",34500,IF(AND(E22="Propane",E4="USA"),91523,IF(AND(E22="Propane",E4="Canada"),24180,IF(AND(E22="Oil",E4="USA"),138800,IF(AND(E22="Oil",E4="Canada"),36500,""))))))) -> 34500
D24: Customer's Unit Fuel Cost | E24: 0.45 | F24: =IF(OR(E24=0,E24="?"),""," /"&E23) -> /cu. meter | P24: ? | R24: ?
B26: IR HEATING SYSTEM RECOMMENDATIONS
D28: =IF(E28="?", "HEIGHT ABOVE FLOOR IR heaters mounted?","IR heaters are to be mounted*") -> IR heaters are to be mounted* | E28: 15 | F28: =IF(AND(E17+E15>0,OR(E28=0,E28="?"))," ft "&"<-- MOUNTING HEIGHT NEEDED TO SELECT CORRECT HEATER INPUT",IF($E$4="CANADA",(IF(E28<2.5,"MIN. MOUNTING HEIGHT = 2.5 M ABOVE FLOOR"," ft above floor")),(IF(E28<8,"MIN. MOUNTING HEIGHT = 8 FT ABOVE FLOOR"," ft above floor")))) -> ft above floor
B29: ="Current heating system input of "&(TEXT(E17,"0,000"))&" Btuh satisfies a heat loss of "&(TEXT(E18,"0,000"))&" Btuh"&IF(E24="?",""," and costs "&TEXT(G12,"$0.00")&"/hour to operate") -> Current heating system input of 80,000 Btuh satisfies a heat loss of 64,000 Btuh and costs $1.04/hour to operate
B31: RECOMMENDED HEATERS
B33: Tube Heaters | C33: Model | D33: Qty | E33: System Input 3 | F33: Reduced Heat Loss 2 | G33: =IF(E24="?","","Cost / 60 min. Operation") -> Cost / 60 min. Operation | I33: =IF(E24="?","","Reduction of Cost & Carbon") -> Reduction of Cost & Carbon | P33: Final | Q33: 1st | R33: Len | S33: 2nd | T33: ="Qty @ "&Q36 -> Qty @ 110 | U33: ="RndUp @ "&Q36 -> RndUp @ 110 | V33: DRndUp | W33: ="RndDn @ "&Q36 -> RndDn @ 110 | X33: RndDn % | Y33: ="Qty @ "&S36 -> Qty @ 80 | Z33: ="RndUp @ "&S36 -> RndUp @ 80 | AA33: DRndUp | AB33: ="RndDn @ "&S36 -> RndDn @ 80 | AC33: RndDn %
E34: (Btuh) | F34: (Btuh)
B35: Commercial / Industrial Application
B36: Premier Model | C36: =IF(OR(E28=0,E28="?",E18=0),"IQ",IF(P36="40","P40U-I","IQ-"&$P$36&"-"&$R$36)) -> IQ-60-20 | D36: =IF(OR(E28=0,E28="?",E18=0),"",E36/(P36*1000)) -> 1 | E36: =IF(OR(E28=0,E28="?",E18=0),"",O36*P36*1000) -> 60000 | F36: =$E$18*0.8 -> 51200 | G36: =IF(OR($E$24="?",F36=0),"",F36/$F$23*$E$24) -> 0.667826087 | I36: =IF(OR($E$24="?",F36=0),"",($R$17-G36)/$R$17) -> 0.36 | O36: =IF(X36>=0.98,W36,IF(AC36>=0.98,AB36,U36)) -> 1 | P36: =VLOOKUP(P39,R39:S43,2,FALSE) -> 60 | Q36: =IF($E28<8,"",IF($E28<10,"40",IF($E28<12,"60",IF($E28<14,"80",IF($E28<16,"110",IF($E28<18,"130",IF($E28<20,"155",IF($E28<22,"175","200")))))))) -> 110 | R36: =IF($E28<8,"",IF($P36="40","",IF($P36="60","20",IF($P36="80","20",IF($P36="110","30",IF($P36="130","30",IF($P36="155","40",IF($P36="175","50","50")))))))) -> 20 | S36: =IF($Q36="40","40",IF($Q36="60","40",IF($Q36="80","60",IF($Q36="110","80",IF($Q36="130","110",IF($Q36="155","130",IF($Q36="175","155","175"))))))) -> 80 | T36: =F36/(Q36*1000) -> 0.4654545455 | U36: =ROUNDUP(T36,0) -> 1 | V36: =U36-T36 -> 0.5345454545 | W36: =ROUNDDOWN(T36,0) -> 0 | X36: =W36/T36 -> 0 | Y36: =F36/(S36*1000) -> 0.64 | Z36: =ROUNDUP(Y36,0) -> 1 | AA36: =Z36-Y36 -> 0.36 | AB36: =ROUNDDOWN(Y36,0) -> 0 | AC36: =AB36/Y36 -> 0
B37: Builder Model | C37: =IF(OR(E28=0,E28="?",E18=0),"ITB",IF(P36="40","P40U-I","ITB-"&$P$37&"-"&$R$37)) -> ITB-60-20 | D37: =IF(OR(E28=0,E28="?",E18=0),"",E37/(P37*1000)) -> 1 | E37: =IF(OR(E28=0,E28="?",E18=0),"",O37*P37*1000) -> 60000 | F37: =$E$18*0.85 -> 54400 | G37: =IF(OR($E$24="?",F37=0),"",F37/$F$23*$E$24) -> 0.7095652174 | I37: =IF(OR($E$24="?",F37=0),"",($R$17-G37)/$R$17) -> 0.32 | O37: =IF(X37>=0.98,W37,IF(AC37>=0.98,AB37,U37)) -> 1 | P37: =VLOOKUP(W39,Y39:Z43,2,FALSE) -> 60 | Q37: =IF($E28<8,"",IF($E28<10,"40",IF($E28<12,"60",IF($E28<14,"80",IF($E28<16,"110",IF($E28<18,"130",IF($E28<20,"155",IF($E28<22,"175","200")))))))) -> 110 | R37: =IF($E28<8,"",IF($P37="40","",IF($P37="60","20",IF($P37="80","20",IF($P37="110","30",IF($P37="130","30",IF($P37="155","40",IF($P37="175","50","50")))))))) -> 20 | S37: =IF($Q37="40","40",IF($Q37="60","40",IF($Q37="80","60",IF($Q37="110","80",IF($Q37="130","110",IF($Q37="155","130",IF($Q37="175","155","175"))))))) -> 80 | T37: =F37/(Q37*1000) -> 0.4945454545 | U37: =ROUNDUP(T37,0) -> 1 | V37: =U37-T37 -> 0.5054545455 | W37: =ROUNDDOWN(T37,0) -> 0 | X37: =W37/T37 -> 0 | Y37: =F37/(S37*1000) -> 0.68 | Z37: =ROUNDUP(Y37,0) -> 1 | AA37: =Z37-Y37 -> 0.32 | AB37: =ROUNDDOWN(Y37,0) -> 0 | AC37: =AB37/Y37 -> 0
B38: Builder Model 'U'-tube | C38: =IF(OR(E28=0,E28="?",E18=0),"ITBU",IF(P36="40","P40U-I","ITBU-"&$P$37&"-"&$R$38)) -> ITBU-60-10 | D38: =D37 -> 1 | E38: =E37 -> 60000 | F38: =$E$18*0.85 -> 54400 | G38: =IF(OR($E$24="?",F38=0),"",F38/$F$23*$E$24) -> 0.7095652174 | I38: =IF(OR($E$24="?",F38=0),"",($R$17-G38)/$R$17) -> 0.32 | R38: =IF($E28<8,"",IF($P37="60","10",IF($P37="80","10",IF($P37="110","20",IF($P37="130","20",IF($P37="155","20",IF($P37="175","30","30"))))))) -> 10
B39: Two Stage Operation | O39: =VLOOKUP(P39,R39:S43,2,FALSE) -> 60 | P39: =MIN(R39:R43) -> 8.8 | Q39: =$F$36/1000 -> 51.2 | R39: =T39-Q39 -> 28.8 | S39: =IF(X36>=0.98,Q36,IF(AC36>=0.98,S36,IF(U36<Z36,Q36,IF(AA36<V36,S36,S36)))) -> 80 | T39: =S39*$O$36 -> 80 | V39: =VLOOKUP(W39,Y39:Z43,2,FALSE) -> 60 | W39: =MIN(Y39:Y43) -> 5.6 | X39: =$F$37/1000 -> 54.4 | Y39: =AA39-X39 -> 25.6 | Z39: =IF(E28="?","",IF(X37>=0.98,Q37,IF(AC37>=0.98,S37,IF(U37<Z37,Q37,IF(AA37<V37,S37,S37))))) -> 80 | AA39: =Z39*$O$36 -> 80
B40: Two Stage | C40: =IF(OR(E28=0,E28="?",E18=0,P37="40"),"ITT","ITT-"&$P$37&"-"&$R$37) -> ITT-60-20 | D40: =IF(OR(P37="40",P37="60"),"",D37) ->  | E40: =IF(P37="40","",E37) -> 60000 | F40: =$E$18*0.85 -> 54400 | G40: =IF(OR($E$24="?",F40=0),"",F40/$F$23*$E$24) -> 0.7095652174 | I40: =IF(OR($E$24="?",F40=0),"",($R$17-G40)/$R$17) -> 0.32 | Q40: =$F$36/1000 -> 51.2 | R40: =IF(T40-Q40<0,R39+1,T40-Q40) -> 8.8 | S40: =IF($S39="40","40",IF($S39="60","40",IF($S39="80","60",IF($S39="110","80",IF($S39="130","110",IF($S39="155","130",IF($S39="175","155","175"))))))) -> 60 | T40: =S40*$O$36 -> 60 | X40: =$F$37/1000 -> 54.4 | Y40: =IF(AA40-X40<0,Y39+1,AA40-X40) -> 5.6 | Z40: =IF($S39="40","40",IF($S39="60","40",IF($S39="80","60",IF($S39="110","80",IF($S39="130","110",IF($S39="155","130",IF($S39="175","155","175"))))))) -> 60 | AA40: =Z40*$O$36 -> 60
B41: Two Stage 'U'-tube | C41: =IF(OR(E28=0,E28="?",E18=0,P37="40"),"ITTU","ITTU-"&$P$37&"-"&$R$38) -> ITTU-60-10 | D41: =IF(OR(P37="40",P37="60"),"",D37) ->  | E41: =IF(P37="40","",E37) -> 60000 | F41: =F37 -> 54400 | G41: =IF(OR($E$24="?",F41=0),"",F41/$F$23*$E$24) -> 0.7095652174 | I41: =IF(OR($E$24="?",F41=0),"",($R$17-G41)/$R$17) -> 0.32 | Q41: =$F$36/1000 -> 51.2 | R41: =IF(T41-Q41<0,R40+1,T41-Q41) -> 9.8 | S41: =IF($S40="40","40",IF($S40="60","40",IF($S40="80","60",IF($S40="110","80",IF($S40="130","110",IF($S40="155","130",IF($S40="175","155","175"))))))) -> 40 | T41: =S41*$O$36 -> 40 | X41: =$F$37/1000 -> 54.4 | Y41: =IF(AA41-X41<0,Y40+1,AA41-X41) -> 6.6 | Z41: =IF($S40="40","40",IF($S40="60","40",IF($S40="80","60",IF($S40="110","80",IF($S40="130","110",IF($S40="155","130",IF($S40="175","155","175"))))))) -> 40 | AA41: =Z41*$O$36 -> 40
B42: Car Wash, Outdoor & Harsh Environment | Q42: =$F$36/1000 -> 51.2 | R42: =IF(T42-Q42<0,R41+1,T42-Q42) -> 10.8 | S42: =IF($S41="40","40",IF($S41="60","40",IF($S41="80","60",IF($S41="110","80",IF($S41="130","110",IF($S41="155","130",IF($S41="175","155","175"))))))) -> 40 | T42: =S42*$O$36 -> 40 | X42: =$F$37/1000 -> 54.4 | Y42: =IF(AA42-X42<0,Y41+1,AA42-X42) -> 7.6 | Z42: =IF($S41="40","40",IF($S41="60","40",IF($S41="80","60",IF($S41="110","80",IF($S41="130","110",IF($S41="155","130",IF($S41="175","155","175"))))))) -> 40 | AA42: =Z42*$O$36 -> 40
B43: Harsh Environment | C43: =IF(OR(E28=0,E28="?",E18=0),"IW",IF(P36="40","P40U-IW","IW-"&$P$37&"-"&$R$37)) -> IW-60-20 | D43: =D37 -> 1 | E43: =E37 -> 60000 | F43: =F37 -> 54400 | G43: =G37 -> 0.7095652174 | I43: =IF(OR($E$24="?",F43=0),"",($R$17-G43)/$R$17) -> 0.32 | Q43: =$F$36/1000 -> 51.2 | R43: =IF(T43-Q43<0,R42+1,T43-Q43) -> 11.8 | S43: =IF($S42="40","40",IF($S42="60","40",IF($S42="80","60",IF($S42="110","80",IF($S42="130","110",IF($S42="155","130",IF($S42="175","155","175"))))))) -> 40 | T43: =S43*$O$36 -> 40 | X43: =$F$37/1000 -> 54.4 | Y43: =IF(AA43-X43<0,Y42+1,AA43-X43) -> 8.6 | Z43: =IF($S42="40","40",IF($S42="60","40",IF($S42="80","60",IF($S42="110","80",IF($S42="130","110",IF($S42="155","130",IF($S42="175","155","175"))))))) -> 40 | AA43: =Z43*$O$36 -> 40
B44: Outdoor/Car Wash | C44: =IF(OR(E28=0,E28="?",E18=0),"IWP",IF(P36="40","P40U-IP","IWP-"&$P$37&"-"&$R$37)) -> IWP-60-20 | D44: =D37 -> 1 | E44: =E37 -> 60000 | F44: =F37 -> 54400 | G44: =G37 -> 0.7095652174 | I44: =IF(OR($E$24="?",F44=0),"",($R$17-G44)/$R$17) -> 0.32
B46: High Intensity Heater Model | D46: Qty | E46: System Input 3 | F46: Reduced Heat Loss 2 | G46: =IF(E24="?","","Cost / 60 min. Operation") -> Cost / 60 min. Operation | I46: =IF(E24="?","","Minimum Savings") -> Minimum Savings | T46: ="Qty @ "&Q49 -> Qty @ 10 | U46: ="RndUp @ "&Q49 -> RndUp @ 10 | V46: DRndUp | W46: ="RndDn @ "&Q49 -> RndDn @ 10 | X46: RndDn % | Y46: ="Qty @ "&S49 -> Qty @ 6 | Z46: ="RndUp @ "&S49 -> RndUp @ 6 | AA46: DRndUp | AB46: ="RndDn @ "&S49 -> RndDn @ 6 | AC46: RndDn %
E47: (Btuh) | F47: (Btuh)
B48: Commercial / Industrial Application
B49: IL | C49: =IF(OR(E28=0,E18=0),"",P50) -> 10 | D49: =IF(OR(E28=0,E18=0),"",E49/R50) -> 2 | E49: =IF(OR(E28=0,E18=0),"",U50*R50) -> 70000 | F49: =$E$18*0.8 -> 51200 | G49: =IF(OR($E$24="?",F49=0),"",F49/$F$23*$E$24) -> 0.667826087 | I49: =IF(OR($E$24="?",F49=0),"",($R$17-G49)/$R$17) -> 0.36 | Q49: =IF($E28<10,""," "&IF($E28<13,"6",IF($E28<15.5,"10",IF($E28<18.5,"13",IF($E28<21.5,"18",IF($E28<32,"26",IF($E28<34,"36","52"))))))) -> 10 | R49: =IF(Q49=" 6",21500,IF(Q49=" 10",35000,IF(Q49=" 13",50000,IF(Q49=" 18",71500,IF(Q49=" 26",100000,IF(Q49=" 36",150000,IF(Q49=" 52",200000,0))))))) -> 35000 | S49: =IF(Q49=" 6",0,IF(Q49=" 10"," 6",IF(Q49=" 13"," 10",IF(Q49=" 18"," 13",IF(Q49=" 26"," 18",IF(Q49=" 36"," 26",IF(Q49=" 52"," 36",""))))))) -> 6 | T49: =IF(S49=0,1,IF(S49=" 6",21500,IF(S49=" 10",35000,IF(S49=" 13",50000,IF(S49=" 18",71500,IF(S49=" 26",100000,IF(S49=" 36",150000,IF(S49=" 52",200000,0)))))))) -> 21500
P50: =IF(AC50<0.021,S49,IF(U50<Z50,Q49,IF(AA50<V50,S49))) -> 10 | R50: =IF(P50=Q49,R49,T49) -> 35000 | T50: =F49/(R49) -> 1.462857143 | U50: =ROUNDUP(T50,0) -> 2 | V50: =U50-T50 -> 0.5371428571 | W50: =ROUNDDOWN(T50,0) -> 1 | X50: =W50/T50 -> 0.68359375 | Y50: =F49/T49 -> 2.381395349 | Z50: =ROUNDUP(Y50,0) -> 3 | AA50: =Z50-Y50 -> 0.6186046512 | AB50: =ROUNDDOWN(Y50,0) -> 2 | AC50: =AB50/Y50 -> 0.83984375
B51: NOTES:
B52: 1 'Heat Loss Satisfied' is calculated by multiplying System Input by System Efficiency
B53: e.g.: 125,000 Btuh unit heater that is 80% efficient will satisfy a heat loss of 125,000 x 0.8 = 100,000 Btuh
B54: 2 'Reduced Heat Loss': All radiant systems reduce heat loss. The 'reduction factor' depends upon the radiant efficiency of the radiant
B55: heater - the greater the radiant efficiency, the larger the reduction factor. 'Operating Input' is calculated by multiplying the heat loss
B56: to be satisfied by one minus the radiant reduction factor.
B57: e.g.: Using a radiant heater that has a reduction factor of 15%, a heat loss of 100,000 Btuh will be satisfied
B58: input of 100,000 x (1 - 0.15) = 100,000 x 0.85 = 85,000 Btuh
B59: 3 'Radiant System Input' is the nominal input of the system based on the number of heaters required multiplied by the unit input
B60: of each heater. In operation,the radiant heating system will only consume the amount of fuel required to satisfy the
B61: heat loss ( = 'Operating Input')
B64: Instructions
A66: 1 | B66: Current Conventional Heating System Input:
B68: Information needed for input into this section of the tool:
B69: 1. The total input of the current heaters being considered for replacement
B70: 2. The efficiency for the type of heater:
B71: - 80% is the default value (2008 Standard for Unit Heaters and Boilers)
B72: - You can revise these values as required - for 'Older' Systems: Forced Air - use 70%; Boiler - use 65%
B74: The Tool calculates the following:
B75: a) The Total Current Input to be replaced
B76: b) A 'satisfied heat loss' based on the heater efficiencies
B77: - for example: at 80% efficiency, 1.25 million Btuh input unit heaters will satisfy a heat loss of 1 million
A79: 2 | B79: Fuel Cost:
B81: Information needed for input into this section of the tool - base on 60 mins continuous operation of various system inputs:
B82: 1. The Fuel Type of the project - Natural Gas, Propane or Oil
B83: 2. The Fuel Units of the project - Therm, 1000 cu ft, cubic meters, gallons, liters
B84: 3. The customer's Unit Fuel Price
A86: 3 | B86: Radiant Heating System Recommendations:
B88: Information needed for input into this section of the tool - height of heaters determines proper heater input
B89: 1. The height above the floor that the IR heaters will be mounted
B91: The Tool calculates the following:
B92: a) The quantities and sizes of radiant tube heaters, and high-intensity heaters
B94: IF, information was completed in Section 1:
B95: b) Comparative 60 mins operation costs for all heaters

Sheet Tube Htr Kits
V1: =IF(J12="Btuh x Tube Length",0,1) -> 1
B3: Tube Heater Kit & Accessory Selection Guide | Q3: =LEFT(J11,FIND(" ",J11)-1) -> Now | S3: Now | V3: =AND(U7=40,U8="STW-JZ") -> 
U4: USA
H5: Select your Country* | J5: ='1. Project Details'!C6 -> USA | L5: - Selects proper gas connector | R5: =IF(ISERR(U7),U10,U7) ->  | U5: CANADA | V5: ,IF(AND(U7="40",U8="SPW-JZ"),"P40U-P"
B7: TUBE HEATER REQUIREMENTS | R7: =TODAY() -> 2015-09-08 | U7: =IF(V1=0,"",VALUE(LEFT(J12,FIND(",",J12)-1))) -> 
U8: =LEFT(J11,FIND(" ",J11)-1) -> Now | V8: =IF(U8="P40R",U8,IF(AND(U7=40,U8="IW"),"P40U-IW",IF(AND(U7=40,U8="IWP"),"P40U-IP","P40U-I"))) -> 
H10: 1. Application* | J10: Select APPLICATION Here | U10: =IF(FIND("/",J12)=3,VALUE(LEFT(J12,2)),VALUE(LEFT(J12,3))) -> 
H11: 2. Heater Series* | J11: Now Select Tube Heater Series Here | U11: =IF(U7=40,V8,LEFT(U12,LEN(U12)-3)) -> 
H12: 3. Input & Length* | J12: SELECT Btuh x Tube Length | U12: =IF(U7=40,V8,LEFT(J11,FIND(" ",J11)-1)&"-"&VLOOKUP(J12,K67:L89,2,FALSE)) -> 
H13: 4. Quantity Required* | U13: =ROUNDUP(RIGHT(U12,2)/10,0) -> 
H14: Chain length required at each hanger | M14: ="ft (a value here will calculate the required Suspension Hardware)" -> ft (a value here will calculate the required Suspension Hardware) | U14: =IF(U7=40,V8,LEFT(U11,3)) -> 
B16: TUBE HEATER KIT ORDER
D18: KITS: | G18: Qty | H18: Part # | J18: Description | U18: =MID(U11,FIND("-",U11)-1,1) -> 
D19: =IF(V1=0,"Burner Kit",IF(U7=40, "Complete Packaged Heater","Burner Kit ")) ->  | G19: =$J$13 -> 0 | H19: =IF($J$12="Btuh x Tube Length","",VLOOKUP($U$11,'1'!$A:$C,3,FALSE)) ->  | J19: =IF($J$12="Btuh x Tube Length","",VLOOKUP($U$11,'1'!$A:$D,4,FALSE)) ->  | U19: 'U' Tube
D20: =IF(U7=40,"",IF(H21=" ","Tube Kit ","Primary Tube Kit ")) ->  | G20: =IF(U7=40,"",IF($J$13="?","?",VLOOKUP($U$12,'2'!$A:$B,2,FALSE)*$J$13)) ->  | H20: =IF(U7=40,"",IF($J$12="Btuh x Tube Length","",VLOOKUP($U$12,'2'!$A:$C,3,FALSE))) ->  | J20: =IF(Q3="p40r","This heater is approved as a 'Vented Room Heater'",IF(U7=40,"",IF($J$12="Btuh x Tube Length","",VLOOKUP($U$12,'2'!$A:$D,4,FALSE)))) ->  | U20: =IF(U18="U",(U13*4+1),0) -> 
D21: =IF(U7=40, "",IF(J12="Btuh x Tube Length ","",IF(G21=" "," ","And Secondary Tube Kit "))) ->  | G21: =IF(U7=40,"",IF($J$13="?","",IF($H$21=" "," ",VLOOKUP($U$12,'2'!$A:$F,5,FALSE)*$J$13))) ->  | H21: =IF(U7=40,"",IF($J$12="Btuh x Tube Length","",IF(VLOOKUP($U$12,'2'!$A:$F,6,FALSE)=0," ",VLOOKUP(U12,'2'!$A:$F,6,FALSE)))) ->  | J21: =IF(U7=40,"",IF($J$12="Btuh x Tube Length","",IF(VLOOKUP($U$12,'2'!$A:$H,7,FALSE)=0," ",VLOOKUP($U$12,'2'!$A:$H,7,FALSE)))) ->  | U21: Suspension Points / Htr
F22: NG to LP Conversion Kit | G22: =$G$19 -> 0 | H22: =IF($J$12="Btuh x Tube Length","",VLOOKUP($U$11,'1'!$A:$E,5,FALSE)) -> 
F23: Gas Connection | G23: =IF(OR($J$12="Btuh x Tube Length",U8="p40r"),"",$J$13) -> 0 | H23: =IF($J$12="Btuh x Tube Length","",IF($J$5="USA",VLOOKUP($H$19,'1'!$C:$G,5,FALSE),VLOOKUP($H$19,'1'!$C:$G,4,FALSE))) ->  | U23: =IF(U7=40,4,IF(U20=0,IF(OR(U14="SET",U14="S10"),2*U13+1,U13+2),U20)) -> 
H24: =IF(OR($H$23="",U8="p40r"),"","(MANDATORY BY CODE)") -> 
U26: Chain Length
C27: OPTIONAL ACCESSORIES: | G27: Qty | H27: Part # | J27: Refer to Price List for other Accessories not listed below | U27: =U23*J13*J14 -> 
F28: Suspension Hardware | G28: =IF(ISNUMBER(J14),U29,"?") -> ? | H28: =IF(J14="?","Requires","JL-0800-XX") -> JL-0800-XX | J28: =IF(J14="?","a value in cell I7 above","#2 Lion Chain - 115 lb work load - 200 ft roll") -> #2 Lion Chain - 115 lb work load - 200 ft roll | O28: =IF(J12="Btuh x Tube Length","",U23&" suspension points per heater") ->  | U28: Chain Boxes
F29: =IF(J14="?","","and ") -> and | G29: =IF(ISNUMBER(J14),U33,"") ->  | H29: =IF(J14="?","","JL-0798-SH") -> JL-0798-SH | J29: =IF(J14="?","",U35) -> S' Hooks - 1-7/8" - Package of 25 | U29: =ROUNDUP(U27/200,0) -> 
F30: Vent Terminals | G30: =J13 -> 0 | H30: JA-0528-XX | J30: 4" Horizontal Vent Terminal | M30: or if vent through roof - use 'B' vent cap from vent manufacturer
F31: Combustion Air | G31: =IF(OR(Q3="SPW-JZ",Q3="STW-JZ",Q3="STR-JZ",U8="p40r"),"",J13) -> 0 | H31: =IF(Q3="P40R","-->",IF(OR(Q3="SPW-JZ",Q3="STW-JZ",),"","JS-0532-VC")) -> JS-0532-VC | J31: =IF(Q3="P40R","Outside air duct not allowed; This heater is approved as a 'Vented Room Heater'; ",IF(OR(Q3="SPW-JZ",Q3="STW-JZ"),"INCLUDED: Fresh Air Intake: 4"" Wall Cap","Fresh Air Intake - 4"" Wall Cap")) -> Fresh Air Intake - 4" Wall Cap | U31: 'S' Hooks
F32: =IF(Q3="P40R","","or ") -> or | G32: =IF(Q3="P40R","",J13) -> 0 | H32: =IF(Q3="P40R","","JA-0530-XX") -> JA-0530-XX | J32: =IF(Q3="P40R","Provide combustion air to space per national & local code requirements","OPTION: Fresh Air Intake - 4"" Roof Cap") -> OPTION: Fresh Air Intake - 4" Roof Cap
F33: =IF(J12="Btuh x Tube Length","",IF(OR($Q$3="S100 ",$Q$3="S100U ",Q3="SET ",Q3="SETU "),"plus either cap requires ","")) ->  | G33: =IF(OR($Q$3="S100",$Q$3="S100U",Q3="SET",Q3="SETU"),J13,"") ->  | H33: =IF(Q3="p40r","",IF(OR(Q3="SPW-JZ",Q3="STS-JZ",Q3="STW-JZ",Q3="STR-JZ"),"","JS-0532-SE")) -> JS-0532-SE | J33: =IF(Q3="p40r","",IF(OR($Q$3="S100",$Q$3="S100U",Q3="SET",Q3="SETU"),"Fresh Air Intake Adapter 4"" - Field Installs on Burner Cabinet","INCLUDED: Fresh Air Intake Adapter 4in. Factory )Installed on Burner")) -> INCLUDED: Fresh Air Intake Adapter 4in. Factory )Installed on Burner | U33: =ROUNDUP(2*U23*J13/25,0) -> 
C35: THERMOSTATS: | U35: S' Hooks - 1-7/8" - Package of 25
C36: =IF(OR($Q$3="SET",$Q$3="SETU",$Q$3="STW-JZ",$Q$3="SPW-JZ"),"","NOTE: Thermostat Quantity & voltage depends on the control logic used on site") -> NOTE: Thermostat Quantity & voltage depends on the control logic used on site
B37: 24 V T-STATS | G37: =IF(OR($Q$3="SET",$Q$3="SETU",Q3="STW-JZ",Q3="SPW-JZ"),J13,"") ->  | H37: =IF(Q3="P40R","",IF(OR($Q$3="SET",$Q$3="SETU"),"JS-0569-DT",IF(OR(Q3="STW-JZ",Q3="SPW-JZ"),"JS-0570-XX","JM-0150-XX"))) -> JM-0150-XX | J37: =IF(Q3="P40R","",VLOOKUP(H37,D79:E81,2,FALSE)) -> 24V TruTemp Infrared Setback Thermostat | O37: =IF(H37="JS-0569-DT","REQUIRED THERMOSTAT for 2 STAGE",IF(H37="JM-0150-XX","RECOMMENDED FOR COMFORT & FUEL SAVINGS","")) -> RECOMMENDED FOR COMFORT & FUEL SAVINGS
F38: =IF(Q3="P40R","P40R Includes",IF(OR($Q$3="SET",$Q$3="SETU",Q3="STW-JZ",Q3="SPW-JZ"),"","or")) -> or | H38: =IF(OR($Q$3="SET",$Q$3="SETU",Q3="STW-JZ",Q3="SPW-JZ"),"","JS-0569-WR") -> JS-0569-WR | J38: =IF(Q3="STR-JZ","24V Digital Thermostat with 20 ft Thermostat Wire",IF(OR($Q$3="SET",$Q$3="SETU",Q3="STW-JZ",Q3="SPW-JZ"),"","24V Digital Thermostat")) -> 24V Digital Thermostat
G39: =IF(OR($Q$3="SET",$Q$3="SETU",Q3="str-jz"),"",IF(OR($Q$3="S100",$Q$3="S100U",Q3="STR-JZ"),"a Single Heater per 24V T-stat Requires: ","")) ->  | H39: =IF(OR($Q$3="SET",$Q$3="SETU",Q3="str-jz"),"",IF(OR($Q$3="S100",$Q$3="S100U",Q3="STR-JZ"),"JS-0568-KT","")) ->  | J39: =IF(OR($Q$3="SET",$Q$3="SETU",Q3="str-jz"),"",IF(OR($Q$3="S100",$Q$3="S100U",Q3="STR-JZ"),"24V Thermostat Control Relay Kit - Field Mounts inside Burner","")) -> 
G40: =IF(OR(J13=1,$Q$3="SET",$Q$3="SETU",Q3="STW-JZ",Q3="SPW-JZ",Q3="str-jz"),"","Multiple heaters per 24V T-stat require: ") -> Multiple heaters per 24V T-stat require: | H40: =IF(OR(J13=1,$Q$3="SET",$Q$3="SETU",Q3="STW-JZ",Q3="SPW-JZ",Q3="str-jz"),"","JM-0303-KT") -> JM-0303-KT | J40: =IF(OR(J13=1,$Q$3="SET",$Q$3="SETU",Q3="STW-JZ",Q3="SPW-JZ",Q3="str-jz"),"","Control Center Kit for 24V Thermostat - Field Mounts in Zone") -> Control Center Kit for 24V Thermostat - Field Mounts in Zone
B41: 120 V | G41: =IF(OR($Q$3="SET",$Q$3="SETU",Q3="STW-JZ",Q3="SPW-JZ",Q3="P40R"),"","or use a line voltage thermostat ") -> or use a line voltage thermostat | H41: =IF(OR($Q$3="SET",$Q$3="SETU",$Q$3="STW-JZ",$Q$3="SPW-JZ",Q3="P40R"),"","JL-0772-XX") -> JL-0772-XX | J41: =IF(OR($Q$3="SET",$Q$3="SETU",$Q$3="STW-JZ",$Q$3="SPW-JZ",Q3="P40R"),"","Line Voltage Thermostat (control 1 to 12 heaters)") -> Line Voltage Thermostat (control 1 to 12 heaters)
B43: Instructions
B44: 1 | C44: Select YOUR Country in the 'drop down menu' = different gas connectors are required in North America depending on the Country
B45: 2 | C45: Select the general heating application from the 'drop down menu' = determines the heater models available for the application
B46: 3 | C46: Select the desired heater model from the 'drop down menu' = models available to suit the application or budget
B47: 4 | C47: Select the desired firing rate and heater length from the 'drop down menu' = determines correct burner and tube kits with part numbers
B48: 5 | C48: Enter the quantity of heaters required
B49: 6 | C49: Enter the number of feet that the heater will be suspended below the mounting point to the structure = determines mounting hardware
C50: - required based on model, quantity of heaters and the length of chain at each hanger
C51: NOTE: Recommended accessories are indicated below the heater kits:
C52: - Suspension chain 7 'S'-hooks; Vent Terminals; Outside combustion air components
C53: NOTE: Thermostat Control options are listed - quantity and type depend upon requirements at the project site.
D56: IQ - Premier Commercial / Industrial
D57: ITB - Builder Market Straight Tube
D58: ITBU - Builder Market 'U' Tube
D59: ITT - Two Stage Straight Tube
D60: ITTU - Two Stage 'U' Tube
D61: IW - Car Wash & Harsh Environment
D62: IWP - Outdoor & Damp Environment
D63: P40R - Residential Garage / Shop
D65: =IF(J10=D90,"SELECT 'APPLICATION' ABOVE 1ST","Now Select Tube Heater Series Here") -> SELECT 'APPLICATION' ABOVE 1ST
D66: =IF(J10=D90,"SELECT 'APPLICATION' ABOVE 1ST",IF(J10="Residential Garage / Shop Heater",D63,IF(J10="Car Wash / Outdoor",D61,IF(J10="Commercial / Industrial",D56,IF(J10="2 STAGE Commercial / Industrial",D59,"Select Tube Heater Series Here"))))) -> SELECT 'APPLICATION' ABOVE 1ST | K66: SELECT Btuh x Tube Length
D67: =IF(J10=D90,"",IF(J10="Residential Garage / Shop Heater","",IF(J10="Car Wash / Outdoor",D62,IF(J10="2 STAGE Commercial / Industrial",D60,D57)))) ->  | K67: =VLOOKUP(Q3,N67:O74,2,FALSE) ->  | L67: =VLOOKUP(Q3,N67:P74,3,FALSE) ->  | N67: P40R | O67: 40,000 x 10'U | P67: 40-10U
D68: =IF(J10=D90,"",IF(J$10="Residential Garage / Shop Heater","",IF(J$10="Car Wash / Outdoor","",IF(J10="2 STAGE Commercial / Industrial","",D58)))) ->  | K68: =VLOOKUP(Q3,N76:O82,2,FALSE) ->  | L68: =VLOOKUP(Q3,N76:P82,3,FALSE) ->  | N68: P40R | O68: 40,000 x 10'U | P68: 40-10U
K69: =VLOOKUP($Q$3,$N$84:$O$90,2,FALSE) ->  | L69: =VLOOKUP($Q$3,$N$84:$P$90,3,FALSE) ->  | N69: P40R | O69: 40,000 x 10'U | P69: 40-10U
K70: =VLOOKUP($Q$3,$N$92:O98,2,FALSE) ->  | L70: =VLOOKUP($Q$3,$N$92:P98,3,FALSE) ->  | N70: P40R | O70: 40,000 x 10'U | P70: 40-10U
K71: =VLOOKUP(Q3,N100:P106,2,FALSE) ->  | L71: =VLOOKUP(Q3,N100:P106,3,FALSE) ->  | N71: P40U-I | O71: 40,000 x 10'U | P71: 40-10U
J72: 6 | K72: =VLOOKUP(Q3,N108:O114,2,FALSE) ->  | L72: =VLOOKUP(Q3,N108:P114,3,FALSE) ->  | N72: ITBU | O72: 60,000 x 10'U | P72: 60-10
J73: 7 | K73: =VLOOKUP(Q3,N116:O122,2,FALSE) ->  | L73: =VLOOKUP(Q3,N116:P122,3,FALSE) ->  | N73: ITT | O73: 80,000/60,000 x 20' | P73: 80/60-20
D74: JL-0771-RC | E74: Type 1 Hose Connector 1/2" x 36": inputs 45 to 110 Mbh - CANADA | J74: 8 | K74: =VLOOKUP(Q3,N124:O130,2,FALSE) ->  | L74: =VLOOKUP(Q3,N124:P130,3,FALSE) ->  | N74: ITTU | O74: 80,000/60,000 x 10'U | P74: 80/60-10
D75: JL-0771-RB | E75: Type 1 Hose Connector 3/4" x 36": inputs 130 to 200 Mbh - CANADA | J75: 9 | K75: =VLOOKUP(Q3,N132:O138,2,FALSE) ->  | L75: =VLOOKUP(Q3,N132:P138,3,FALSE) -> 
D76: JL-0771-XX | E76: Flexible Gas Connector 1/2" x 24": inputs 45 to 130 Mbh - USA ONLY | K76: =VLOOKUP(Q3,N140:O146,2,FALSE) ->  | L76: =VLOOKUP(Q3,N140:P146,3,FALSE) ->  | N76: IQ | O76: 45,000 x 20' | P76: 45-20
D77: JL-0771-YY | E77: Flexible Gas Connector 3/4" x 36": inputs 155 to 200 Mbh - USA ONLY | K77: =VLOOKUP(Q3,N148:O153,2,FALSE) ->  | L77: =VLOOKUP(Q3,N148:P153,3,FALSE) ->  | N77: ITB | O77: 45,000 x 20' | P77: 45-20
K78: =VLOOKUP(Q3,N156:O162,2,FALSE) ->  | L78: =VLOOKUP(Q3,N156:P162,3,FALSE) ->  | N78: IW | O78: 45,000 x 20' | P78: 45-20
D79: JS-0569-DT | E79: Two Stage 24V Digital Thermostat | K79: =VLOOKUP(Q3,R85:T91,2,FALSE) ->  | L79: =VLOOKUP(Q3,R85:T91,3,FALSE) ->  | N79: IWP | O79: 45,000 x 20' | P79: 45-20
D80: JM-0150-XX | E80: 24V TruTemp Infrared Setback Thermostat | K80: =VLOOKUP(Q3,R94:T100,2,FALSE) ->  | L80: =VLOOKUP(Q3,R94:T100,3,FALSE) ->  | N80: ITBU | O80: 80,000 x 10'U | P80: 80-10
D81: JS-0570-XX | E81: Moisture Proof Thermostat (NEMA 4X Enclosure) | K81: =VLOOKUP(Q3,R103:S109,2,FALSE) ->  | L81: =VLOOKUP(Q3,R103:T109,3,FALSE) ->  | N81: ITT | O81: 80,000/60,000 x 30' | P81: 80/60-30
D82: TG-0010-KT | E82: Tuxedo Grille 10 ft Kit for STS-JZ Series | K82: =VLOOKUP(Q3,R111:S117,2,FALSE) ->  | L82: =VLOOKUP(Q3,R111:T117,3,FALSE) ->  | N82: ITTU | O82: 80,000/60,000 x 15'U | P82: 80/60-15
K83: =VLOOKUP(Q3,R119:S125,2,FALSE) ->  | L83: =VLOOKUP(Q3,R119:T125,3,FALSE) -> 
K84: =VLOOKUP(Q3,R127:S133,2,FALSE) ->  | L84: =VLOOKUP(Q3,R127:T133,3,FALSE) ->  | N84: IQ | O84: 60,000 x 20' | P84: 60-20
K85: =VLOOKUP(Q3,R135:S141,2,FALSE) ->  | L85: =VLOOKUP(Q3,R135:T141,3,FALSE) ->  | N85: ITB | O85: 60,000 x 20' | P85: 60-20 | R85: IQ | S85: 130,000 x 40' | T85: 130-40
K86: =VLOOKUP(Q3,R143:S149,2,FALSE) ->  | L86: =VLOOKUP(Q3,R143:T149,3,FALSE) ->  | N86: IW | O86: 60,000 x 20' | P86: 60-20 | R86: ITB | S86: 130,000 x 40' | T86: 130-40
K87: =VLOOKUP(Q3,R151:S157,2,FALSE) ->  | L87: =VLOOKUP(Q3,R151:T157,3,FALSE) ->  | N87: IWP | O87: 60,000 x 20' | P87: 60-20 | R87: IW | S87: 130,000 x 50' | T87: 130-50
K88: =VLOOKUP(Q3,R159:S165,2,FALSE) ->  | L88: =VLOOKUP(Q3,R159:T165,3,FALSE) ->  | N88: ITBU | O88: 80,000 x 15'U | P88: 80-15 | R88: IWP | S88: 130,000 x 50' | T88: 130-50
K89: =VLOOKUP(Q3,R167:S173,2,FALSE) ->  | L89: =VLOOKUP(Q3,R167:T173,3,FALSE) ->  | N89: ITT | O89: 110,000/75,000 x 30' | P89: 110/75-30 | R89: ITT
D90: Select APPLICATION Here | N90: ITTU | O90: 110,000/75,000 x 15'U | P90: 110/75-15 | R90: ITBU
D91: Commercial / Industrial | R91: ITTU
D92: 2 STAGE Commercial / Industrial | N92: IQ | O92: 60,000 x 30' | P92: 60-30
D93: Car Wash / Outdoor | N93: ITB | O93: 60,000 x 30' | P93: 60-30
D94: Residential Garage / Shop Heater | N94: IW | O94: 60,000 x 30' | P94: 60-30 | R94: IQ | S94: 130,000 x 50' | T94: 130-50
N95: IWP | O95: 60,000 x 30' | P95: 60-30 | R95: ITB | S95: 130,000 x 50' | T95: 130-50
N96: ITBU | O96: 110,000 x 15'U | P96: 110-15 | R96: IW | S96: 155,000 x 40' | T96: 155-40
N97: ITT | O97: 110,000/75,000 x 40' | P97: 110/75-40 | R97: IWP | S97: 155,000 x 40' | T97: 155-40
N98: ITTU | O98: 110,000/75,000 x 20'U | P98: 110/75-20 | R98: ITT
R99: ITBU
N100: IQ | O100: 80,000 x 20' | P100: 80-20 | R100: ITTU
N101: ITB | O101: 80,000 x 20' | P101: 80-20
N102: IW | O102: 80,000 x 20' | P102: 80-20
N103: IWP | O103: 80,000 x 20' | P103: 80-20 | R103: IQ | S103: 155,000 x 40' | T103: 155-40
N104: ITBU | O104: 110,000 x 20'U | P104: 110-20 | R104: ITB | S104: 155,000 x 40' | T104: 155-40
N105: ITT | O105: 130,000/90,000 x 30' | P105: 130/90-30 | R105: IW | S105: 155,000 x 50' | T105: 155-50
N106: ITTU | O106: 130,000/90,000 x 15'U | P106: 130/90-15 | R106: IWP | S106: 155,000 x 50' | T106: 155-50
R107: ITT
N108: IQ | O108: 80,000 x 30' | P108: 80-30 | R108: ITBU
N109: ITB | O109: 80,000 x 30' | P109: 80-30 | R109: ITTU
N110: IW | O110: 80,000 x 30' | P110: 80-30
N111: IWP | O111: 80,000 x 30' | P111: 80-30 | R111: IQ | S111: 155,000 x 50' | T111: 155-50
N112: ITBU | O112: 130,000 x 15'U | P112: 130-15 | R112: ITB | S112: 155,000 x 50' | T112: 155-50
N113: ITT | O113: 130,000/90,000 x 40' | P113: 130/90-40 | R113: IW | S113: 155,000 x 60' | T113: 155-60
N114: ITTU | O114: 130,000/90,000 x 20'U | P114: 130/90-20 | R114: IWP | S114: 155,000 x 60' | T114: 155-60
R115: ITT
N116: IQ | O116: 80,000 x 40' | P116: 80-40 | R116: ITBU
N117: ITB | O117: 80,000 x 40' | P117: 80-40 | R117: ITTU
N118: IW | O118: 80,000 x 40' | P118: 80-40
N119: IWP | O119: 80,000 x 40' | P119: 80-40 | R119: IQ | S119: 155,000 x 60' | T119: 155-60
N120: ITBU | O120: 130,000 x 20'U | P120: 130-20 | R120: ITB | S120: 155,000 x 60' | T120: 155-60
N121: ITT | O121: 155,000/110,000 x 40' | P121: 155/110-40 | R121: IW | S121: 175,000 x 50' | T121: 175-50
N122: ITTU | O122: 155,000/110,000 x 20'U | P122: 155/110-20 | R122: IWP | S122: 175,000 x 50' | T122: 175-50
R123: ITT
N124: IQ | O124: 100,000 x 20' | P124: 100-20 | R124: ITBU
N125: ITB | O125: 100,000 x 20' | P125: 100-20 | R125: ITTU
N126: IW | O126: 110,000 x 30' | P126: 110-30
N127: IWP | O127: 110,000 x 30' | P127: 110-30 | R127: IQ | S127: 175,000 x 50' | T127: 175-50
N128: ITBU | O128: 155,000 x 20'U | P128: 155-20 | R128: ITB | S128: 175,000 x 50' | T128: 175-50
N129: ITT | O129: 155,000/110,000 x 50' | P129: 155/110-50 | R129: IW | S129: 175,000 x 60' | T129: 175-60
N130: ITTU | O130: 155,000/110,000 x 30'U | P130: 155/110-30 | R130: IWP | S130: 175,000 x 60' | T130: 175-60
R131: ITT
N132: IQ | O132: 110,000 x 30' | P132: 110-30 | R132: ITBU
N133: ITB | O133: 110,000 x 30' | P133: 110-30 | R133: ITTU
N134: IW | O134: 110,000 x 40' | P134: 110-40
N135: IWP | O135: 110,000 x 40' | P135: 110-40 | R135: IQ | S135: 175,000 x 60' | T135: 175-60
N136: ITBU | O136: 155,000 x 30'U | P136: 155-30 | R136: ITB | S136: 175,000 x 60' | T136: 175-60
N137: ITT | O137: 175,000/125,000 x 50' | P137: 175/125-50 | R137: IW | S137: 175,000 x 70' | T137: 175-70
N138: ITTU | O138: 175,000/125,000 x 30'U | P138: 175/125-30 | R138: IWP | S138: 175,000 x 70' | T138: 175-70
R139: ITT
N140: IQ | O140: 110,000 x 40' | P140: 110-40 | R140: ITBU
N141: ITB | O141: 110,000 x 40' | P141: 110-40 | R141: ITTU
N142: IW | O142: 110,000 x 50' | P142: 110-50
N143: IWP | O143: 110,000 x 50' | P143: 110-50 | R143: IQ | S143: 175,000 x 70' | T143: 175-70
N144: ITBU | O144: 175,000 x 30'U | P144: 175-30 | R144: ITB | S144: 175,000 x 70' | T144: 175-70
N145: ITT | O145: 175,000/125,000 x 60' | P145: 175/125-60 | R145: IW | S145: 200,000 x 50' | T145: 200-50
N146: ITTU | O146: 200,000/140,000 x 30'U | P146: 200/140-30 | R146: IWP | S146: 200,000 x 50' | T146: 200-50
R147: ITT
N148: IQ | O148: 110,000 x 50' | P148: 110-50 | R148: ITBU
N149: ITB | O149: 110,000 x 50' | P149: 110-50 | R149: ITTU
N150: IW | O150: 130,000 x 30' | P150: 130-30
N151: IWP | O151: 130,000 x 30' | P151: 130-30 | R151: IQ | S151: 200,000 x 50' | T151: 200-50
N152: ITBU | O152: 200,000 x 30'U | P152: 200-30 | R152: ITB | S152: 200,000 x 50' | T152: 200-50
N153: ITT | O153: 200,000/140,000 x 50' | P153: 200/140-50 | R153: IW | S153: 200,000 x 60' | T153: 200-60
N154: ITTU | R154: IWP | S154: 200,000 x 60' | T154: 200-60
R155: ITT
N156: IQ | O156: 130,000 x 30' | P156: 130-30 | R156: ITBU
N157: ITB | O157: 130,000 x 30' | P157: 130-30 | R157: ITTU
N158: IW | O158: 130,000 x 40' | P158: 130-40
N159: IWP | O159: 130,000 x 40' | P159: 130-40 | R159: IQ | S159: 200,000 x 60' | T159: 200-60
N160: ITT | O160: 200,000/140,000 x 60' | P160: 200/140-60 | R160: ITB | S160: 200,000 x 60' | T160: 200-60
N161: ITBU | R161: IW | S161: 200,000 x 70' | T161: 200-70
N162: ITTU | R162: IWP | S162: 200,000 x 70' | T162: 200-70
R163: ITT
R164: ITBU
R165: ITTU
R167: IQ | S167: 200,000 x 70' | T167: 200-70
R168: ITB | S168: 200,000 x 70' | T168: 200-70
R169: IW
R170: IWP
R171: ITT
R172: ITBU
R173: ITTU

Sheet X-Ref Tubes- Straight
C1: Click here to go to Instructions
A2: TUBES - STRAIGHT COMPARISONS | Q2: Vacuum systems 'suck'
A3: BTU/hr | B3: Tube | C3: InfraSave | E3: Schwank | G3: Detroit Radiant (Reverberay) | J3: Roberts Gordon | L3: Superior Radiant | N3: Solaronics | P3: Space Ray | S3: Reznor | U3: Modine | W3: Sterling | X3: Enerco | Y3: Calcana | Z3: AmbiRad | AA3: Easy Radiant
C4: PREMIER | D4: BUILDER | E4: PREMIER | F4: BUILDER | L4: Economy | Q4: Vacuum | R4: Vacuum
A5: Input | B5: Length | C5: IQ | D5: ITB | E5: STS-JZ | F5: S100 | G5: DX-2 Series | H5: XTS Series | I5: DES Series | J5: Gordonray BH | K5: Vantage II | L5: UA / UX Series | M5: LA / LX Series | N5: Suntube IV | O5: GQ Series | P5: PTS | Q5: LTS Series | R5: ETS | S5: VR Series | T5: TR Series | U5: TLP Series | V5: LF / HF Series | W5: SLR Series | X5: ERXL Series | Y5: SR Series | Z5: PT Series | AA5: EZ Series | AB5: SH Series
A6: 30000 | B6: 30 | M6: LA (X)-40 30
A7: 40000 | B7: 10 | C7: P40U-I | D7: P40U-I | E7: P40U | F7: P40U | J7: BH40 10 | K7: CTH2-40 10 | L7: UA (X) 04 10 | N7: STG40 10 | O7: GCG40 10 | P7: PTS40-10 | V7: LF40 20 | W7: SLR40 10 | Y7: SR-40 10 | Z7: PT40 10
B8: 15 | N8: STG40 15 | O8: GCG40 15 | Q8: LTS40-15 | R8: ETS40-15 | V8: LF40 30 | W8: SLR40 15 | Y8: SR-40 15
B9: 20 | L9: UA (X) 04 20 | N9: STG40 20 | O9: GCG40 20 | P9: PTS40-20 | Q9: LTS40-20 | R9: ETS40-20 | W9: SLR40 20 | Y9: SR-40 20
B10: 30 | M10: LA (X)-40 40
B11: 40
A12: 45000 | B12: 20 | C12: IQ 45 20 | D12: ITB 45 20 | E12: STS-JZ 45 20 | F12: S100-45-20 | N12: STG45 20 | O12: GCG45 20
M13: LA (X)-60 30
M14: LA (X)-60 40
M15: LA (X)-60 50
A16: 50000 | B16: 15 | Q16: LTS50-15 | R16: ETS50-15 | W16: SLR50 15 | Y16: SR-50 15
B17: 20 | C17: IQ 45 20 | D17: ITB 45 20 | E17: STS-JZ 45 20 | F17: S100-45-20 | G17: DX2-20-50 | H17: XTS-20-50 | I17: DES-20-50 | N17: STG50 20 | O17: GCG50 20 | P17: PTS50-20 | Q17: LTS50-20 | R17: ETS50-20 | S17: VR50 20 | T17: TR50 20 | U17: TLP50 20 | V17: LF50 20 | W17: SLR50 20 | Y17: SR-15 20
B18: 25 | Q18: LTS50-25
B19: 30 | G19: DX2-30-50 | H19: XTS-30-50 | I19: DES-30-50 | P19: PTS50-30 | Q19: LTS50-30 | R19: ETS50-30 | S19: VR50 30 | T19: TR50 30 | U19: TLP50 30 | V19: LF50 30
B20: 40 | G20: DX2-40-50 | H20: XTS-40-50 | I20: DES-40-50 | S20: VR50 40
A21: 55000 | B21: 20 | N21: STG55 20 | O21: GCG55 20
A22: 60000 | B22: 20 | C22: IQ60 20 | D22: ITB 60 20 | E22: STS-JZ 60 20 | F22: S100 60 20 | G22: DX2-20-60 | H22: XTS-20-60 | I22: DES-20-60 | J22: BH60 20 | K22: CTH2-60 20 | L22: UA (X) 06 20 | N22: STG60 20 | O22: GCG60 20 | Q22: LTS60-20 | R22: ETS60-20 | U22: TLP60 20 | V22: LF60 20 | W22: SLR60 20 | X22: ERXL60 20 | Y22: SR-60 20 | Z22: PT60 20 | AA22: EZ-60-20 | AB22: SH-60-20
B23: 25 | Q23: LTS60-25
B24: 30 | C24: IQ60 30 | D24: ITB 60 30 | E24: STS-JZ 60 30 | F24: S100 60 30 | G24: DX2-30-60 | H24: XTS-30-60 | I24: DES-30-60 | L24: UA (X) 06 30 | M24: LA (X)-60 30 | Q24: LTS60-30 | R24: ETS60-30 | U24: TLP60 30 | V24: LF60 30 | W24: SLR60 30 | Y24: SR-60 30 | Z24: PT60 30
B25: 40 | G25: DX2-40-60 | H25: XTS-40-60 | I25: DES-40-60 | M25: LA (X)-60 40 | U25: TLP60 40 | V25: LF60 40 | W25: SLR60 40 | Y25: SR-60 40 | Z25: PT60 40
B26: 50 | M26: LA (X)-60 50
A27: 65000 | B27: 20 | N27: STG65 20* | O27: GCG65 20*
B28: 25 | N28: STG65 25* | O28: GCG65 25*
B29: 30 | N29: STG65 30 | O29: GCG65 30
B30: 35 | N30: STG65 35 | O30: GCG65 35
B31: 40 | N31: STG65 40 | O31: GCG65 40
A32: 70000 | B32: 20 | N32: STG70 20* | O32: GCG70 20*
B33: 25 | N33: STG70 25* | O33: GCG70 25*
B34: 30 | N34: STG70 30 | O34: GCG70 30
B35: 35 | N35: STG70 35 | O35: GCG70 35
B36: 40 | N36: STG70 40 | O36: GCG70 40
A37: 75000 | B37: 20 | G37: DX2-20-75 | H37: XTS-20-75 | I37: DES-20-75 | N37: STG75 20* | O37: GCG75 20* | P37: PTS75-20 | Q37: LTS75-20 | R37: ETS75-20 | S37: VR75 20 | T37: TR75 20 | V37: LF75 20 | W37: SLR75 20 | Y37: SR-75 20 | AA37: EZ-75-20 | AB37: SH-75-20
B38: 25 | N38: STG75 25* | O38: GCG75 25* | Q38: LTS75-25
B39: 30 | G39: DX2-30-75 | H39: XTS-30-75 | I39: DES-30-75 | N39: STG75 30 | O39: GCG75 30 | P39: PTS75-30 | Q39: LTS75-30 | R39: ETS75-30 | S39: VR75 30 | T39: TR75 30 | U39: TLP75 30 | V39: LF75 30 | W39: SLR75 30 | Y39: SR-75 30
B40: 35 | N40: STG75 35 | O40: GCG75 35
B41: 40 | G41: DX2-40-75 | H41: XTS-40-75 | I41: DES-40-75 | N41: STG75 40 | O41: GCG75 40 | S41: VR75 40 | T41: TR75 40 | U41: TLP75 40 | V41: LF75 40 | W41: SLR75 40 | Y41: SR-75 40
B42: 50 | U42: TLP75 50
A43: 80000 | B43: 20 | C43: IQ80 20 | D43: ITB 80 20 | E43: STS-JZ 80 20 | F43: S100 80 20 | J43: BH80 20 | K43: CTH2-80 20 | L43: UA (X) 08 20 | N43: STG80 20* | O43: GCG80 20* | W43: SLR80 20 | X43: ERXL80 20 | Y43: SR-80 20 | Z43: PT80 20
B44: 25 | N44: STG80 25* | O44: GCG80 25*
B45: 30 | C45: IQ80 30 | D45: ITB 80 30 | E45: STS-JZ 80 30 | F45: S100 80 30 | J45: BH80 30 | K45: CTH2-80 30 | L45: UA (X) 08 30 | N45: STG80 30 | O45: GCG80 30 | Q45: LTS80-30 | R45: ETS80-30 | W45: SLR80 30 | X45: ERXL80 30 | Y45: SR-80 30 | Z45: PT80 30
B46: 35 | N46: STG80 35 | O46: GCG80 35 | Q46: LTS80-35
B47: 40 | C47: IQ80 40 | D47: ITB 80 40 | E47: STS-JZ 80 40 | F47: S100 80 40 | L47: UA (X) 08 40 | M47: LA (X)-80 40 | N47: STG80 40 | O47: GCG80 40 | Q47: LTS80-40 | R47: ETS80-40 | W47: SLR80 40 | Y47: SR-80 40 | Z47: PT80 40
B48: 50 | M48: LA (X)-80 50
A49: 85000 | B49: 20 | N49: STG85 20* | O49: GCG85 20*
B50: 25 | N50: STG85 25* | O50: GCG85 25*
B51: 30 | N51: STG85 30 | O51: GCG85 30 | V51: LF85 30 | AA51: EZ-85-30 | AB51: SH-85-30
B52: 35 | N52: STG85 35 | O52: GCG85 35
B53: 40 | N53: STG85 40 | O53: GCG85 40 | U53: TLP85 40 | V53: LF85 40
B54: 50 | U54: TLP85 50 | V54: LF85 50
A55: 90000 | B55: 30 | N55: STG90 30 | O55: GCG90 30 | Q55: LTS90-30 | R55: ETS90-30
B56: 35 | N56: STG90 35 | O56: GCG90 35 | Q56: LTS90-35
B57: 40 | N57: STG90 40 | O57: GCG90 40 | Q57: LTS90-40 | R57: ETS90-40
A58: 95000 | B58: 30 | N58: STG95 30 | O58: GCG95 30
B59: 35 | N59: STG95 35 | O59: GCG95 35
B60: 40 | N60: STG95 40 | O60: GCG95 40
A61: 96000 | B61: 20 | G61: DX2-20-100
A62: 100000 | B62: 20 | C62: IQ 100 20 | D62: ITB 100 20 | E62: STS-JZ 100 20 | F62: S100 100 20 | L62: UA (X) 10 20
B63: 30 | G63: DX2-30-100 | H63: XTS-30-100 | I63: DES-30-100 | J63: BH100 30 | K63: CTH2-100 30 | L63: UA (X) 10 30 | N63: STG100 30 | O63: GCG100 30 | P63: PTS100-30 | Q63: LTS100-30 | R63: ETS100-30 | S63: VR100 30 | T63: TR100 30 | U63: TLP100 30 | W63: SLR100 30 | X63: ERXL100 30 | Y63: SR-100 30 | Z63: PT100 30 | AA63: EZ-100-30 | AB63: SH-100-30
B64: 35 | N64: STG100 35 | O64: GCG100 35 | Q64: LTS100-35
B65: 40 | G65: DX2-40-100 | H65: XTS-40-100 | I65: DES-40-100 | J65: BH100 40 | K65: CTH2-100 40 | L65: UA (X) 10 40 | N65: STG100 40 | O65: GCG100 40 | P65: PTS100-40 | Q65: LTS100-40 | R65: ETS100-40 | S65: VR100 40 | T65: TR100 40 | U65: TLP100 40 | W65: SLR100 40 | X65: ERXL100 40 | Y65: SR-100 40 | Z65: PT100 40 | AA65: EZ-100-40 | AB65: SH-100-40
B66: 45 | N66: STG100 45 | O66: GCG100 45
B67: 50 | G67: DX2-50-100 | H67: XTS-50-100 | I67: DES-50-100 | N67: STG100 50 | O67: GCG100 50 | S67: VR100 50 | T67: TR100 50 | U67: TLP100 50* | W67: SLR100 50 | Y67: SR-100 50 | Z67: PT100 50
A68: 105000 | B68: 40 | N68: STG105 40 | O68: GCG105 40
B69: 45 | N69: STG105 45 | O69: GCG105 45
B70: 50 | N70: STG105 50 | O70: GCG105 50
A71: 110000 | B71: 30 | C71: IQ110 30 | D71: ITB 110 30 | E71: STS-JZ 110 30 | F71: S100 110 30 | Q71: LTS110-30 | R71: ETS110-30
B72: 35 | Q72: LTS110-35
B73: 40 | C73: IQ110 40 | D73: ITB 110 40 | E73: STS-JZ 110 40 | F73: S100 110 40 | N73: STG110 40 | O73: GCG110 40 | Q73: LTS110-40 | R73: ETS110-40
B74: 45 | N74: STG110 45 | O74: GCG110 45
B75: 50 | C75: IQ110 50 | D75: ITB 110 50 | E75: STS-JZ 110 50 | F75: S100 110 50 | N75: STG110 50 | O75: GCG110 50
A76: 115000 | B76: 30 | J76: BH115 30
B77: 40 | J77: BH115 40 | N77: STG115 40 | O77: GCG115 40
B78: 45 | N78: STG115 45 | O78: GCG115 45
B79: 50 | J79: BH115 50 | N79: STG115 50 | O79: GCG115 50
A80: 120000 | B80: 30 | Q80: LTS120-30 | R80: ETS120-30
B81: 35 | Q81: LTS120-35
B82: 40 | N82: STG120 40 | O82: GCG120 40 | Q82: LTS120-40 | R82: ETS120-40
B83: 45 | N83: STG120 45 | O83: GCG120 45
B84: 50 | N84: STG120 50 | O84: GCG120 50
A85: 125000 | B85: 30 | G85: DX2-30-125 | L85: UA (X) 12 30 | P85: PTS125-30 | Q85: LTS125-30 | R85: ETS125-30 | S85: VR125 30
B86: 35 | Q86: LTS125-35
B87: 40 | G87: DX2-40-125 | H87: XTS-40-125 | I87: DES-40-125 | J87: BH125 40 | K87: CTH2-125 40 | L87: UA (X) 12 40 | N87: STG125 40 | O87: GCG125 40 | P87: PTS125-40 | Q87: LTS125-40 | R87: ETS125-40 | S87: VR125 40 | T87: TR125 40 | U87: TLP125 40 | V87: HF125 40 | W87: SLR125 40 | X87: ERXL125 40 | Y87: SR-125 40 | Z87: PT125 40 | AA87: EZ-125-40 | AB87: SH-125-40
B88: 45 | N88: STG125 45 | O88: GCG125 45 | Q88: LTS125-45
B89: 50 | G89: DX2-50-125 | H89: XTS-50-125 | I89: DES-50-125 | J89: BH125 50 | K89: CTH2-125 50 | L89: UA (X) 12 50 | N89: STG125 50 | O89: GCG125 50 | P89: PTS125-50 | Q89: LTS125-50 | R89: ETS125-50 | S89: VR125 50 | T89: TR125 50 | U89: TLP125 50 | V89: HF125 50 | W89: SLR125 50 | X89: ERXL125 50 | Y89: SR-125 50 | Z89: PT125 50 | AA89: EZ-125-50 | AB89: SH-125-50
B90: 60 | G90: DX2-60-125 | H90: XTS-60-125 | I90: DES-60-125 | S90: VR125 60 | U90: TLP125 60 | V90: HF125 60 | Z90: PT125 60
A91: 130000 | B91: 30 | C91: IQ130 30 | D91: ITB 130 30 | E91: STS-JZ 130 30 | F91: S100 130 30 | Q91: LTS130-30 | R91: ETS130-30
B92: 35 | Q92: LTS130-35
B93: 40 | C93: IQ130 40 | D93: ITB 130 40 | E93: STS-JZ 130 40 | F93: S100 130 40 | N93: STG130 40 | O93: GCG130 40 | Q93: LTS130-40 | R93: ETS130-40
B94: 45 | N94: STG130 45 | O94: GCG130 45 | Q94: LTS130-45
B95: 50 | C95: IQ130 50 | D95: ITB 130 50 | E95: STS-JZ 130 50 | F95: S100 130 50 | N95: STG130 50 | O95: GCG130 50 | Q95: LTS130-50 | R95: ETS130-50
A96: 135000 | B96: 40 | N96: STG135 40 | O96: GCG135 40
B97: 45 | N97: STG135 45 | O97: GCG135 45 | AA97: EZ-135-50 | AB97: SH-135-50
B98: 50 | N98: STG135 50 | O98: GCG135 50
A99: 140000 | B99: 40 | J99: BH140 40 | N99: STG140 40 | O99: GCG140 40 | Q99: LTS140-40 | R99: ETS140-40
B100: 45 | N100: STG140 45 | O100: GCG140 45 | Q100: LTS140-45
B101: 50 | J101: BH140 50 | N101: STG140 50 | O101: GCG140 50 | Q101: LTS140-50 | R101: ETS140-50
B102: 60 | J102: BH140 60
A103: 145000 | B103: 40 | N103: STG145 40 | O103: GCG145 40
B104: 45 | N104: STG145 45 | O104: GCG145 45
B105: 50 | N105: STG145 50 | O105: GCG145 50
A106: 150000 | B106: 40 | G106: DX2-40-150 | H106: XTS-40-150 | I106: DES-40-150 | L106: UA (X) 15 40 | N106: STG150 40 | O106: GCG150 40 | P106: PTS150-40 | Q106: LTS150-40 | R106: ETS150-40 | S106: VR150 40 | T106: TR150 40 | V106: HF150 40 | W106: SLR150 40 | Y106: SR-150 40 | Z106: PT150 40
B107: 45 | N107: STG150 45 | O107: GCG150 45 | Q107: LTS150-45
B108: 50 | G108: DX2-50-150 | H108: XTS-50-150 | I108: DES-50-150 | J108: BH150 50 | K108: CTH2-150 50 | L108: UA (X) 15 50 | N108: STG150 50 | O108: GCG150 50 | P108: PTS150-50 | Q108: LTS150-50 | R108: ETS150-50 | S108: VR150 50 | T108: TR150 50 | U108: TLP150 50 | V108: HF150 50 | W108: SLR150 50 | X108: ERXL150 50 | Y108: SR-150 50 | Z108: PT150 50 | AA108: EZ-150-50 | AB108: SH-150-50
B109: 55 | N109: STG150 55 | O109: GCG150 55
B110: 60 | G110: DX2-60-150 | H110: XTS-60-150 | I110: DES-60-150 | J110: BH150 60 | K110: CTH2-150 60 | L110: UA (X) 15 60 | N110: STG150 60 | O110: GCG150 60 | P110: PTS150-60 | S110: VR150 60 | T110: TR150 60 | U110: TLP150 60 | V110: HF150 60 | W110: SLR150 60 | X110: ERXL150 60 | Y110: SR-150 60 | Z110: PT150 60
B111: 65 | N111: STG150 65 | O111: GCG150 65
B112: 70 | N112: STG150 70 | O112: GCG150 70 | U112: TLP150 70* | V112: HF150 70 | Z112: PT150 70
A113: 155000 | B113: 40 | C113: IQ155 40 | D113: ITB 155 40 | E113: STS-JZ 155 40 | F113: S100 155 40
B114: 50 | C114: IQ155 50 | D114: ITB 155 50 | E114: STS-JZ 155 50 | F114: S100 155 50 | N114: STG155 50 | O114: GCG155 50
B115: 55 | N115: STG155 55 | O115: GCG155 55
B116: 60 | C116: IQ155 60 | D116: ITB 155 60 | E116: STS-JZ 155 60 | F116: S100 155 60 | N116: STG155 60 | O116: GCG155 60
B117: 65 | N117: STG155 65 | O117: GCG155 65
B118: 70 | N118: STG155 70 | O118: GCG155 70
A119: 160000 | B119: 40 | Q119: LTS160-40 | R119: ETS160-40
B120: 45 | Q120: LTS160-45
B121: 50 | N121: STG160 50 | O121: GCG160 50 | Q121: LTS160-50 | R121: ETS160-50 | AA121: EZ-165-50
B122: 55 | N122: STG160 55 | O122: GCG160 55
B123: 60 | N123: STG160 60 | O123: GCG160 60 | AA123: EZ-165-60
B124: 65 | N124: STG160 65 | O124: GCG160 65
B125: 70 | N125: STG160 70 | O125: GCG160 70
A126: 165000 | B126: 50 | N126: STG165 50 | O126: GCG165 50 | AB126: SH165-50
B127: 55 | N127: STG165 55 | O127: GCG165 55
B128: 60 | N128: STG165 60 | O128: GCG165 60 | AB128: SH-165-60
B129: 65 | N129: STG165 65 | O129: GCG165 65
B130: 70 | N130: STG165 70 | O130: GCG165 70
A131: 170000 | B131: 50 | N131: STG170 50 | O131: GCG170 50
B132: 55 | N132: STG170 55 | O132: GCG170 55
B133: 60 | N133: STG170 60 | O133: GCG170 60
B134: 65 | N134: STG170 65 | O134: GCG170 65
B135: 70 | N135: STG170 70 | O135: GCG170 70
A136: 175000 | B136: 40 | G136: DX2-40-175 | P136: PTS175-40 | Q136: LTS175-40 | R136: ETS175-40 | S136: VR175 40
B137: 45 | Q137: LTS175-45
B138: 50 | C138: IQ175 50 | D138: ITB 175 50 | E138: STS-JZ 175 50 | F138: S100 175 50 | G138: DX2-50-175 | H138: XTS-50-175 | I138: DES-50-175 | J138: BH175 50 | L138: UA (X) 17 50 | N138: SRG175 50 | O138: GCG175 50 | P138: PTS175-50 | Q138: LTS175-50 | R138: ETS175-50 | S138: VR175 50 | T138: TR175 50 | V138: HF175 50 | W138: SLR175 50 | X138: ERXL175 50 | Y138: SR-175 50 | Z138: PT175 50
B139: 55 | N139: STG175 55 | O139: GCG175 55
B140: 60 | C140: IQ175 60 | D140: ITB 175 60 | E140: STS-JZ 175 60 | F140: S100 175 60 | G140: DX2-60-175 | H140: XTS-60-175 | I140: DES-60-175 | J140: BH175 60 | K140: CTH2-175 60 | L140: UA (X) 17 60 | N140: STG175 60 | O140: GCG175 60 | P140: PTS175-60 | S140: VR175 60 | T140: TR175 60 | V140: HF175 60 | W140: SLR175 60 | X140: ERXL175 60 | Y140: SR-175 60 | Z140: PT175 60
B141: 65 | N141: STG175 65 | O141: GVG175 65
B142: 70 | C142: IQ175 70 | D142: ITB 175 70 | E142: STS-JZ 175 70 | F142: S100 175 70 | G142: DX2-70-175 | J142: NH175 70 | K142: CTH2-175 70 | N142: STG175 70 | O142: GCG175 70 | P142: PTS175-70 | S142: VR175 70 | T142: TR175 70 | V142: HF175 70 | W142: SLR175 70 | Y142: SR-175 70 | Z142: PT175 70
B143: 80 | Z143: PT175 80
A144: 180000 | B144: 50 | N144: STG180 50 | O144: GCG180 50 | Q144: LTS180-50 | R144: ETS180-50
B145: 55 | N145: STG180 55 | O145: GCG180 55
B146: 60 | N146: STG180 60 | O146: GCG180 60 | Q146: LTS180-60 | R146: ETS180-60
B147: 65 | N147: STG180 65 | O147: GCG180 65
B148: 70 | N148: STG180 70 | O148: GCG180 70 | Q148: LTS180-70 | R148: ETS180-70
B149: 80 | Q149: LTS180-80 | R149: ETS180-80
A150: 185000 | B150: 50 | N150: STG185 50 | O150: GCG185 50
B151: 55 | N151: STG185 55 | O151: GCG185 55
B152: 60 | N152: STG185 60 | O152: GCG185 60
B153: 65 | N153: STG185 65 | O153: GCG185 65
B154: 70 | N154: STG185 70 | O154: GCG185 70
A155: 190000 | B155: 50 | N155: STG190 50 | O155: GCG190 50
B156: 55 | N156: STG190 55 | O156: GCG190 55
B157: 60 | N157: STG190 60 | O157: GCG190 60
B158: 65 | N158: STG190 65 | O158: GCG190 65
B159: 70 | N159: STG190 70 | O159: GCG190 70
A160: 195000 | B160: 50 | N160: STG195 50 | O160: GCG195 50
B161: 55 | N161: STG195 55 | O161: GCG195 55
B162: 60 | N162: STG195 60 | O162: GCG195 60
B163: 65 | N163: STG196 65 | O163: GCG195 65
B164: 70 | N164: STG195 70 | O164: GCG195 70
A165: 200000 | B165: 40 | V165: HF200 40
B166: 50 | C166: IQ200 50 | D166: ITB 200 50 | E166: STS-JZ 200 50 | F166: S100 200 50 | G166: DX2-50-200 | H166: XTS-50-200 | I166: DES-50-200 | N166: STG200 50 | O166: GCG200 50 | P166: PTS200-50 | Q166: LTS200-50 | R166: ETS200-50 | S166: VR200 50 | T166: TR200 50 | U166: TLP200 50 | V166: HF200 50 | Z166: PT200 50
B167: 55 | N167: STG200 55 | O167: GCG200 55
B168: 60 | C168: IQ200 60 | D168: ITB 200 60 | E168: STS-JZ 200 60 | F168: S100 200 60 | G168: DX2-60-200 | H168: XTS-60-200 | I168: DES-60-200 | J168: BH200 60 | N168: STG200 60 | O168: GCG200 60 | P168: PTS200-60 | Q168: LTS200-60 | R168: ETS200-60 | S168: VR200 60 | T168: TR200 60 | U168: TLP200 60 | V168: HF200 60 | W168: SLR200 60 | Y168: SR-200-60 | Z168: PT200 60 | AA168: EZ-200-60 | AB168: SH-200-60
B169: 65 | N169: STG200 65 | O169: GCG200 65
B170: 70 | C170: IQ200 70 | D170: ITB 200 70 | E170: STS-JZ 200 70 | F170: S100 200 70 | G170: DX2-70-200 | J170: BH200 70 | N170: STG200 70 | O170: GCG200 70 | P170: PTS200-70 | Q170: LTS200-70 | R170: ETS200-70 | S170: VR200 70 | T170: TR200 70 | U170: TLP200 70* | V170: HF200 70 | W170: SLR200 70 | Y170: SR-200-70 | Z170: PT200 70 | AA170: EZ-200-70 | AB170: SH-200-70
B171: 80 | G171: DX2-80-200 | J171: BH200 80 | Q171: LTS200-80 | R171: ETS200-80 | W171: SLR200 80 | Y171: SR-200-80 | Z171: PT200 80 | AB171: SH-200-80
A172: 205000 | B172: 50 | L172: UA (X) 20 50
B173: 60 | L173: UA (X) 20 60
B174: 70 | L174: UA (X) 20 70
B175: 80
A176: 220000 | B176: 60 | L176: UA (X) 22 60
B177: 70 | L177: UA (X) 22 70
A178: 225000 | B178: 50 | Q178: LTS225-50 | R178: ETS225-50
B179: 60 | Q179: LTS225-60 | R179: ETS225-60
B180: 70 | Q180: LTS225-70 | R180: ETS225-70
B181: 80 | Q181: LTS225-80 | R181: ETS225-80
A182: 250000 | B182: 50 | Q182: LTS250-50* | R182: ETS250-50*
B183: 60 | Q183: LTS250-60 | R183: ETS250-60
B184: 70 | Q184: LTS250-70 | R184: ETS250-70
B185: 80 | R185: ETS250-80
Q186: * unvented use

Sheet X-Ref Tubes -"U"
M2: Click here to go to Instructions
A4: TUBES - U COMPARISONS
A5: BTU/hr | B5: Heater | C5: InfraSave | D5: Schwank | E5: Reznor | F5: Modine | G5: Sterling | H5: Space Ray | K5: Solaronics | M5: Detroit Radiant | N5: Roberts Gordon | O5: Enerco | P5: Easy Radiant | Q5: Calca na | R5: Ambi-Rad
A6: Input | B6: Length | C6: ITBU Series | D6: S100U Series | E6: TRP Series | F6: NONE | G6: NONE | H6: LTU | I6: ETU | J6: PTU | K6: Suntube IV | L6: GQ Series | M6: NONE | N6: NONE | O6: NONE | P6: EZ-U Series | Q6: NONE | R6: NONE
A7: 30000 | B7: 10 | E7: TRP30
A8: 40000 | B8: 10 | C8: P40U-I | D8: P40U | I8: ETU40-20 | J8: PTS/U 40 | K8: STU40 15A | L8: GQU40 20A
B9: 15 | H9: LTU40-30 | K9: STU40 20A
B10: 20 | K10: STU40 20A
A11: 45000 | B11: 10 | L11: GQU45 20A
B12: 15 | K12: STU45 20A
B13: 20
A14: 50000 | B14: 10 | I14: ETU50-20 | J14: PTS/U 50 | L14: GQU50 20A
B15: 15 | E15: TRP50 | H15: LTU50-30 | I15: ETU50-30 | K15: STU50 20A
B16: 20
A17: 55000 | B17: 10 | L17: GQU55 20A
B18: 15 | K18: STU55 20A
A19: 60000 | B19: 10 | C19: ITBU60 10 | D19: S100U 60 10 | E19: TRP60 | I19: ETU60-20 | L19: GQU60 20A/MB* | P19: EZU-60-10
B20: 15 | H20: LTU60-30 | I20: ETU60-30 | K20: STU60 20A
B21: 20
A22: 65000 | B22: 10 | L22: GQU65 20MB*
B23: 15 | K23: STU65 20MB* | L23: GQU65 20B
B24: 20 | K24: STU65 40B | L24: GQU65 40B
A25: 70000 | B25: 10 | L25: GQU70 20MB*
B26: 15 | K26: STU70 20MB* | L26: GQU70 20B
B27: 20 | K27: STU70 40B | L27: GQU70 40B
A28: 75000 | B28: 10 | I28: ETU75-20 | J28: PTS/U 75 | L28: GQU75 20MB* | P28: EZU-75-10
B29: 15 | H29: LTU75-30 | I29: ETU75-30 | K29: STU75 20MB* | L29: GQU75 20B
B30: 20 | K30: STU75 40B | L30: GQU75 40B
A31: 80000 | B31: 10 | C31: ITBU80 10 | D31: S100U 80 10 | L31: GQU80 20MB*
B32: 15 | C32: ITBU80 15 | D32: S100U 80 15 | H32: LTU80-30 | I32: ETU80-30 | L32: GQU80 20B
B33: 20 | I33: ETU80-40 | K33: STU80 40B | L33: GQU80 40B
A34: 85000 | B34: 10 | L34: GQU85 20MB*
B35: 15 | L35: GQU85 20B | P35: EZU-85-15
B36: 20 | K36: STU80 40B | L36: GQU85 40B
A37: 90000 | B37: 15 | H37: LTU90-30 | I37: ETU90-30 | L37: GQU90 20B
B38: 20 | I38: ETU90-40 | K38: STU90 40B | L38: GQU90 40B
A39: 95000 | B39: 15 | L39: GQU90 20B
B40: 20 | K40: STU95 40B | L40: GQU90 40B
A41: 100000 | B41: 15 | E41: TRP100 | H41: LTU100-30 | I41: ETU100-30 | J41: PTS/U 100 | L41: GQU100 20B | P41: EZ-100-15
B42: 20 | I42: ETU100-40 | K42: STU100 40B | L42: GQU100 40B | P42: EZ-100-20
B43: 25 | K43: STU100 50B | L43: GQU100 50B
A44: 105000 | B44: 20 | K44: STU105 40B | L44: GQU105 40B
B45: 25 | K45: STU105 50B | L45: GQU105 50B
A46: 110000 | B46: 15 | C46: ITBU110 15 | D46: S100U 110 15 | H46: LTU110-30 | I46: ETU110-30
B47: 20 | C47: ITBU110 20 | D47: S100U 110 20 | I47: ETU110-40 | K47: STU110 40B | L47: GQU110 20B
B48: 25 | K48: STU110 50B | L48: GQU110 50B
A49: 115000 | B49: 20 | K49: STU115 40B | L49: GQU115 40B
B50: 25 | K50: STU115 50B | L50: GQU115 50B
A51: 120000 | B51: 15 | H51: LTU120-30 | I51: ETU120-30
B52: 20 | I52: ETU120-40 | K52: STU120 40B | L52: GQU120 40B
B53: 25 | K53: STU120 50B | L53: GQU120 50B
A54: 125000 | B54: 15 | H54: LTU125-30 | I54: ETU125-30 | J54: PTS/U 125
B55: 20 | H55: LTU125-40 | I55: ETU125-40 | K55: STU125 40B | L55: GQU125 40B*/C** | P55: EZ-125-20
B56: 25 | I56: ETU125-50 | K56: STU125 50B | L56: GQU125 50C**
B57: 30 | P57: EZ-125-30
A58: 130000 | B58: 15 | C58: ITBU130 15 | D58: S100U 130 15 | H58: LTU130-30 | I58: ETU130-30
B59: 20 | C59: ITBU130 20 | D59: S100U 130 20 | H59: LTU130-40 | I59: ETU130-40 | K59: STU130 40C | L59: GQU130 40C
B60: 25 | I60: ETU130-50 | L60: GQU130 50C
A61: 135000 | B61: 20 | K61: STU135 40C | L61: GQU135 40C
B62: 25 | L62: GQU135 50C
B63: 30 | K63: STU135 40C | P63: EZ-135-30
B64: 35 | K64: STU135 45C
A65: 140000 | B65: 20 | H65: LTU140-40 | I65: ETU140-40 | K65: STU140 40C | L65: GQU140 40C
B66: 25 | I66: ETU140-50 | L66: GQU140 50C
A67: 145000 | B67: 20 | K67: STU145 40C | L67: GQU145 40C
B68: 25 | L68: GQU145 50C
A69: 150000 | B69: 20 | H69: LTU150-40 | I69: ETU150-40 | J69: PTS/U 150 | K69: STU150 40C | L69: GQU150 40C
B70: 25 | I70: ETU150-50 | K70: STU150 50C | L70: GQU150 50C
B71: 30 | K71: STU150 60C | L71: GQU150 60C | P71: EZ-150-30
B72: 35 | K72: STU150 70C | L72: GQU150 70C
A73: 155000 | B73: 20 | C73: ITBU155 20 | D73: S100U 155 20
B74: 25 | K74: STU155 50C | L74: GQU155 50C
B75: 30 | C75: ITBU155 30 | D75: S100U 155 30 | K75: STU155 60C | L75: GQU155 60C
B76: 35 | K76: STU155 70C | L76: GQU155 70C
A77: 160000 | B77: 20 | H77: LTU160-40 | I77: ETU160-40
B78: 25 | I78: ETU160-50 | K78: STU160 50C | L78: GQU160 50C
B79: 30 | K79: STU160 60C | L79: GQU160 60C
B80: 35 | K80: STU160 70C | L80: GQU160 70C
A81: 165000 | B81: 25 | K81: STU165 50C | L81: GQU165 50C
B82: 30 | K82: STU165 60C | L82: GQU165 60C | P82: EZ-165-30
B83: 35 | K83: STU165 70C | L83: GQU165 70C
A84: 170000 | B84: 25 | K84: STU170 50C | L84: GQU170 50C
B85: 30 | K85: STU170 60C | L85: GQU170 60C
B86: 35 | K86: STU170 70C | L86: GQU170 70C
A87: 175000 | B87: 20 | H87: LTU175-40 | I87: ETU175-40 | J87: PTS/U 175
B88: 25 | I88: ETU175-50 | K88: STU175 50C | L88: GQU175 50C
B89: 30 | C89: ITBU175 30 | D89: S100U 175 30 | K89: STU175 60C | L89: GQU175 60C
B90: 35 | K90: STU175 70C | L90: GQU175 70C
A91: 180000 | B91: 25 | H91: LTU180-50 | I91: ETU180-50 | K91: STU180 50C | L91: GQU180 50C
B92: 30 | I92: ETU180-60 | K92: STU180 60C | L92: GQU180 60C
B93: 35 | I93: ETU180-70 | K93: STU180 70C | L93: GQU180 70C
B94: 40 | I94: ETU180-80
A95: 185000 | B95: 25 | K95: STU185 50C | L95: GQU185 50C
B96: 30 | K96: STU185 60C | L96: GQU185 60C
B97: 35 | K97: STU185 70C | L97: GQU185 70C
A98: 190000 | B98: 25 | K98: STU190 50C | L98: GQU190 50C
B99: 30 | K99: STU190 60C | L99: GQU190 60C
B100: 35 | K100: STU190 70C | L100: GQU190 70C
A101: 195000 | B101: 25 | K101: STU195 50C | L101: GQU195 50C
B102: 30 | K102: STU195 60C | L102: GQU195 60C
B103: 35 | K103: STU195 70C | L103: GQU195 70C
A104: 200000 | B104: 25 | H104: LTU200-50 | I104: ETU200-50 | J104: PTS/U 200 | K104: STU200 50C | L104: GQU200 50C
B105: 30 | C105: ITBU200 30 | D105: S100U 200 30 | I105: ETU200-60 | K105: STU200 60C | L105: GQU200 60C | P105: EZ-200-30
B106: 35 | I106: ETU200-70 | K106: STU200 70C | L106: GQU200 70C
B107: 40 | I107: ETU200-80 | P107: EZ-200-40
A108: 225000 | B108: 25 | H108: LTU225-50 | I108: ETU225-50
B109: 30 | I109: ETU225-60
B110: 35 | I110: ETU225-70
B111: 40 | I111: ETU225-80
A112: 250000 | B112: 25 | H112: LTU250-50 | I112: ETU250-50
B113: 30 | I113: ETU250-60
B114: 35 | I114: ETU250-70
B115: 40 | I115: ETU250-80

Sheet X-Ref High Intensity
K2: Click here to go to Instructions
A3: HIGH INTENSITY COMPARISONS
C4: InfraSave | F4: Schwank | G4: Solaronics | H4: Detroit Radiant | I4: Space-Ray | K4: Superior Radiant | L4: Roberts Gordon | M4: Reznor | N4: Modine | P4: Sterling | Q4: Enerco | R4: Easy Radiant | S4: Sun Technology
A5: KW | B5: BTU | C5: Standard Model | D5: 81% Radiant | E5: 67% Radiant | F5: Standard Model | H5: (Re-Verber-Ray) | I5: Gas Fired Products | L5: Gordon Glow | S5: Ray-Tech
A6: INPUT | B6: INPUT | C6: IL Series | D6: supraSchwank (1) | E6: primoSchwank (1) | F6: ecoSchwank | G6: K Series | H6: DR Series | I6: RSCA Series | J6: DK Series | K6: HD Series | L6: GG Series | M6: RIH Series | N6: MT Series | O6: GR Series | P6: SHR Series | Q6: EnerRadiant | R6: RA Series | S6: RT Series
A7: =B7/3413 -> 6.299443305 | B7: 21500 | F7: ecoSchwank 6
A8: 7.324934076 | B8: 25000 | L8: DISCONTINUED | S8: RT25
A9: 7.617931439 | B9: 26000 | I9: RSCA3
A10: 8.057427483 | B10: 27500 | N10: MT 28 | S10: RT28
A11: 8.643422209 | B11: 29500 | D11: supraSchwank10
A12: 8.789920891 | B12: 30000 | G12: K-30 * | H12: DR 30 / DR 30 (S) | J12: DK30 * | K12: HD3 | L12: GG-30 | M12: RIHN 30* | N12: MT 30 | Q12: 4030 | S12: RT30
A13: 9.66891298 | B13: 33000 | J13: DK33 ** | R13: RA-30
A14: 9.815411661 | B14: 33500 | N14: MT 33 | S14: RT33
A15: 10.25490771 | B15: 35000 | C15: IL 37 | F15: ecoSchwank 10 | G15: K-35 * | J15: DK35 * | P15: SHR35 | R15: RA-35
A16: 10.98740111 | B16: 37500 | E16: primoSchwank 10
A17: 11.13389979 | B17: 38000 | O17: GR-38
A18: 11.71989452 | B18: 40000 | G18: K-40 * | J18: DK40* | Q18: 4040 | R18: RA-40
A19: 12.89188397 | B19: 44000 | D19: supraSchwank15
A20: 13.18488134 | B20: 45000 | G20: K-45 * | H20: DR 45
A21: 14.64986815 | B21: 50000 | C21: IL 50 | F21: ecoSchwank 13 | G21: K-50 | H21: DR 50 | M21: RIHL50** | O21: GR-50 | P21: SHR50 | Q21: 8050 | R21: RA-50 | S21: RT50
A22: 15.23586288 | B22: 52000 | I22: RSCA6
A23: 16.11485497 | B23: 55000 | G23: K-55 * | H23: DR 55 | N23: MT 55 | S23: RT56
A24: 16.40785233 | B24: 56000 | E24: primoSchwank 15
A25: 17.28684442 | B25: 59000 | D25: supraSchwank20
A26: 17.57984178 | B26: 60000 | G26: K-60 * | H26: DR 60 | J26: DK60* | K26: HD6 | L26: GG-60 | M26: RIHN 60* | N26: MT 60 | Q26: 8060 | R26: RA-60 | S26: RT60
A27: 19.33782596 | B27: 66000 | J27: DK66 **
A28: 19.63082332 | B28: 67000 | N28: MT 66 | S28: RT66*
A29: 20.50981541 | B29: 70000 | G29: K-70 | Q29: 8070 | R29: RA-70
A30: 20.94931146 | B30: 71500 | C30: IL 75 | F30: ecoSchwank 18
A31: 21.97480223 | B31: 75000 | E31: primoSchwank 20 | G31: K-75 | H31: DR 75 | O31: GR-75 | P31: SHR75 | S31: RT75
A32: 23.43978904 | B32: 80000 | G32: K-80 | H32: DR 80 | Q32: 9080 | R32: RA-80
A33: 24.17228245 | B33: 82500 | N33: MT 84 | S33: RT84
A34: 24.90477586 | B34: 85000 | G34: K-85 | H34: DR 85
A35: 25.93026663 | B35: 88500 | D35: supraSchwank30
A36: 26.36976267 | B36: 90000 | G36: K-90 | H36: DR 90 | K36: HD9 | L36: GG-90 | M36: RIHVL 90** | N36: MT 90 | Q36: 9090 | R36: RA-90 | S36: RT90
A37: 27.83474949 | B37: 95000 | G37: K-95 * | H37: DR 95 *
A38: 29.00673894 | B38: 99000 | J38: DK100 **
A39: 29.2997363 | B39: 100000 | C39: IL 100 | F39: ecoSchwank 26 | G39: K-100 * | H39: DR 100 * | J39: DK100 * | L39: GG-100 | M39: RIHVN 100* | O39: GR-100 | P39: SHR100 | Q39: 9100/9100SS | R39: RA-100
A40: 29.44623498 | B40: 100500 | N40: MT 99 | S40: RT99*
A41: 30.47172575 | B41: 104000 | I41: RSCA10
A42: 30.76472312 | B42: 105000 | R42: RA-105
A43: 32.22970993 | B43: 110000 | G43: K-110 * | N43: MT 112 | S43: RT112
A44: 33.10870202 | B44: 113000 | E44: primoSchwank 30
A45: 34.57368884 | B45: 118000 | D45: supraSchwank40
A46: 35.15968356 | B46: 120000 | G46: K-120 | H46: DR 130 ** | J46: DK120 * | K46: HD12 | L46: GG-120 | M46: RIHVL 120** | N46: MT 120 | Q46: 9120 | R46: RA-120 | S46: RT120
A47: 36.62467038 | B47: 125000
A48: 38.08965719 | B48: 130000 | G48: K-130 * | H48: DR 130 * | L48: GG-130
A49: 38.67565192 | B49: 132000 | J49: DK132 **
A50: 39.26164665 | B50: 134000 | N50: MT 132 * | S50: RT132*
A51: 39.55464401 | B51: 135000 | G51: K-135 * | R51: RA-135
A52: 41.01963082 | B52: 140000 | J52: DK140 * | Q52: 9140*
A53: 42.48461764 | B53: 145000 | H53: DR 160 **
A54: 43.94960445 | B54: 150000 | C54: IL 150 | E54: primoSchwank 40 | F54: ecoSchwank 36 | G54: K-150 * | M54: RIHVN 150* | P54: SHR150 | R54: RA-150
A55: 46.87957808 | B55: 160000 | G55: K-160 | H55: DR 160 * | J55: DK160 * | L55: GG-160 | M55: RIHVN 160* | N55: MT 160
A56: 51.27453853 | B56: 175000 | G56: K-175 *
A57: 52.73952534 | B57: 180000
A58: 58.5994726 | B58: 200000 | C58: IL 200 | F58: ecoSchwank 52 | G58: K-200 * | M58: RIHVN 200 * | P58: SHR200

Sheet 1
A1: BURNER KITS
E2: NG -> LP
B3: QTY | C3: PART # | D3: Description | E3: Conv. Kit
A4: P40U-I | B4: 1 | C4: ="PU-I040-"&IF('Tube Htr Kits'!J5="USA","AN","CN") -> PU-I040-AN | D4: P40U-I Factory Assembled Heater 10' x 40,000 Btuh NG | E4: JS-0555XA | F4: Type 1 Hose Connector 1/2" x 36" INCLUDED with heater | G4: Flexible Gas Connector 1/2" x 24" INCLUDED with heater
A5: IQ-45 | B5: 1 | C5: ="JJ-S045"&IF('1. Project Details'!$C$6="USA","-AN","-CN") -> JJ-S045-AN | D5: IQ BURNER KIT 45,000 Btuh NG | E5: JS-0556-XC | F5: Type 1 Hose Connector 1/2" x 36" INCLUDED in Burner Kit | G5: Flexible Gas Connector 1/2" x 24" INCLUDED in Burner Kit
A6: IQ-60 | B6: 1 | C6: ="JJ-S060"&IF('Tube Htr Kits'!$J$5="USA","-AN","-CN") -> JJ-S060-AN | D6: IQ BURNER KIT 60,000 Btuh NG | E6: JS-0557-XX | F6: Type 1 Hose Connector 1/2" x 36" INCLUDED in Burner Kit | G6: Flexible Gas Connector 1/2" x 24" INCLUDED in Burner Kit
A7: IQ-80 | B7: 1 | C7: ="JJ-S080"&IF('Tube Htr Kits'!$J$5="USA","-AN","-CN") -> JJ-S080-AN | D7: IQ BURNER KIT 80,000 Btuh NG | E7: JS-0559-XX | F7: Type 1 Hose Connector 1/2" x 36" INCLUDED in Burner Kit | G7: Flexible Gas Connector 1/2" x 24" INCLUDED in Burner Kit
A8: IQ-100 | B8: 1 | C8: ="JJ-S100"&IF('Tube Htr Kits'!$J$5="USA","-AN","-CN") -> JJ-S100-AN | D8: IQ BURNER KIT 100,000 Btuh NG | E8: JS-0561-XA | F8: Type 1 Hose Connector 1/2" x 36" INCLUDED in Burner Kit | G8: Flexible Gas Connector 1/2" x 24" INCLUDED in Burner Kit
A9: IQ-110 | B9: 1 | C9: ="JJ-S110"&IF('Tube Htr Kits'!$J$5="USA","-AN","-CN") -> JJ-S110-AN | D9: IQ BURNER KIT 110,000 Btuh NG | E9: JS-0561-XX | F9: Type 1 Hose Connector 1/2" x 36" INCLUDED in Burner Kit | G9: Flexible Gas Connector 1/2" x 24" INCLUDED in Burner Kit
A10: IQ-130 | B10: 1 | C10: ="JJ-S130"&IF('Tube Htr Kits'!$J$5="USA","-AN","-CN") -> JJ-S130-AN | D10: IQ BURNER KIT 130,000 Btuh NG | E10: JS-0563-XX | F10: Type 1 Hose Connector 1/2" x 36" INCLUDED in Burner Kit | G10: Flexible Gas Connector 1/2" x 24" INCLUDED in Burner Kit
A11: IQ-155 | B11: 1 | C11: ="JJ-S155"&IF('Tube Htr Kits'!$J$5="USA","-AN","-CN") -> JJ-S155-AN | D11: IQ BURNER KIT 155,000 Btuh NG | E11: JS-0565-XX | F11: Type 1 Hose Connector 3/4" x 36" INCLUDED in Burner Kit | G11: Flexible Gas Connector 3/4" x 36" INCLUDED in Burner Kit
A12: IQ-175 | B12: 1 | C12: ="JJ-S175"&IF('Tube Htr Kits'!$J$5="USA","-AN","-CN") -> JJ-S175-AN | D12: IQ BURNER KIT 175,000 Btuh NG | E12: JS-0567-AA | F12: Type 1 Hose Connector 3/4" x 36" INCLUDED in Burner Kit | G12: Flexible Gas Connector 3/4" x 36" INCLUDED in Burner Kit
A13: IQ-200 | B13: 1 | C13: ="JJ-S200"&IF('Tube Htr Kits'!$J$5="USA","-AN","-CN") -> JJ-S200-AN | D13: IQ BURNER KIT 200,000 Btuh NG | E13: JS-0567-CC | F13: Type 1 Hose Connector 3/4" x 36" INCLUDED in Burner Kit | G13: Flexible Gas Connector 3/4" x 36" INCLUDED in Burner Kit
A14: P40R | B14: 1 | C14: PU-R040-BN | D14: P40R Factory Assembled Workshop Heater 10' x 40,000 Btuh NG | E14: JS-0555XA | F14: Can be connected directly to gas supply piping; Check Local Codes & Requirements | G14: Can be connected directly to gas supply piping; Check Local Codes & Requirements
A15: ITB-45 | B15: 1 | C15: ="JJ-E045"&IF('Tube Htr Kits'!$J$5="USA","-BN","-CN") -> JJ-E045-BN | D15: ITB BURNER KIT 45,000 Btuh NG | E15: JS-0556-XE | F15: Type 1 Hose Connector 1/2" x 36" INCLUDED in Burner Kit | G15: Flexible Gas Connector 1/2" x 24" INCLUDED in Burner Kit
A16: ITB-60 | B16: 1 | C16: ="JJ-E060"&IF('Tube Htr Kits'!$J$5="USA","-BN","-CN") -> JJ-E060-BN | D16: ITB BURNER KIT 60,000 Btuh NG | E16: JS-0557-XX | F16: Type 1 Hose Connector 1/2" x 36" INCLUDED in Burner Kit | G16: Flexible Gas Connector 1/2" x 24" INCLUDED in Burner Kit
A17: ITB-80 | B17: 1 | C17: ="JJ-E080"&IF('Tube Htr Kits'!$J$5="USA","-BN","-CN") -> JJ-E080-BN | D17: ITB BURNER KIT 80,000 Btuh NG | E17: JS-0559-XX | F17: Type 1 Hose Connector 1/2" x 36" INCLUDED in Burner Kit | G17: Flexible Gas Connector 1/2" x 24" INCLUDED in Burner Kit
A18: ITB-100 | B18: 1 | C18: ="JJ-E100"&IF('Tube Htr Kits'!$J$5="USA","-BN","-CN") -> JJ-E100-BN | D18: ITB BURNER KIT 100,000 Btuh NG | E18: JS-0561-XA | F18: Type 1 Hose Connector 1/2" x 36" INCLUDED in Burner Kit | G18: Flexible Gas Connector 1/2" x 24" INCLUDED in Burner Kit
A19: ITB-110 | B19: 1 | C19: ="JJ-E110"&IF('Tube Htr Kits'!$J$5="USA","-BN","-CN") -> JJ-E110-BN | D19: ITB BURNER KIT 110,000 Btuh NG | E19: JS-0561-XX | F19: Type 1 Hose Connector 1/2" x 36" INCLUDED in Burner Kit | G19: Flexible Gas Connector 1/2" x 24" INCLUDED in Burner Kit
A20: ITB-130 | B20: 1 | C20: ="JJ-E130"&IF('Tube Htr Kits'!$J$5="USA","-BN","-CN") -> JJ-E130-BN | D20: ITB BURNER KIT 130,000 Btuh NG | E20: JS-0563-XX | F20: Type 1 Hose Connector 1/2" x 36" INCLUDED in Burner Kit | G20: Flexible Gas Connector 1/2" x 24" INCLUDED in Burner Kit
A21: ITB-155 | B21: 1 | C21: ="JJ-E155"&IF('Tube Htr Kits'!$J$5="USA","-BN","-CN") -> JJ-E155-BN | D21: ITB BURNER KIT 155,000 Btuh NG | E21: JS-0565-XX | F21: Type 1 Hose Connector 3/4" x 36" INCLUDED in Burner Kit | G21: Flexible Gas Connector 3/4" x 36" INCLUDED in Burner Kit
A22: ITB-175 | B22: 1 | C22: ="JJ-E175"&IF('Tube Htr Kits'!$J$5="USA","-BN","-CN") -> JJ-E175-BN | D22: ITB BURNER KIT 175,000 Btuh NG | E22: JS-0567-AA | F22: Type 1 Hose Connector 3/4" x 36" INCLUDED in Burner Kit | G22: Flexible Gas Connector 3/4" x 36" INCLUDED in Burner Kit
A23: ITB-200 | B23: 1 | C23: ="JJ-E200"&IF('Tube Htr Kits'!$J$5="USA","-BN","-CN") -> JJ-E200-BN | D23: ITB BURNER KIT 200,000 Btuh NG | E23: JS-0567-CC | F23: Type 1 Hose Connector 3/4" x 36" INCLUDED in Burner Kit | G23: Flexible Gas Connector 3/4" x 36" INCLUDED in Burner Kit
A24: ITBU-60 | B24: 1 | C24: ="JJ-E060"&IF('Tube Htr Kits'!$J$5="USA","-BN","-CN") -> JJ-E060-BN | D24: ITB BURNER KIT 60,000 Btuh NG | E24: JS-0557-XX | F24: Type 1 Hose Connector 1/2" x 36" INCLUDED in Burner Kit | G24: Flexible Gas Connector 1/2" x 24" INCLUDED in Burner Kit
A25: ITBU-80 | B25: 1 | C25: ="JJ-E080"&IF('Tube Htr Kits'!$J$5="USA","-BN","-CN") -> JJ-E080-BN | D25: ITB BURNER KIT 80,000 Btuh NG | E25: JS-0559-XX | F25: Type 1 Hose Connector 1/2" x 36" INCLUDED in Burner Kit | G25: Flexible Gas Connector 1/2" x 24" INCLUDED in Burner Kit
A26: ITBU-100 | B26: 1 | C26: ="JJ-E100"&IF('Tube Htr Kits'!$J$5="USA","-BN","-CN") -> JJ-E100-BN | D26: ITB BURNER KIT 100,000 Btuh NG | E26: JS-0561-XA | F26: Type 1 Hose Connector 1/2" x 36" INCLUDED in Burner Kit | G26: Flexible Gas Connector 1/2" x 24" INCLUDED in Burner Kit
A27: ITBU-110 | B27: 1 | C27: ="JJ-E110"&IF('Tube Htr Kits'!$J$5="USA","-BN","-CN") -> JJ-E110-BN | D27: ITB BURNER KIT 110,000 Btuh NG | E27: JS-0561-XX | F27: Type 1 Hose Connector 1/2" x 36" INCLUDED in Burner Kit | G27: Flexible Gas Connector 1/2" x 24" INCLUDED in Burner Kit
A28: ITBU-130 | B28: 1 | C28: ="JJ-E130"&IF('Tube Htr Kits'!$J$5="USA","-BN","-CN") -> JJ-E130-BN | D28: ITB BURNER KIT 130,000 Btuh NG | E28: JS-0563-XX | F28: Type 1 Hose Connector 1/2" x 36" INCLUDED in Burner Kit | G28: Flexible Gas Connector 1/2" x 24" INCLUDED in Burner Kit
A29: ITBU-155 | B29: 1 | C29: ="JJ-E155"&IF('Tube Htr Kits'!$J$5="USA","-BN","-CN") -> JJ-E155-BN | D29: ITB BURNER KIT 155,000 Btuh NG | E29: JS-0565-XX | F29: Type 1 Hose Connector 3/4" x 36" INCLUDED in Burner Kit | G29: Flexible Gas Connector 3/4" x 36" INCLUDED in Burner Kit
A30: ITBU-175 | B30: 1 | C30: ="JJ-E175"&IF('Tube Htr Kits'!$J$5="USA","-BN","-CN") -> JJ-E175-BN | D30: ITB BURNER KIT 175,000 Btuh NG | E30: JS-0567-AA | F30: Type 1 Hose Connector 3/4" x 36" INCLUDED in Burner Kit | G30: Flexible Gas Connector 3/4" x 36" INCLUDED in Burner Kit
A31: ITBU-200 | B31: 1 | C31: ="JJ-E200"&IF('Tube Htr Kits'!$J$5="USA","-BN","-CN") -> JJ-E200-BN | D31: ITB BURNER KIT 200,000 Btuh NG | E31: JS-0567-CC | F31: Type 1 Hose Connector 3/4" x 36" INCLUDED in Burner Kit | G31: Flexible Gas Connector 3/4" x 36" INCLUDED in Burner Kit
A32: P40U-IW | B32: 1 | C32: ="PU-IW40-"&IF('Tube Htr Kits'!$J$5="USA","AN","CN") -> PU-IW40-AN | D32: P40U-IW Factory Assembled Car Wash Heater 10' x 40,000 Btuh NG | E32: JS-0555XA | F32: Type 1 Hose Connector 1/2" x 36" INCLUDED with heater | G32: Flexible Gas Connector 1/2" x 24" INCLUDED with heater
A33: IW-45 | B33: 1 | C33: ="JJ-P045"&IF('Tube Htr Kits'!$J$5="USA","-BN","-CN") -> JJ-P045-BN | D33: IW BURNER KIT 45,000 Btuh NG | E33: JS-0556-XC | F33: Type 1 Hose Connector 1/2" x 36" INCLUDED in Burner Kit | G33: Flexible Gas Connector 1/2" x 24" INCLUDED in Burner Kit
A34: IW-60 | B34: 1 | C34: ="JJ-P060"&IF('Tube Htr Kits'!$J$5="USA","-BN","-CN") -> JJ-P060-BN | D34: IW BURNER KIT 60,000 Btuh NG | E34: JS-0557-XX | F34: Type 1 Hose Connector 1/2" x 36" INCLUDED in Burner Kit | G34: Flexible Gas Connector 1/2" x 24" INCLUDED in Burner Kit
A35: IW-80 | B35: 1 | C35: ="JJ-P080"&IF('Tube Htr Kits'!$J$5="USA","-BN","-CN") -> JJ-P080-BN | D35: IW BURNER KIT 80,000 Btuh NG | E35: JS-0559-XX | F35: Type 1 Hose Connector 1/2" x 36" INCLUDED in Burner Kit | G35: Flexible Gas Connector 1/2" x 24" INCLUDED in Burner Kit
A36: IW-110 | B36: 1 | C36: ="JJ-P110"&IF('Tube Htr Kits'!$J$5="USA","-BN","-CN") -> JJ-P110-BN | D36: IW BURNER KIT 110,000 Btuh NG | E36: JS-0561-XX | F36: Type 1 Hose Connector 1/2" x 36" INCLUDED in Burner Kit | G36: Flexible Gas Connector 1/2" x 24" INCLUDED in Burner Kit
A37: IW-130 | B37: 1 | C37: ="JJ-P130"&IF('Tube Htr Kits'!$J$5="USA","-BN","-CN") -> JJ-P130-BN | D37: IW BURNER KIT 130,000 Btuh NG | E37: JS-0563-XX | F37: Type 1 Hose Connector 1/2" x 36" INCLUDED in Burner Kit | G37: Flexible Gas Connector 1/2" x 24" INCLUDED in Burner Kit
A38: IW-155 | B38: 1 | C38: ="JJ-P155"&IF('Tube Htr Kits'!$J$5="USA","-BN","-CN") -> JJ-P155-BN | D38: IW BURNER KIT 155,000 Btuh NG | E38: JS-0565-XX | F38: Type 1 Hose Connector 3/4" x 36" INCLUDED in Burner Kit | G38: Flexible Gas Connector 3/4" x 36" INCLUDED in Burner Kit
A39: IW-175 | B39: 1 | C39: ="JJ-P175"&IF('Tube Htr Kits'!$J$5="USA","-BN","-CN") -> JJ-P175-BN | D39: IW BURNER KIT 175,000 Btuh NG | E39: JS-0567-AA | F39: Type 1 Hose Connector 3/4" x 36" INCLUDED in Burner Kit | G39: Flexible Gas Connector 3/4" x 36" INCLUDED in Burner Kit
A40: IW-200 | B40: 1 | C40: ="JJ-P200"&IF('Tube Htr Kits'!$J$5="USA","-BN","-CN") -> JJ-P200-BN | D40: IW BURNER KIT 200,000 Btuh NG | E40: JS-0567-CC | F40: Type 1 Hose Connector 3/4" x 36" INCLUDED in Burner Kit | G40: Flexible Gas Connector 3/4" x 36" INCLUDED in Burner Kit
A41: P40U-IP | B41: 1 | C41: ="PU-IP40-"&IF('Tube Htr Kits'!$J$5="USA","AN","CN") -> PU-IP40-AN | D41: P40U-IP Factory Assembled Outdoor Heater 10' x 40,000 Btuh NG | E41: JS-0555XA | F41: Type 1 Hose Connector 1/2" x 36" INCLUDED with heater | G41: Flexible Gas Connector 1/2" x 24" INCLUDED with heater
A42: IWP-45 | B42: 1 | C42: ="JJ-045W"&IF('Tube Htr Kits'!$J$5="USA","-BN","-CN") -> JJ-045W-BN | D42: IWP BURNER KIT 45,000 Btuh NG | E42: JS-0556-XC | F42: Type 1 Hose Connector 1/2" x 36" INCLUDED in Burner Kit | G42: Flexible Gas Connector 1/2" x 24" INCLUDED in Burner Kit
A43: IWP-60 | B43: 1 | C43: ="JJ-060W"&IF('Tube Htr Kits'!$J$5="USA","-BN","-CN") -> JJ-060W-BN | D43: IWP BURNER KIT 60,000 Btuh NG | E43: JS-0557-XX | F43: Type 1 Hose Connector 1/2" x 36" INCLUDED in Burner Kit | G43: Flexible Gas Connector 1/2" x 24" INCLUDED in Burner Kit
A44: IWP-80 | B44: 1 | C44: ="JJ-080W"&IF('Tube Htr Kits'!$J$5="USA","-BN","-CN") -> JJ-080W-BN | D44: IWP BURNER KIT 80,000 Btuh NG | E44: JS-0559-XX | F44: Type 1 Hose Connector 1/2" x 36" INCLUDED in Burner Kit | G44: Flexible Gas Connector 1/2" x 24" INCLUDED in Burner Kit
A45: IWP-110 | B45: 1 | C45: ="JJ-110W"&IF('Tube Htr Kits'!$J$5="USA","-BN","-CN") -> JJ-110W-BN | D45: IWP BURNER KIT 110,000 Btuh NG | E45: JS-0561-XX | F45: Type 1 Hose Connector 1/2" x 36" INCLUDED in Burner Kit | G45: Flexible Gas Connector 1/2" x 24" INCLUDED in Burner Kit
A46: IWP-130 | B46: 1 | C46: ="JJ-130W"&IF('Tube Htr Kits'!$J$5="USA","-BN","-CN") -> JJ-130W-BN | D46: IWP BURNER KIT 130,000 Btuh NG | E46: JS-0563-XX | F46: Type 1 Hose Connector 1/2" x 36" INCLUDED in Burner Kit | G46: Flexible Gas Connector 1/2" x 24" INCLUDED in Burner Kit
A47: IWP-155 | B47: 1 | C47: ="JJ-155W"&IF('Tube Htr Kits'!$J$5="USA","-BN","-CN") -> JJ-155W-BN | D47: IWP BURNER KIT 155,000 Btuh NG | E47: JS-0565-XX | F47: Type 1 Hose Connector 3/4" x 36" INCLUDED in Burner Kit | G47: Flexible Gas Connector 3/4" x 36" INCLUDED in Burner Kit
A48: IWP-175 | B48: 1 | C48: ="JJ-175W"&IF('Tube Htr Kits'!$J$5="USA","-BN","-CN") -> JJ-175W-BN | D48: IWP BURNER KIT 175,000 Btuh NG | E48: JS-0567-AA | F48: Type 1 Hose Connector 3/4" x 36" INCLUDED in Burner Kit | G48: Flexible Gas Connector 3/4" x 36" INCLUDED in Burner Kit
A49: IWP-200 | B49: 1 | C49: ="JJ-200W"&IF('Tube Htr Kits'!$J$5="USA","-BN","-CN") -> JJ-200W-BN | D49: IWP BURNER KIT 200,000 Btuh NG | E49: JS-0567-CC | F49: Type 1 Hose Connector 3/4" x 36" INCLUDED in Burner Kit | G49: Flexible Gas Connector 3/4" x 36" INCLUDED in Burner Kit
A50: ITT-80/60 | B50: 1 | C50: ="JJ-080T"&IF('Tube Htr Kits'!$J$5="USA","-BN","-CN") -> JJ-080T-BN | D50: ITT- BURNER KIT 80/60 TWO STAGE NG | E50: JS-0559-XX | F50: Type 1 Hose Connector 1/2" x 36" INCLUDED in Burner Kit | G50: Flexible Gas Connector 1/2" x 24" INCLUDED in Burner Kit
A51: ITT-110/75 | B51: 1 | C51: ="JJ-110T"&IF('Tube Htr Kits'!$J$5="USA","-BN","-CN") -> JJ-110T-BN | D51: ITT- BURNER KIT 110/75 TWO STAGE NG | E51: JS-0561-XX | F51: Type 1 Hose Connector 1/2" x 36" INCLUDED in Burner Kit | G51: Flexible Gas Connector 1/2" x 24" INCLUDED in Burner Kit
A52: ITT-130/90 | B52: 1 | C52: ="JJ-130T"&IF('Tube Htr Kits'!$J$5="USA","-BN","-CN") -> JJ-130T-BN | D52: ITT- BURNER KIT 130/90 TWO STAGE NG | E52: JS-0563-XX | F52: Type 1 Hose Connector 1/2" x 36" INCLUDED in Burner Kit | G52: Flexible Gas Connector 1/2" x 24" INCLUDED in Burner Kit
A53: ITT-155/110 | B53: 1 | C53: ="JJ-155T"&IF('Tube Htr Kits'!$J$5="USA","-BN","-CN") -> JJ-155T-BN | D53: ITT-BURNER KIT 155/110 TWO STAGE NG | E53: JS-0565-XX | F53: Type 1 Hose Connector 3/4" x 36" INCLUDED in Burner Kit | G53: Flexible Gas Connector 3/4" x 36" INCLUDED in Burner Kit
A54: ITT-175/125 | B54: 1 | C54: ="JJ-175T"&IF('Tube Htr Kits'!$J$5="USA","-BN","-CN") -> JJ-175T-BN | D54: ITT-BURNER KIT 175/120 TWO STAGE NG | E54: NG ONLY | F54: Type 1 Hose Connector 3/4" x 36" INCLUDED in Burner Kit | G54: Flexible Gas Connector 3/4" x 36" INCLUDED in Burner Kit
A55: ITT-200/140 | B55: 1 | C55: ="JJ-200T"&IF('Tube Htr Kits'!$J$5="USA","-BN","-CN") -> JJ-200T-BN | D55: ITT-BURNER KIT 200/140 TWO STAGE NG | E55: NG ONLY | F55: Type 1 Hose Connector 3/4" x 36" INCLUDED in Burner Kit | G55: Flexible Gas Connector 3/4" x 36" INCLUDED in Burner Kit
A56: ITTU-80/60 | B56: 1 | C56: ="JJ-080T"&IF('Tube Htr Kits'!$J$5="USA","-BN","-CN") -> JJ-080T-BN | D56: ITT- BURNER KIT 80/60 TWO STAGE NG | E56: JS-0559-XX | F56: Type 1 Hose Connector 1/2" x 36" INCLUDED in Burner Kit | G56: Flexible Gas Connector 1/2" x 24" INCLUDED in Burner Kit
A57: ITTU-110/75 | B57: 1 | C57: ="JJ-110T"&IF('Tube Htr Kits'!$J$5="USA","-BN","-CN") -> JJ-110T-BN | D57: ITT- BURNER KIT 110/75 TWO STAGE NG | E57: JS-0561-XX | F57: Type 1 Hose Connector 1/2" x 36" INCLUDED in Burner Kit | G57: Flexible Gas Connector 1/2" x 24" INCLUDED in Burner Kit
A58: ITTU-130/90 | B58: 1 | C58: ="JJ-130T"&IF('Tube Htr Kits'!$J$5="USA","-BN","-CN") -> JJ-130T-BN | D58: ITT- BURNER KIT 130/90 TWO STAGE NG | E58: JS-0563-XX | F58: Type 1 Hose Connector 1/2" x 36" INCLUDED in Burner Kit | G58: Flexible Gas Connector 1/2" x 24" INCLUDED in Burner Kit
A59: ITTU-155/110 | B59: 1 | C59: ="JJ-155T"&IF('Tube Htr Kits'!$J$5="USA","-BN","-CN") -> JJ-155T-BN | D59: ITT-BURNER KIT 155/110 TWO STAGE NG | E59: JS-0565-XX | F59: Type 1 Hose Connector 3/4" x 36" INCLUDED in Burner Kit | G59: Flexible Gas Connector 3/4" x 36" INCLUDED in Burner Kit
A60: ITTU-175/125 | B60: 1 | C60: ="JJ-175T"&IF('Tube Htr Kits'!$J$5="USA","-BN","-CN") -> JJ-175T-BN | D60: ITT-BURNER KIT 175/120 TWO STAGE NG | E60: NG ONLY | F60: Type 1 Hose Connector 3/4" x 36" INCLUDED in Burner Kit | G60: Flexible Gas Connector 3/4" x 36" INCLUDED in Burner Kit
A61: ITTU-200/140 | B61: 1 | C61: ="JJ-200T"&IF('Tube Htr Kits'!$J$5="USA","-BN","-CN") -> JJ-200T-BN | D61: ITT-BURNER KIT 200/140 TWO STAGE NG | E61: NG ONLY | F61: Type 1 Hose Connector 3/4" x 36" INCLUDED in Burner Kit | G61: Flexible Gas Connector 3/4" x 36" INCLUDED in Burner Kit

Sheet 2
A1: IQ-45-10 | B1: 1 | C1: TS-4510-JZ | D1: IQ 10' TUBE KIT 45,000 BTU ONLY
A2: IQ-45-20 | B2: 1 | C2: TS-1420-JZ | D2: IQ 20' TUBE KIT STAND ALONE
A3: IQ-60-20 | B3: 1 | C3: TS-1420-JZ | D3: IQ 20' TUBE KIT STAND ALONE
A4: IQ-60-30 | B4: 1 | C4: TS-1430-JZ | D4: IQ 30' TUBE KIT STAND ALONE
A5: IQ-80-20 | B5: 1 | C5: TS-1420-JZ | D5: IQ 20' TUBE KIT STAND ALONE
A6: IQ-80-30 | B6: 1 | C6: TS-1430-JZ | D6: IQ 30' TUBE KIT STAND ALONE
A7: IQ-80-40 | B7: 1 | C7: TS-1040-JZ | D7: IQ 40' TUBE KIT STAND ALONE
A8: IQ-100-20 | B8: 1 | C8: TS-1020-JZ | D8: IQ TUBE KIT 20' STAND ALONE 100MBH
A9: IQ-110-30 | B9: 1 | C9: TS-1430-JZ | D9: IQ 30' TUBE KIT STAND ALONE
A10: IQ-110-40 | B10: 1 | C10: TS-1040-JZ | D10: IQ 40' TUBE KIT STAND ALONE
A11: IQ-110-50 | B11: 1 | C11: TS-F030-JZ | D11: IQ TUBE KIT 30' PRIMARY 110-155 | E11: 1 | F11: TS-0020-JZ | G11: IQ - TUBE KIT SECONDARY 20'
A12: IQ-130-30 | B12: 1 | C12: TS-1430-JZ | D12: IQ 30' TUBE KIT STAND ALONE
A13: IQ-130-40 | B13: 1 | C13: TS-1040-JZ | D13: IQ 40' TUBE KIT STAND ALONE
A14: IQ-130-50 | B14: 1 | C14: TS-F030-JZ | D14: IQ TUBE KIT 30' PRIMARY 110-155 | E14: 1 | F14: TS-0020-JZ | G14: IQ TUBE KIT SECONDARY 20'
A15: IQ-155-40 | B15: 1 | C15: TS-1040-JZ | D15: IQ 40' TUBE KIT STAND ALONE
A16: IQ-155-50 | B16: 1 | C16: TS-F030-JZ | D16: IQ TUBE KIT 30' PRIMARY 110-155 | E16: 1 | F16: TS-0020-JZ | G16: IQ TUBE KIT SECONDARY 20'
A17: IQ-155-60 | B17: 1 | C17: TS-F030-JZ | D17: IQ TUBE KIT 30' PRIMARY 110-155 | E17: 1 | F17: TS-0030-JZ | G17: IQ TUBE KIT SECONDARY 30'
A18: IQ-175-50 | B18: 1 | C18: TS-1030-JZ | D18: IQ TUBE KIT 30' PRIMARY 175/200 | E18: 1 | F18: TS-0020-JZ | G18: IQ TUBE KIT SECONDARY 20'
A19: IQ-175-60 | B19: 1 | C19: TS-1030-JZ | D19: IQ TUBE KIT 30' PRIMARY 175/200 | E19: 1 | F19: TS-0030-JZ | G19: IQ TUBE KIT SECONDARY 30'
A20: IQ-175-70 | B20: 1 | C20: TS-1030-JZ | D20: IQ TUBE KIT 30' PRIMARY 175/200 | E20: 1 | F20: TS-0040-JZ | G20: IQ TUBE KIT SECONDARY 40'
A21: IQ-200-50 | B21: 1 | C21: TS-1030-JZ | D21: IQ TUBE KIT 30' PRIMARY 175/200 | E21: 1 | F21: TS-0020-JZ | G21: IQ TUBE KIT SECONDARY 20'
A22: IQ-200-60 | B22: 1 | C22: TS-1030-JZ | D22: IQ TUBE KIT 30' PRIMARY 175/200 | E22: 1 | F22: TS-0030-JZ | G22: IQ TUBE KIT SECONDARY 30'
A23: IQ-200-70 | B23: 1 | C23: TS-1030-JZ | D23: IQ TUBE KIT 30' PRIMARY 175/200 | E23: 1 | F23: TS-0040-JZ | G23: IQ TUBE KIT SECONDARY 40'
A24: ITB-45-10 | B24: 1 | C24: TM-4510-SX | D24: ITB TUBE KIT 10' STAND ALONE 45,000
A25: ITB-45-20 | B25: 1 | C25: TM-1420-SX | D25: ITB TUBE KIT 20' STAND ALONE
A26: ITB-60-20 | B26: 1 | C26: TM-1420-SX | D26: ITB TUBE KIT 20' STAND ALONE
A27: ITB-60-30 | B27: 1 | C27: TM-1430-SX | D27: ITB TUBE KIT 30' STAND ALONE
A28: ITB-80-20 | B28: 1 | C28: TM-1420-SX | D28: ITB TUBE KIT 20' STAND ALONE
A29: ITB-80-30 | B29: 1 | C29: TM-1430-SX | D29: ITB TUBE KIT 30' STAND ALONE
A30: ITB-80-40 | B30: 1 | C30: TM-1040-SX | D30: ITB TUBE KIT 40' STAND ALONE
A31: ITB-100-20 | B31: 1 | C31: TM-1020-SX | D31: ITB TUBE KIT 20'x100Mbh STAND ALONE
A32: ITB-110-30 | B32: 1 | C32: TM-1430-SX | D32: ITB TUBE KIT 30' STAND ALONE
A33: ITB-110-40 | B33: 1 | C33: TM-1040-SX | D33: ITB TUBE KIT 40' STAND ALONE
A34: ITB-110-50 | B34: 1 | C34: TM-F030-SX | D34: ITB TUBE KIT 30' PRIMARY 80->155 | E34: 1 | F34: TM-0020-SX | G34: ITB TUBE KIT 20' SECONDARY
A35: ITB-130-30 | B35: 1 | C35: TM-1430-SX | D35: ITB TUBE KIT 30' STAND ALONE
A36: ITB-130-40 | B36: 1 | C36: TM-1040-SX | D36: ITB TUBE KIT 40' STAND ALONE
A37: ITB-130-50 | B37: 1 | C37: TM-F030-SX | D37: ITB TUBE KIT 30' PRIMARY 80->155 | E37: 1 | F37: TM-0020-SX | G37: ITB TUBE KIT 20' SECONDARY
A38: ITB-155-40 | B38: 1 | C38: TM-1040-SX | D38: ITB TUBE KIT 40' STAND ALONE
A39: ITB-155-50 | B39: 1 | C39: TM-F030-SX | D39: ITB TUBE KIT 30' PRIMARY 80->155 | E39: 1 | F39: TM-0020-SX | G39: ITB TUBE KIT 20' SECONDARY
A40: ITB-155-60 | B40: 1 | C40: TM-F030-SX | D40: ITB TUBE KIT 30' PRIMARY 80->155 | E40: 1 | F40: TM-0030-SX | G40: ITB TUBE KIT 30' SECONDARY
A41: ITB-175-50 | B41: 1 | C41: TM-1030-SX | D41: ITB TUBE KIT 30' PRIMARY 175->200 | E41: 1 | F41: TM-0020-SX | G41: ITB TUBE KIT 20' SECONDARY
A42: ITB-175-60 | B42: 1 | C42: TM-1030-SX | D42: ITB TUBE KIT 30' PRIMARY 175->200 | E42: 1 | F42: TM-0030-SX | G42: ITB TUBE KIT 30' SECONDARY
A43: ITB-175-70 | B43: 1 | C43: TM-1030-SX | D43: ITB TUBE KIT 30' PRIMARY 175->200 | E43: 1 | F43: TM-0040-SX | G43: ITB TUBE KIT 40' SECONDARY
A44: ITB-200-50 | B44: 1 | C44: TM-1030-SX | D44: ITB TUBE KIT 30' PRIMARY 175->200 | E44: 1 | F44: TM-0020-SX | G44: ITB TUBE KIT 20' SECONDARY
A45: ITB-200-60 | B45: 1 | C45: TM-1030-SX | D45: ITB TUBE KIT 30' PRIMARY 175->200 | E45: 1 | F45: TM-0030-SX | G45: ITB TUBE KIT 30' SECONDARY
A46: ITB-200-70 | B46: 1 | C46: TM-1030-SX | D46: ITB TUBE KIT 30' PRIMARY 175->200 | E46: 1 | F46: TM-0040-SX | G46: ITB TUBE KIT 40' SECONDARY
A47: ITBU-60-10 | B47: 1 | C47: TM-1410-SU | D47: ITBU TUBE KIT 10'U STAND ALONE
A48: ITBU-80-10 | B48: 1 | C48: TM-1410-SU | D48: ITBU TUBE KIT 10'U STAND ALONE
A49: ITBU-80-15 | B49: 1 | C49: TM-1415-SU | D49: ITBU TUBE KIT 15'U STAND ALONE
A50: ITBU-110-15 | B50: 1 | C50: TM-1415-SU | D50: ITBU TUBE KIT 15'U STAND ALONE
A51: ITBU-110-20 | B51: 1 | C51: TM-1020-SU | D51: ITBU TUBE KIT 20'U STAND ALONE
A52: ITBU-130-15 | B52: 1 | C52: TM-1415-SU | D52: ITBU TUBE KIT 15'U STAND ALONE
A53: ITBU-130-20 | B53: 1 | C53: TM-1020-SU | D53: ITBU TUBE KIT 20'U STAND ALONE
A54: ITBU-155-20 | B54: 1 | C54: TM-1020-SU | D54: ITBU TUBE KIT 20'U STAND ALONE
A55: ITBU-155-30 | B55: 1 | C55: TM-0020-SU | D55: ITBU TUBE KIT 20'U PRIMARY 155 | E55: 1 | F55: TM-0010-SU | G55: S100U & ITBU TUBE KIT 10' SECONDARY
A56: ITBU-175-30 | B56: 1 | C56: TM-A120-SU | D56: ITBU TUBE KIT 20'U PRIMARY 175-200 | E56: 1 | F56: TM-0010-SU | G56: S100U & ITBU TUBE KIT 10' SECONDARY
A57: ITBU-200-30 | B57: 1 | C57: TM-A120-SU | D57: ITBU TUBE KIT 20'U PRIMARY 175-201 | E57: 1 | F57: TM-0010-SU | G57: S100U & ITBU TUBE KIT 10' SECONDARY
A58: IW-45-10 | B58: 1 | C58: TS-4510-JZ | D58: IW 10' TUBE KIT 45,000 BTUH STAND ALONE
A59: IW-45-20 | B59: 1 | C59: TW-1420-JZ | D59: IW 20' TUBE KIT STAND ALONE
A60: IW-60-20 | B60: 1 | C60: TW-1420-JZ | D60: IW 20' TUBE KIT STAND ALONE
A61: IW-60-30 | B61: 1 | C61: TW-1430-JZ | D61: IW 30' TUBE KIT STAND ALONE
A62: IW-80-20 | B62: 1 | C62: TW-1420-JZ | D62: IW 20' TUBE KIT STAND ALONE
A63: IW-80-30 | B63: 1 | C63: TW-1430-JZ | D63: IW 30' TUBE KIT STAND ALONE
A64: IW-80-40 | B64: 1 | C64: TW-1040-JZ | D64: IW 40' TUBE KIT STAND ALONE
A65: IW-110-30 | B65: 1 | C65: TW-1430-JZ | D65: IW 30' TUBE KIT STAND ALONE
A66: IW-110-40 | B66: 1 | C66: TW-1040-JZ | D66: IW 40' TUBE KIT STAND ALONE
A67: IW-110-50 | B67: 1 | C67: TW-F030-JZ | D67: IW TUBE KIT 30 PRIMARY 110-155 | E67: 1 | F67: TW-0020-JZ | G67: IW TUBE KIT SECONDARY 20'
A68: IW-130-30 | B68: 1 | C68: TW-1430-JZ | D68: IW 30' TUBE KIT STAND ALONE
A69: IW-130-40 | B69: 1 | C69: TW-1040-JZ | D69: IW 40' TUBE KIT STAND ALONE
A70: IW-130-50 | B70: 1 | C70: TW-F030-JZ | D70: IW TUBE KIT 30 PRIMARY 110-155 | E70: 1 | F70: TW-0020-JZ | G70: IW TUBE KIT SECONDARY 20'
A71: IW-155-40 | B71: 1 | C71: TW-1040-JZ | D71: IW 40' TUBE KIT STAND ALONE
A72: IW-155-50 | B72: 1 | C72: TW-F030-JZ | D72: IW TUBE KIT 30 PRIMARY 110-155 | E72: 1 | F72: TW-0020-JZ | G72: IW TUBE KIT SECONDARY 20'
A73: IW-155-60 | B73: 1 | C73: TW-F030-JZ | D73: IW TUBE KIT 30 PRIMARY 110-156 | E73: 1 | F73: TW-0030-JZ | G73: IW TUBE KIT SECONDARY 30'
A74: IW-175-50 | B74: 1 | C74: TW-1030-JZ | D74: IW TUBE KIT 30 PRIMARY 175-200 | E74: 1 | F74: TW-0020-JZ | G74: IW TUBE KIT SECONDARY 20'
A75: IW-175-60 | B75: 1 | C75: TW-1030-JZ | D75: IW TUBE KIT 30 PRIMARY 175-200 | E75: 1 | F75: TW-0030-JZ | G75: IW TUBE KIT SECONDARY 30'
A76: IW-175-70 | B76: 1 | C76: TW-1030-JZ | D76: IW TUBE KIT 30 PRIMARY 175-200 | E76: 1 | F76: TW-0040-JZ | G76: IW TUBE KIT SECONDARY 40'
A77: IW-200-50 | B77: 1 | C77: TW-1030-JZ | D77: IW TUBE KIT 30 PRIMARY 175-200 | E77: 1 | F77: TW-0020-JZ | G77: IW TUBE KIT SECONDARY 20'
A78: IW-200-60 | B78: 1 | C78: TW-1030-JZ | D78: IW TUBE KIT 30 PRIMARY 175-200 | E78: 1 | F78: TW-0030-JZ | G78: IW TUBE KIT SECONDARY 30'
A79: IW-200-70 | B79: 1 | C79: TW-1030-JZ | D79: IW TUBE KIT 30 PRIMARY 175-200 | E79: 2 | F79: TW-0020-JZ | G79: IW TUBE KIT SECONDARY 20'
A80: IWP-45-10 | B80: 1 | C80: TS-4510-JZ | D80: IWP 10' TUBE KIT 45,000 BTUH STAND ALONE
A81: IWP-45-20 | B81: 1 | C81: TW-1420-JZ | D81: IWP 20' TUBE KIT STAND ALONE
A82: IWP-60-20 | B82: 1 | C82: TW-1420-JZ | D82: IWP 20' TUBE KIT STAND ALONE
A83: IWP-60-30 | B83: 1 | C83: TW-1430-JZ | D83: IWP 30' TUBE KIT STAND ALONE
A84: IWP-80-20 | B84: 1 | C84: TW-1420-JZ | D84: IWP 20' TUBE KIT STAND ALONE
A85: IWP-80-30 | B85: 1 | C85: TW-1430-JZ | D85: IWP 30' TUBE KIT STAND ALONE
A86: IWP-80-40 | B86: 1 | C86: TW-1040-JZ | D86: IWP 40' TUBE KIT STAND ALONE
A87: IWP-110-30 | B87: 1 | C87: TW-1430-JZ | D87: IWP 30' TUBE KIT STAND ALONE
A88: IWP-110-40 | B88: 1 | C88: TW-1040-JZ | D88: IWP 40' TUBE KIT STAND ALONE
A89: IWP-110-50 | B89: 1 | C89: TW-F030-JZ | D89: IWP TUBE KIT 30 PRIMARY 110-155 | E89: 1 | F89: TW-0020-JZ | G89: IWP TUBE KIT SECONDARY 20'
A90: IWP-130-30 | B90: 1 | C90: TW-1430-JZ | D90: IWP 30' TUBE KIT STAND ALONE
A91: IWP-130-40 | B91: 1 | C91: TW-1040-JZ | D91: IWP 40' TUBE KIT STAND ALONE
A92: IWP-130-50 | B92: 1 | C92: TW-F030-JZ | D92: IWP TUBE KIT 30 PRIMARY 110-155 | E92: 1 | F92: TW-0020-JZ | G92: IWP TUBE KIT SECONDARY 20'
A93: IWP-155-40 | B93: 1 | C93: TW-1040-JZ | D93: IWP 40' TUBE KIT STAND ALONE
A94: IWP-155-50 | B94: 1 | C94: TW-F030-JZ | D94: IWP TUBE KIT 30 PRIMARY 110-155 | E94: 1 | F94: TW-0020-JZ | G94: IWP TUBE KIT SECONDARY 20'
A95: IWP-155-60 | B95: 1 | C95: TW-F030-JZ | D95: IWP TUBE KIT 30 PRIMARY 110-156 | E95: 1 | F95: TW-0030-JZ | G95: IWP TUBE KIT SECONDARY 30'
A96: IWP-175-50 | B96: 1 | C96: TW-1030-JZ | D96: IWP TUBE KIT 30 PRIMARY 175-200 | E96: 1 | F96: TW-0020-JZ | G96: IWP TUBE KIT SECONDARY 20'
A97: IWP-175-60 | B97: 1 | C97: TW-1030-JZ | D97: IWP TUBE KIT 30 PRIMARY 175-200 | E97: 1 | F97: TW-0030-JZ | G97: IWP TUBE KIT SECONDARY 30'
A98: IWP-175-70 | B98: 1 | C98: TW-1030-JZ | D98: IWP TUBE KIT 30 PRIMARY 175-200 | E98: 2 | F98: TW-0020-JZ | G98: IWP TUBE KIT SECONDARY 20'
A99: IWP-200-50 | B99: 1 | C99: TW-1030-JZ | D99: IWP TUBE KIT 30 PRIMARY 175-200 | E99: 1 | F99: TW-0020-JZ | G99: IWP TUBE KIT SECONDARY 20'
A100: IWP-200-60 | B100: 1 | C100: TW-1030-JZ | D100: IWP TUBE KIT 30 PRIMARY 175-200 | E100: 1 | F100: TW-0030-JZ | G100: IWP TUBE KIT SECONDARY 30'
A101: IWP-200-70 | B101: 1 | C101: TW-1030-JZ | D101: IWP TUBE KIT 30 PRIMARY 175-200 | E101: 2 | F101: TW-0020-JZ | G101: IWP TUBE KIT SECONDARY 20'
A102: ITT-80/60-20 | B102: 1 | C102: TM-1420-SX | D102: ITT TUBE KIT 20' STAND ALONE
A103: ITT-80/60-30 | B103: 1 | C103: TM-1430-SX | D103: ITT TUBE KIT 30' STAND ALONE
A104: ITT-110/75-30 | B104: 1 | C104: TM-1430-SX | D104: ITT TUBE KIT 30' STAND ALONE
A105: ITT-110/75-40 | B105: 1 | C105: TM-1040-SX | D105: ITT TUBE KIT 40' STAND ALONE
A106: ITT-130/90-30 | B106: 1 | C106: TM-1430-SX | D106: ITT TUBE KIT 30' STAND ALONE
A107: ITT-130/90-40 | B107: 1 | C107: TM-1040-SX | D107: ITT TUBE KIT 40' STAND ALONE
A108: ITT-155/110-40 | B108: 1 | C108: TM-1040-SX | D108: ITT TUBE KIT 40' STAND ALONE
A109: ITT-155/110-50 | B109: 1 | C109: TM-F030-SX | D109: ITT TUBE KIT 30' PRIMARY 80->155 | E109: 1 | F109: TM-0020-SX | G109: ITT TUBE KIT 20' SECONDARY
A110: ITT-175/125-50 | B110: 1 | C110: TM-1030-SX | D110: ITT TUBE KIT 30' PRIMARY 175->200 | E110: 1 | F110: TM-0020-SX | G110: ITT TUBE KIT 20' SECONDARY
A111: ITT-175/125-60 | B111: 1 | C111: TM-1030-SX | D111: ITT TUBE KIT 30' PRIMARY 175->200 | E111: 1 | F111: TM-0030-SX | G111: ITT TUBE KIT 30' SECONDARY
A112: ITT-200/140-50 | B112: 1 | C112: TM-1030-SX | D112: ITT TUBE KIT 30' PRIMARY 175->200 | E112: 1 | F112: TM-0020-SX | G112: ITT TUBE KIT 20' SECONDARY
A113: ITT-200/140-60 | B113: 1 | C113: TM-1030-SX | D113: ITT TUBE KIT 30' PRIMARY 175->200 | E113: 1 | F113: TM-0030-SX | G113: ITT TUBE KIT 30' SECONDARY
A114: ITTU-80/60-10 | B114: 1 | C114: TM-1410-SU | D114: ITTU TUBE KIT 10'U STAND ALONE
A115: ITTU-80/60-15 | B115: 1 | C115: TM-1415-SU | D115: ITTU TUBE KIT 15'U STAND ALONE
A116: ITTU-110/75-15 | B116: 1 | C116: TM-1415-SU | D116: ITTU TUBE KIT 15'U STAND ALONE
A117: ITTU-110/75-20 | B117: 1 | C117: TM-1020-SU | D117: ITTU TUBE KIT 20'U STAND ALONE
A118: ITTU-130/90-15 | B118: 1 | C118: TM-1415-SU | D118: ITTU TUBE KIT 15'U STAND ALONE
A119: ITTU-130/90-20 | B119: 1 | C119: TM-1020-SU | D119: ITTU TUBE KIT 20'U STAND ALONE
A120: ITTU-155/110-20 | B120: 1 | C120: TM-1020-SU | D120: ITTU TUBE KIT 20'U STAND ALONE
A121: ITTU-155/110-30 | B121: 1 | C121: TM-0020-SU | D121: ITTU TUBE KIT 20'U PRIMARY 155 | E121: 1 | F121: TM-0010-SU | G121: ITTU TUBE KIT 10' SECONDARY
A122: ITTU-175/125-30 | B122: 1 | C122: TM-A120-SU | D122: ITTU TUBE KIT 20'U PRIMARY 175-200 | E122: 1 | F122: TM-0010-SU | G122: ITTU TUBE KIT 10' SECONDARY
A123: ITTU-200/140-30 | B123: 1 | C123: TM-A120-SU | D123: ITTU TUBE KIT 20'U PRIMARY 175-201 | E123: 1 | F123: TM-0010-SU | G123: ITTU TUBE KIT 10' SECONDARY
